{"text_format":"1","workbook":"xlsx","n_sheets":9,"sheets":["intro","intro1","intro2","intro3","source","tasks_basic","Task01","Task02","Task03"],"not_rendered":{"charts":0,"images":2,"macros":1,"external_links":0,"defined_names":4,"comments":1,"pivot_tables":8},"unopened":[],"bounds":{"document_bytes":16777216,"sheet_cells":100000,"rows_first":2000,"rows_last":500,"rows_between":2000,"halvings":0,"cell_chars":16384,"cell_head_chars":4096},"cells_cut":0,"cells_raw":0,"read":"whole","date_system":"1900"}

{"sheet":"intro","index":0,"n_rows":9,"n_cols":8,"rows_kept":9,"cut":false,"hidden":false,"merged":[]}
[null,"ustaw uruchamianie makr"]
[null,"enable macros"]
[]
[null,null,"Wpisz imię i nazwisko (enter your Name)"]
[]
[null,null,"wciśnij enter (press enter)"]
[null,null,"zmień język / change language",null,null,null,null,"1.lista pracowników statystyki funkcjami"]
[null,null,"Polski",null,null,null,null,"2.statystyki wierszem podsumowań"]
[null,null,"wciśnij przycisk poniżej (click the button below)",null,null,null,null,"3. statystyki tabelą przestawną"]

{"sheet":"intro1","index":1,"n_rows":88,"n_cols":42,"rows_kept":88,"cut":false,"hidden":false,"merged":[]}
[]
[]
[null,null,null,null,null,null,"Dimensions group the data along natural categories and consist of one or more levels. Each level",null,null,null,null,null,null,null,null,null,null,null,null,null,null,null,null,null,null,null,null,null,null,null,null,null,"Słownik :"]
[null,null,null,null,null,null,"represents a different grouping within the same dimension. For example, a time dimension can include",null,null,null,null,null,null,null,null,null,null,null,null,null,null,null,null,null,null,null,null,null,null,null,null,":","miara - nazwana kolumna zawierająca zazwyczaj liczby, zazwyczaj różniące się"]
[null,null,null,null,null,null,"levels such as years, months, and days. Or an organizatio",null,null,null,null,null,null,null,null,null,null,null,null,null,null,null,null,null,null,null,null,null,null,null,null,null,"od siebie. Rzadkie powtórzenia są raczej przypadkowe. Najpowszechniejsze"]
[null,null,null,null,null,null,"Measures are the cube data values that are summarized and analyzed. A measure is the combination of",null,null,null,null,null,null,null,null,null,null,null,null,null,null,null,null,null,null,null,null,null,null,null,null,null,"agregowanie miary to suma takich liczb."]
[null,null,null,null,null,null,"a numeric input column with a roll-up rule or statistic. Measures are loaded from the data",null,null,null,null,null,null,null,null,null,null,null,null,null,null,null,null,null,null,null,null,null,null,null,null,null,"wymiar - nazwana kolumna zawiarająca zazwyczaj teksty, zazwyczaj powtarzające"]
[null,null,null,null,null,null,"source that you summarize from. One input column can load one or",null,null,null,null,null,null,null,null,null,null,null,null,null,null,null,null,null,null,null,null,null,null,null,null,null,"się, najczęściej każde powtórzenie dotyczy tego samego obiektu"]
[null,null,null,null,null,null,"id - LESS INTERESTING FOR PIVOT TABLE ANALYSIS",null,null,null,null,null,null,null,null,null,null,null,null,null,null,null,null,null,null,null,null,null,null,null,null,null,"pole mniej istotne z punktu widzenia tabel przestawnych - pole  bez powtórzeń ,"]
[null,null,null,null,null,null,"after","http://support.sas.com/documentation/cdl/en/olapug/59574/HTML/default/viewer.htm#a002254427.htm",null,null,null,null,null,null,null,null,null,null,null,null,null,null,null,null,null,null,null,null,null,null,null,null,"pole nie będące miarą, pole klucz podstawowy"]
[null,null,null,null,null,null,null,null,null,null,null,null,null,null,null,null,null,null,null,null,null,null,null,null,null,null,null,"zrób zadania"]
[null,null,null,null,null,"Pattern 1","1a. make a statement one-dimensional: the dimension (month) the measure (total sales)",null,null,null,null,null,null,null,null,null,null,null,null,null,null,null,null,null,null,null,null,null,null,null,null,"Wzorzec 1","1a. zrób zestawienie jednowymiarowe: wymiar(miesiąc) miara (suma sprzedaż)"]
[null,null,null,null,null,null,"1b. make a statement one-dimensional: size (person) - the measure (total sales)",null,null,null,null,null,null,null,null,null,null,null,null,null,null,null,null,null,null,null,null,null,null,null,null,null,"1b. zrób zestawienie jednowymiarowe: wymiar(osoba) - miara (suma sprzedaż)"]
[null,null,null,null,null,null,"1c. make a statement two-dimensional: the dimension (month) dimension (person) - the measure (total: sales)",null,null,null,null,null,null,null,null,null,null,null,null,null,null,null,null,null,null,null,null,null,null,null,null,null,"1c. zrób zestawienie dwuwymiarowe: wymiar(miesiąc) wymiar (osoba) - miara (suma: sprzedaż)"]
[null,null,null,null,null,"Pattern 2","2 make a statement (dimensionless) indicating sum, average, minimum and maximum",null,null,null,null,null,null,null,null,null,null,null,null,null,null,null,null,null,null,null,null,null,null,null,null,"Wzorzec 2","2. zrób zestawienie bezwymiarowe podające sumę, średnią, minimum i maksimum"]
[null,null,null,null,null,"Pattern 3","3 make a pivot table nad the histogram for the column sales in buckets of 50 thousand. Start from point zero.",null,null,null,null,null,null,null,null,null,null,null,null,null,null,null,null,null,null,null,null,null,null,null,null,"Wzorzec 3","3. zrób tabelę przestawną \"pod histogram\" dla kolumny sprzedaż w przedziałach co 50 tys. Zaczynaj od zera."]
["ID","Month","Sales Rep","Sales",null,null,null,null,null,null,null,null,null,null,null,null,null,null,null,null,null,null,null,null,null,null,"ID","miesiąc","osoba","sprzedaż",null,null,null,null,null,null,null,null,null,null,null,"=ZAOKR(ROZKŁAD.NORMALNY.ODW(LOS();300000;100000);-4)"]
[1,"Jan","Bob",300000,null,null,null,null,null,null,null,null,null,null,null,null,null,null,null,null,null,null,null," ",null,null,1,"Kwi","Robert",300000]
[2,"Feb","Bob",450000,null,null,null,null,null,null,null,null,null,null,null,null,null,null,null,null,null,null,null,null,null,null,2,"Sie","Robert",230000,null,"1a"]
[3,"Mar","Bob",270000,null,null,null,null,null,null,null,null,null,null,null,null,null,null,null,null,null,null,null,null,null,null,3,"Gru","Robert",390000]
[4,"Apr","Bob",300000,null,null,null,null,null,null,null,null,null,null,null,null,null,null,null,null,null,null,null,null,null,null,4,"Lut","Robert",450000]
[5,"May","Bob",340000,null,null,null,null,null,null,null,null,null,null,null,null,null,null,null,null,null,null,null,null,null,null,5,"Sty","Robert",300000]
[6,"Jun","Bob",240000,null,null,null,null,null,null,null,null,null,null,null,null,null,null,null,null,null,null,null,null,null,null,6,"Lip","Robert",340000]
[7,"Jul","Bob",340000,null,null,null,null,null,null,null,null,null,null,null,null,null,null,null,null,null,null,null,null,null,null,7,"Cze","Robert",240000]
[8,"Aug","Bob",230000,null,null,null,null,null,null,null,null,null,null,null,null,null,null,null,null,null,null,null,null,null,null,8,"Mar","Robert",270000]
[9,"Sep","Bob",260000,null,null,null,null,null,null,null,null,null,null,null,null,null,null,null,null,null,null,null,null,null,null,9,"Maj","Robert",340000]
[10,"Oct","Bob",310000,null,null,null,null,null,null,null,null,null,null,null,null,null,null,null,null,null,null,null,null,null,null,10,"Lis","Robert",300000]
[11,"Nov","Bob",300000,null,null,null,null,null,null,null,null,null,null,null,null,null,null,null,null,null,null,null,null,null,null,11,"Paź","Robert",310000]
[12,"Dec","Bob",390000,null,null,null,null,null,null,null,null,null,null,null,null,null,null,null,null,null,null,null,null,null,null,12,"Wrz","Robert",260000]
[13,"Jan","Frank",340000,null,null,null,null,null,null,null,null,null,null,null,null,null,null,null,null,null,null,null,null,null,null,13,"Kwi","Franek",270000]
[14,"Feb","Frank",380000,null,null,null,null,null,null,null,null,null,null,null,null,null,null,null,null,null,null,null,null,null,null,14,"Sie","Franek",360000]
[15,"Mar","Frank",530000,null,null,null,null,null,null,null,null,null,null,null,null,null,null,null,null,null,null,null,null,null,null,15,"Gru","Franek",280000]
[16,"Apr","Frank",270000,null,null,null,null,null,null,null,null,null,null,null,null,null,null,null,null,null,null,null,null,null,null,16,"Lut","Franek",380000]
[17,"May","Frank",170000,null,null,null,null,null,null,null,null,null,null,null,null,null,null,null,null,null,null,null,null,null,null,17,"Sty","Franek",340000]
[18,"Jun","Frank",280000,null,null,null,null,null,null,null,null,null,null,null,null,null,null,null,null,null,null,null,null,null,null,18,"Lip","Franek",20000]
[19,"Jul","Frank",20000,null,null,null,null,null,null,null,null,null,null,null,null,null,null,null,null,null,null,null,null,null,null,19,"Cze","Franek",280000,null,"1b"]
[20,"Aug","Frank",360000,null,null,null,null,null,null,null,null,null,null,null,null,null,null,null,null,null,null,null,null,null,null,20,"Mar","Franek",530000]
[21,"Sep","Frank",420000,null,null,null,null,null,null,null,null,null,null,null,null,null,null,null,null,null,null,null,null,null,null,21,"Maj","Franek",170000]
[22,"Oct","Frank",340000,null,null,null,null,null,null,null,null,null,null,null,null,null,null,null,null,null,null,null,null,null,null,22,"Lis","Franek",360000]
[23,"Nov","Frank",360000,null,null,null,null,null,null,null,null,null,null,null,null,null,null,null,null,null,null,null,null,null,null,23,"Paź","Franek",340000]
[24,"Dec","Frank",280000,null,null,null,null,null,null,null,null,null,null,null,null,null,null,null,null,null,null,null,null,null,null,24,"Wrz","Franek",420000]
[25,"Feb","Jill",510000,null,null,null,null,null,null,null,null,null,null,null,null,null,null,null,null,null,null,null,null,null,null,25,"Kwi","Joanna",260000]
[26,"Mar","Jill",430000,null,null,null,null,null,null,null,null,null,null,null,null,null,null,null,null,null,null,null,null,null,null,26,"Sie","Joanna",340000]
[27,"Apr","Jill",260000,null,null,null,null,null,null,null,null,null,null,null,null,null,null,null,null,null,null,null,null,null,null,27,"Gru","Joanna",230000]
[28,"May","Jill",300000,null,null,null,null,null,null,null,null,null,null,null,null,null,null,null,null,null,null,null,null,null,null,28,"Lut","Joanna",510000]
[29,"Jun","Jill",240000,null,null,null,null,null,null,null,null,null,null,null,null,null,null,null,null,null,null,null,null,null,null,29,"Lip","Joanna",290000]
[30,"Jul","Jill",290000,null,null,null,null,null,null,null,null,null,null,null,null,null,null,null,null,null,null,null,null,null,null,30,"Cze","Joanna",240000]
[31,"Aug","Jill",340000,null,null,null,null,null,null,null,null,null,null,null,null,null,null,null,null,null,null,null,null,null,null,31,"Mar","Joanna",430000]
[32,"Sep","Jill",190000,null,null,null,null,null,null,null,null,null,null,null,null,null,null,null,null,null,null,null,null,null,null,32,"Maj","Joanna",300000]
[33,"Oct","Jill",280000,null,null,null,null,null,null,null,null,null,null,null,null,null,null,null,null,null,null,null,null,null,null,33,"Lis","Joanna",180000]
[34,"Nov","Jill",180000,null,null,null,null,null,null,null,null,null,null,null,null,null,null,null,null,null,null,null,null,null,null,34,"Paź","Joanna",280000]
[35,"Dec","Jill",230000,null,null,null,null,null,null,null,null,null,null,null,null,null,null,null,null,null,null,null,null,null,null,35,"Wrz","Joanna",190000]
[36,"Jan","Mary",280000,null,null,null,null,null,null,null,null,null,null,null,null,null,null,null,null,null,null,null,null,null,null,36,"Kwi","Maria",310000,null,"1c"]
[37,"Feb","Mary",180000,null,null,null,null,null,null,null,null,null,null,null,null,null,null,null,null,null,null,null,null,null,null,37,"Sie","Maria",150000]
[38,"Mar","Mary",320000,null,null,null,null,null,null,null,null,null,null,null,null,null,null,null,null,null,null,null,null,null,null,38,"Gru","Maria",250000]
[39,"Apr","Mary",310000,null,null,null,null,null,null,null,null,null,null,null,null,null,null,null,null,null,null,null,null,null,null,39,"Lut","Maria",180000]
[40,"May","Mary",330000,null,null,null,null,null,null,null,null,null,null,null,null,null,null,null,null,null,null,null,null,null,null,40,"Sty","Maria",280000]
[41,"Jun","Mary",400000,null,null,null,null,null,null,null,null,null,null,null,null,null,null,null,null,null,null,null,null,null,null,41,"Lip","Maria",350000]
[42,"Jul","Mary",350000,null,null,null,null,null,null,null,null,null,null,null,null,null,null,null,null,null,null,null,null,null,null,42,"Cze","Maria",400000]
[43,"Aug","Mary",150000,null,null,null,null,null,null,null,null,null,null,null,null,null,null,null,null,null,null,null,null,null,null,43,"Mar","Maria",320000]
[44,"Sep","Mary",140000,null,null,null,null,null,null,null,null,null,null,null,null,null,null,null,null,null,null,null,null,null,null,44,"Maj","Maria",330000]
[45,"Oct","Mary",250000,null,null,null,null,null,null,null,null,null,null,null,null,null,null,null,null,null,null,null,null,null,null,45,"Lis","Maria",430000]
[46,"Nov","Mary",430000,null,null,null,null,null,null,null,null,null,null,null,null,null,null,null,null,null,null,null,null,null,null,46,"Paź","Maria",250000]
[47,"Dec","Mary",250000,null,null,null,null,null,null,null,null,null,null,null,null,null,null,null,null,null,null,null,null,null,null,47,"Wrz","Maria",140000]
[48,"Jan","Paul",370000,null,null,null,null,null,null,null,null,null,null,null,null,null,null,null,null,null,null,null,null,null,null,48,"Kwi","Paweł",430000]
[49,"Feb","Paul",300000,null,null,null,null,null,null,null,null,null,null,null,null,null,null,null,null,null,null,null,null,null,null,49,"Sie","Paweł",300000]
[50,"Mar","Paul",260000,null,null,null,null,null,null,null,null,null,null,null,null,null,null,null,null,null,null,null,null,null,null,50,"Gru","Paweł",470000]
[51,"Apr","Paul",430000,null,null,null,null,null,null,null,null,null,null,null,null,null,null,null,null,null,null,null,null,null,null,51,"Lut","Paweł",300000]
[52,"May","Paul",320000,null,null,null,null,null,null,null,null,null,null,null,null,null,null,null,null,null,null,null,null,null,null,52,"Sty","Paweł",370000]
[53,"Jun","Paul",300000,null,null,null,null,null,null,null,null,null,null,null,null,null,null,null,null,null,null,null,null,null,null,53,"Lip","Paweł",360000,null,"2."]
[54,"Jul","Paul",360000,null,null,null,null,null,null,null,null,null,null,null,null,null,null,null,null,null,null,null,null,null,null,54,"Cze","Paweł",300000]
[55,"Aug","Paul",300000,null,null,null,null,null,null,null,null,null,null,null,null,null,null,null,null,null,null,null,null,null,null,55,"Mar","Paweł",260000]
[56,"Sep","Paul",220000,null,null,null,null,null,null,null,null,null,null,null,null,null,null,null,null,null,null,null,null,null,null,56,"Maj","Paweł",320000]
[57,"Oct","Paul",160000,null,null,null,null,null,null,null,null,null,null,null,null,null,null,null,null,null,null,null,null,null,null,57,"Lis","Paweł",330000]
[58,"Nov","Paul",330000,null,null,null,null,null,null,null,null,null,null,null,null,null,null,null,null,null,null,null,null,null,null,58,"Paź","Paweł",160000]
[59,"Dec","Paul",470000,null,null,null,null,null,null,null,null,null,null,null,null,null,null,null,null,null,null,null,null,null,null,59,"Wrz","Paweł",220000]
[60,"Jan","Randy",250000,null,null,null,null,null,null,null,null,null,null,null,null,null,null,null,null,null,null,null,null,null,null,60,"Kwi","Rafał",350000]
[61,"Feb","Randy",320000,null,null,null,null,null,null,null,null,null,null,null,null,null,null,null,null,null,null,null,null,null,null,61,"Sie","Rafał",380000]
[62,"Mar","Randy",250000,null,null,null,null,null,null,null,null,null,null,null,null,null,null,null,null,null,null,null,null,null,null,62,"Gru","Rafał",330000]
[63,"Apr","Randy",350000,null,null,null,null,null,null,null,null,null,null,null,null,null,null,null,null,null,null,null,null,null,null,63,"Lut","Rafał",320000]
[64,"May","Randy",330000,null,null,null,null,null,null,null,null,null,null,null,null,null,null,null,null,null,null,null,null,null,null,64,"Sty","Rafał",250000]
[65,"Jun","Randy",240000,null,null,null,null,null,null,null,null,null,null,null,null,null,null,null,null,null,null,null,null,null,null,65,"Lip","Rafał",170000]
[66,"Jul","Randy",170000,null,null,null,null,null,null,null,null,null,null,null,null,null,null,null,null,null,null,null,null,null,null,66,"Cze","Rafał",240000]
[67,"Aug","Randy",380000,null,null,null,null,null,null,null,null,null,null,null,null,null,null,null,null,null,null,null,null,null,null,67,"Mar","Rafał",250000]
[68,"Sep","Randy",290000,null,null,null,null,null,null,null,null,null,null,null,null,null,null,null,null,null,null,null,null,null,null,68,"Maj","Rafał",330000]
[69,"Oct","Randy",270000,null,null,null,null,null,null,null,null,null,null,null,null,null,null,null,null,null,null,null,null,null,null,69,"Lis","Rafał",240000]
[70,"Nov","Randy",240000,null,null,null,null,null,null,null,null,null,null,null,null,null,null,null,null,null,null,null,null,null,null,70,"Paź","Rafał",270000,null,"3."]
[71,"Dec","Randy",330000,null,null,null,null,null,null,null,null,null,null,null,null,null,null,null,null,null,null,null,null,null,null,71,"Wrz","Rafał",290000]

{"sheet":"intro2","index":2,"n_rows":294,"n_cols":34,"rows_kept":294,"cut":false,"hidden":false,"merged":[]}
[]
[null,"In the table below:"]
[null,"how many dimensions do you see?",null,null,null,null,null,null,null,null,null,null,null,null,null,null,null,null,null,null,null,null,null,null,null,null,"W tabeli poniżej: "]
[null,null,null,null,null,null,null,null,null,null,null,null,null,null,null,null,null,null,null,null,null,null,null,null,null,null,"ile widzisz wymiarów"]
[null,"how many metrics do you see?"]
[null,null,null,null,null,null,null,null,null,null,null,null,null,null,null,null,null,null,null,null,null,null,null,null,null,null,"ile widzisz miar"]
[null,"how many the less important fields for pivot tables do you see?"]
[null,null,null,null,null,null,null,null,null,null,null,null,null,null,null,null,null,null,null,null,null,null,null,null,null,null,"ile widzisz mniej istotnych pól dla tabel przestawnych"]
[]
["ID","date","Sales Rep","Sales",null,null,null,null,null,null,null,null,null,null,null,null,null,null,null,null,null,null,null,null,null,null,"ID","dzień","osoba","sprzedaż"]
[1,"2013-01-07","Bob",{"$f":"300000*(1/4)","v":75000},null,null,null,null,null,null,null,null,null,null,null,null,null,null,null,null,null,null,null,null,null,null,1,"2013-01-07","Robert",{"$f":"300000*(1/4)","v":75000},null,null,"Uzupełnienie"]
[2,"2013-02-04","Bob",{"$f":"230000*(1/4)","v":57500},null,null,"1 make a pivot table  two-dimensional: the dimension (month) the dimension (person) - the measure (sum of: sales)",null,null,null,null,null,null,null,null,null,null,null,null,null,null,null,null,null,null,null,2,"2013-02-04","Robert",{"$f":"230000*(1/4)","v":57500},null,null,null,"1. zrób zestawienie dwuwymiarowe: wymiar(miesiąc) wymiar (osoba) - miara (suma: sprzedaż)"]
[3,"2013-03-04","Bob",{"$f":"390000*(1/4)","v":97500},null,null,null,null,null,null,null,null,null,null,null,null,null,null,null,null,null,null,null,null,null,null,3,"2013-03-04","Robert",{"$f":"390000*(1/4)","v":97500}]
[4,"2013-04-08","Bob",{"$f":"450000*(1/4)","v":112500},null,null,null,null,null,null,null,null,null,null,null,null,null,null,null,null,null,null,null,null,null,null,4,"2013-04-08","Robert",{"$f":"450000*(1/4)","v":112500}]
[5,"2013-05-06","Bob",{"$f":"300000*(1/4)","v":75000},null,null,null,null,null,null,null,null,null,null,null,null,null,null,null,null,null,null,null,null,null,null,5,"2013-05-06","Robert",{"$f":"300000*(1/4)","v":75000}]
[6,"2013-06-03","Bob",{"$f":"340000*(1/4)","v":85000},null,null,null,null,null,null,null,null,null,null,null,null,null,null,null,null,null,null,null,null,null,null,6,"2013-06-03","Robert",{"$f":"340000*(1/4)","v":85000}]
[7,"2013-07-08","Bob",{"$f":"240000*(1/4)","v":60000},null,null,null,null,null,null,null,null,null,null,null,null,null,null,null,null,null,null,null,null,null,null,7,"2013-07-08","Robert",{"$f":"240000*(1/4)","v":60000}]
[8,"2013-08-05","Bob",{"$f":"270000*(1/4)","v":67500},null,null,null,null,null,null,null,null,null,null,null,null,null,null,null,null,null,null,null,null,null,null,8,"2013-08-05","Robert",{"$f":"270000*(1/4)","v":67500}]
[9,"2013-09-02","Bob",{"$f":"340000*(1/4)","v":85000},null,null,null,null,null,null,null,null,null,null,null,null,null,null,null,null,null,null,null,null,null,null,9,"2013-09-02","Robert",{"$f":"340000*(1/4)","v":85000}]
[10,"2013-10-07","Bob",{"$f":"300000*(1/4)","v":75000},null,null,null,null,null,null,null,null,null,null,null,null,null,null,null,null,null,null,null,null,null,null,10,"2013-10-07","Robert",{"$f":"300000*(1/4)","v":75000}]
[11,"2013-11-04","Bob",{"$f":"310000*(1/4)","v":77500},null,null,null,null,null,null,null,null,null,null,null,null,null,null,null,null,null,null,null,null,null,null,11,"2013-11-04","Robert",{"$f":"310000*(1/4)","v":77500}]
[12,"2013-12-02","Bob",{"$f":"260000*(1/4)","v":65000},null,null,null,null,null,null,null,null,null,null,null,null,null,null,null,null,null,null,null,null,null,null,12,"2013-12-02","Robert",{"$f":"260000*(1/4)","v":65000}]
[13,"2013-01-07","Frank",{"$f":"270000*(1/4)","v":67500},null,null,null,null,null,null,null,null,null,null,null,null,null,null,null,null,null,null,null,null,null,null,13,"2013-01-07","Franek",{"$f":"270000*(1/4)","v":67500}]
[14,"2013-02-04","Frank",{"$f":"360000*(1/4)","v":90000},null,null,null,null,null,null,null,null,null,null,null,null,null,null,null,null,null,null,null,null,null,null,14,"2013-02-04","Franek",{"$f":"360000*(1/4)","v":90000}]
[15,"2013-03-04","Frank",{"$f":"280000*(1/4)","v":70000},null,null,null,null,null,null,null,null,null,null,null,null,null,null,null,null,null,null,null,null,null,null,15,"2013-03-04","Franek",{"$f":"280000*(1/4)","v":70000}]
[16,"2013-04-08","Frank",{"$f":"380000*(1/4)","v":95000},null,null,null,null,null,null,null,null,null,null,null,null,null,null,null,null,null,null,null,null,null,null,16,"2013-04-08","Franek",{"$f":"380000*(1/4)","v":95000}]
[17,"2013-05-06","Frank",{"$f":"340000*(1/4)","v":85000},null,null,null,null,null,null,null,null,null,null,null,null,null,null,null,null,null,null,null,null,null,null,17,"2013-05-06","Franek",{"$f":"340000*(1/4)","v":85000}]
[18,"2013-06-03","Frank",{"$f":"20000*(1/4)","v":5000},null,null,null,null,null,null,null,null,null,null,null,null,null,null,null,null,null,null,null,null,null,null,18,"2013-06-03","Franek",{"$f":"20000*(1/4)","v":5000}]
[19,"2013-07-08","Frank",{"$f":"280000*(1/4)","v":70000},null,null,null,null,null,null,null,null,null,null,null,null,null,null,null,null,null,null,null,null,null,null,19,"2013-07-08","Franek",{"$f":"280000*(1/4)","v":70000}]
[20,"2013-08-05","Frank",{"$f":"530000*(1/4)","v":132500},null,null,null,null,null,null,null,null,null,null,null,null,null,null,null,null,null,null,null,null,null,null,20,"2013-08-05","Franek",{"$f":"530000*(1/4)","v":132500}]
[21,"2013-09-02","Frank",{"$f":"170000*(1/4)","v":42500},null,null,null,null,null,null,null,null,null,null,null,null,null,null,null,null,null,null,null,null,null,null,21,"2013-09-02","Franek",{"$f":"170000*(1/4)","v":42500}]
[22,"2013-10-07","Frank",{"$f":"360000*(1/4)","v":90000},null,null,null,null,null,null,null,null,null,null,null,null,null,null,null,null,null,null,null,null,null,null,22,"2013-10-07","Franek",{"$f":"360000*(1/4)","v":90000}]
[23,"2013-11-04","Frank",{"$f":"340000*(1/4)","v":85000},null,null,null,null,null,null,null,null,null,null,null,null,null,null,null,null,null,null,null,null,null,null,23,"2013-11-04","Franek",{"$f":"340000*(1/4)","v":85000}]
[24,"2013-12-02","Frank",{"$f":"420000*(1/4)","v":105000},null,null,null,null,null,null,null,null,null,null,null,null,null,null,null,null,null,null,null,null,null,null,24,"2013-12-02","Franek",{"$f":"420000*(1/4)","v":105000}]
[25,"2013-02-04","Jill",{"$f":"260000*(1/4)","v":65000},null,null,null,null,null,null,null,null,null,null,null,null,null,null,null,null,null,null,null,null,null,null,25,"2013-02-04","Joanna",{"$f":"260000*(1/4)","v":65000}]
[26,"2013-03-04","Jill",{"$f":"340000*(1/4)","v":85000},null,null,null,null,null,null,null,null,null,null,null,null,null,null,null,null,null,null,null,null,null,null,26,"2013-03-04","Joanna",{"$f":"340000*(1/4)","v":85000}]
[27,"2013-04-08","Jill",{"$f":"230000*(1/4)","v":57500},null,null,null,null,null,null,null,null,null,null,null,null,null,null,null,null,null,null,null,null,null,null,27,"2013-04-08","Joanna",{"$f":"230000*(1/4)","v":57500}]
[28,"2013-05-06","Jill",{"$f":"510000*(1/4)","v":127500},null,null,null,null,null,null,null,null,null,null,null,null,null,null,null,null,null,null,null,null,null,null,28,"2013-05-06","Joanna",{"$f":"510000*(1/4)","v":127500}]
[29,"2013-06-03","Jill",{"$f":"290000*(1/4)","v":72500},null,null,null,null,null,null,null,null,null,null,null,null,null,null,null,null,null,null,null,null,null,null,29,"2013-06-03","Joanna",{"$f":"290000*(1/4)","v":72500}]
[30,"2013-07-08","Jill",{"$f":"240000*(1/4)","v":60000},null,null,null,null,null,null,null,null,null,null,null,null,null,null,null,null,null,null,null,null,null,null,30,"2013-07-08","Joanna",{"$f":"240000*(1/4)","v":60000}]
[31,"2013-08-05","Jill",{"$f":"430000*(1/4)","v":107500},null,null,null,null,null,null,null,null,null,null,null,null,null,null,null,null,null,null,null,null,null,null,31,"2013-08-05","Joanna",{"$f":"430000*(1/4)","v":107500}]
[32,"2013-09-02","Jill",{"$f":"300000*(1/4)","v":75000},null,null,null,null,null,null,null,null,null,null,null,null,null,null,null,null,null,null,null,null,null,null,32,"2013-09-02","Joanna",{"$f":"300000*(1/4)","v":75000}]
[33,"2013-10-07","Jill",{"$f":"180000*(1/4)","v":45000},null,null,null,null,null,null,null,null,null,null,null,null,null,null,null,null,null,null,null,null,null,null,33,"2013-10-07","Joanna",{"$f":"180000*(1/4)","v":45000}]
[34,"2013-11-04","Jill",{"$f":"280000*(1/4)","v":70000},null,null,null,null,null,null,null,null,null,null,null,null,null,null,null,null,null,null,null,null,null,null,34,"2013-11-04","Joanna",{"$f":"280000*(1/4)","v":70000}]
[35,"2013-12-02","Jill",{"$f":"190000*(1/4)","v":47500},null,null,null,null,null,null,null,null,null,null,null,null,null,null,null,null,null,null,null,null,null,null,35,"2013-12-02","Joanna",{"$f":"190000*(1/4)","v":47500}]
[36,"2013-01-07","Mary",{"$f":"310000*(1/4)","v":77500},null,null,null,null,null,null,null,null,null,null,null,null,null,null,null,null,null,null,null,null,null,null,36,"2013-01-07","Maria",{"$f":"310000*(1/4)","v":77500}]
[37,"2013-02-04","Mary",{"$f":"150000*(1/4)","v":37500},null,null,null,null,null,null,null,null,null,null,null,null,null,null,null,null,null,null,null,null,null,null,37,"2013-02-04","Maria",{"$f":"150000*(1/4)","v":37500}]
[38,"2013-03-04","Mary",{"$f":"250000*(1/4)","v":62500},null,null,null,null,null,null,null,null,null,null,null,null,null,null,null,null,null,null,null,null,null,null,38,"2013-03-04","Maria",{"$f":"250000*(1/4)","v":62500}]
[39,"2013-04-08","Mary",{"$f":"180000*(1/4)","v":45000},null,null,null,null,null,null,null,null,null,null,null,null,null,null,null,null,null,null,null,null,null,null,39,"2013-04-08","Maria",{"$f":"180000*(1/4)","v":45000}]
[40,"2013-05-06","Mary",{"$f":"280000*(1/4)","v":70000},null,null,null,null,null,null,null,null,null,null,null,null,null,null,null,null,null,null,null,null,null,null,40,"2013-05-06","Maria",{"$f":"280000*(1/4)","v":70000}]
[41,"2013-06-03","Mary",{"$f":"350000*(1/4)","v":87500},null,null,null,null,null,null,null,null,null,null,null,null,null,null,null,null,null,null,null,null,null,null,41,"2013-06-03","Maria",{"$f":"350000*(1/4)","v":87500}]
[42,"2013-07-08","Mary",{"$f":"400000*(1/4)","v":100000},null,null,null,null,null,null,null,null,null,null,null,null,null,null,null,null,null,null,null,null,null,null,42,"2013-07-08","Maria",{"$f":"400000*(1/4)","v":100000}]
[43,"2013-08-05","Mary",{"$f":"320000*(1/4)","v":80000},null,null,null,null,null,null,null,null,null,null,null,null,null,null,null,null,null,null,null,null,null,null,43,"2013-08-05","Maria",{"$f":"320000*(1/4)","v":80000}]
[44,"2013-09-02","Mary",{"$f":"330000*(1/4)","v":82500},null,null,null,null,null,null,null,null,null,null,null,null,null,null,null,null,null,null,null,null,null,null,44,"2013-09-02","Maria",{"$f":"330000*(1/4)","v":82500}]
[45,"2013-10-07","Mary",{"$f":"430000*(1/4)","v":107500},null,null,null,null,null,null,null,null,null,null,null,null,null,null,null,null,null,null,null,null,null,null,45,"2013-10-07","Maria",{"$f":"430000*(1/4)","v":107500}]
[46,"2013-11-04","Mary",{"$f":"250000*(1/4)","v":62500},null,null,null,null,null,null,null,null,null,null,null,null,null,null,null,null,null,null,null,null,null,null,46,"2013-11-04","Maria",{"$f":"250000*(1/4)","v":62500}]
[47,"2013-12-02","Mary",{"$f":"140000*(1/4)","v":35000},null,null,null,null,null,null,null,null,null,null,null,null,null,null,null,null,null,null,null,null,null,null,47,"2013-12-02","Maria",{"$f":"140000*(1/4)","v":35000}]
[48,"2013-01-07","Paul",{"$f":"430000*(1/4)","v":107500},null,null,null,null,null,null,null,null,null,null,null,null,null,null,null,null,null,null,null,null,null,null,48,"2013-01-07","Paweł",{"$f":"430000*(1/4)","v":107500}]
[49,"2013-02-04","Paul",{"$f":"300000*(1/4)","v":75000},null,null,null,null,null,null,null,null,null,null,null,null,null,null,null,null,null,null,null,null,null,null,49,"2013-02-04","Paweł",{"$f":"300000*(1/4)","v":75000}]
[50,"2013-03-04","Paul",{"$f":"470000*(1/4)","v":117500},null,null,null,null,null,null,null,null,null,null,null,null,null,null,null,null,null,null,null,null,null,null,50,"2013-03-04","Paweł",{"$f":"470000*(1/4)","v":117500}]
[51,"2013-04-08","Paul",{"$f":"300000*(1/4)","v":75000},null,null,null,null,null,null,null,null,null,null,null,null,null,null,null,null,null,null,null,null,null,null,51,"2013-04-08","Paweł",{"$f":"300000*(1/4)","v":75000}]
[52,"2013-05-06","Paul",{"$f":"370000*(1/4)","v":92500},null,null,null,null,null,null,null,null,null,null,null,null,null,null,null,null,null,null,null,null,null,null,52,"2013-05-06","Paweł",{"$f":"370000*(1/4)","v":92500}]
[53,"2013-06-03","Paul",{"$f":"360000*(1/4)","v":90000},null,null,null,null,null,null,null,null,null,null,null,null,null,null,null,null,null,null,null,null,null,null,53,"2013-06-03","Paweł",{"$f":"360000*(1/4)","v":90000}]
[54,"2013-07-08","Paul",{"$f":"300000*(1/4)","v":75000},null,null,null,null,null,null,null,null,null,null,null,null,null,null,null,null,null,null,null,null,null,null,54,"2013-07-08","Paweł",{"$f":"300000*(1/4)","v":75000}]
[55,"2013-08-05","Paul",{"$f":"260000*(1/4)","v":65000},null,null,null,null,null,null,null,null,null,null,null,null,null,null,null,null,null,null,null,null,null,null,55,"2013-08-05","Paweł",{"$f":"260000*(1/4)","v":65000}]
[56,"2013-09-02","Paul",{"$f":"320000*(1/4)","v":80000},null,null,null,null,null,null,null,null,null,null,null,null,null,null,null,null,null,null,null,null,null,null,56,"2013-09-02","Paweł",{"$f":"320000*(1/4)","v":80000}]
[57,"2013-10-07","Paul",{"$f":"330000*(1/4)","v":82500},null,null,null,null,null,null,null,null,null,null,null,null,null,null,null,null,null,null,null,null,null,null,57,"2013-10-07","Paweł",{"$f":"330000*(1/4)","v":82500}]
[58,"2013-11-04","Paul",{"$f":"160000*(1/4)","v":40000},null,null,null,null,null,null,null,null,null,null,null,null,null,null,null,null,null,null,null,null,null,null,58,"2013-11-04","Paweł",{"$f":"160000*(1/4)","v":40000}]
[59,"2013-12-02","Paul",{"$f":"220000*(1/4)","v":55000},null,null,null,null,null,null,null,null,null,null,null,null,null,null,null,null,null,null,null,null,null,null,59,"2013-12-02","Paweł",{"$f":"220000*(1/4)","v":55000}]
[60,"2013-01-07","Randy",{"$f":"350000*(1/4)","v":87500},null,null,null,null,null,null,null,null,null,null,null,null,null,null,null,null,null,null,null,null,null,null,60,"2013-01-07","Rafał",{"$f":"350000*(1/4)","v":87500}]
[61,"2013-02-04","Randy",{"$f":"380000*(1/4)","v":95000},null,null,null,null,null,null,null,null,null,null,null,null,null,null,null,null,null,null,null,null,null,null,61,"2013-02-04","Rafał",{"$f":"380000*(1/4)","v":95000}]
[62,"2013-03-04","Randy",{"$f":"330000*(1/4)","v":82500},null,null,null,null,null,null,null,null,null,null,null,null,null,null,null,null,null,null,null,null,null,null,62,"2013-03-04","Rafał",{"$f":"330000*(1/4)","v":82500}]
[63,"2013-04-08","Randy",{"$f":"320000*(1/4)","v":80000},null,null,null,null,null,null,null,null,null,null,null,null,null,null,null,null,null,null,null,null,null,null,63,"2013-04-08","Rafał",{"$f":"320000*(1/4)","v":80000}]
[64,"2013-05-06","Randy",{"$f":"250000*(1/4)","v":62500},null,null,null,null,null,null,null,null,null,null,null,null,null,null,null,null,null,null,null,null,null,null,64,"2013-05-06","Rafał",{"$f":"250000*(1/4)","v":62500}]
[65,"2013-06-03","Randy",{"$f":"170000*(1/4)","v":42500},null,null,null,null,null,null,null,null,null,null,null,null,null,null,null,null,null,null,null,null,null,null,65,"2013-06-03","Rafał",{"$f":"170000*(1/4)","v":42500}]
[66,"2013-07-08","Randy",{"$f":"240000*(1/4)","v":60000},null,null,null,null,null,null,null,null,null,null,null,null,null,null,null,null,null,null,null,null,null,null,66,"2013-07-08","Rafał",{"$f":"240000*(1/4)","v":60000}]
[67,"2013-08-05","Randy",{"$f":"250000*(1/4)","v":62500},null,null,null,null,null,null,null,null,null,null,null,null,null,null,null,null,null,null,null,null,null,null,67,"2013-08-05","Rafał",{"$f":"250000*(1/4)","v":62500}]
[68,"2013-09-02","Randy",{"$f":"330000*(1/4)","v":82500},null,null,null,null,null,null,null,null,null,null,null,null,null,null,null,null,null,null,null,null,null,null,68,"2013-09-02","Rafał",{"$f":"330000*(1/4)","v":82500}]
[69,"2013-10-07","Randy",{"$f":"240000*(1/4)","v":60000},null,null,null,null,null,null,null,null,null,null,null,null,null,null,null,null,null,null,null,null,null,null,69,"2013-10-07","Rafał",{"$f":"240000*(1/4)","v":60000}]
[70,"2013-11-04","Randy",{"$f":"270000*(1/4)","v":67500},null,null,null,null,null,null,null,null,null,null,null,null,null,null,null,null,null,null,null,null,null,null,70,"2013-11-04","Rafał",{"$f":"270000*(1/4)","v":67500}]
[71,"2013-12-02","Randy",{"$f":"290000*(1/4)","v":72500},null,null,null,null,null,null,null,null,null,null,null,null,null,null,null,null,null,null,null,null,null,null,71,"2013-12-02","Rafał",{"$f":"290000*(1/4)","v":72500}]
[72,"2013-01-14","Bob",{"$f":"(300000*(1/4))-1500","v":73500},null,null,null,null,null,null,null,null,null,null,null,null,null,null,null,null,null,null,null,null,null,null,72,"2013-01-14","Robert",{"$f":"(300000*(1/4))-1500","v":73500}]
[73,"2013-02-11","Bob",{"$f":"(230000*(1/4))-1500","v":56000},null,null,null,null,null,null,null,null,null,null,null,null,null,null,null,null,null,null,null,null,null,null,73,"2013-02-11","Robert",{"$f":"(230000*(1/4))-1500","v":56000}]
[74,"2013-03-11","Bob",{"$f":"(390000*(1/4))-1500","v":96000},null,null,null,null,null,null,null,null,null,null,null,null,null,null,null,null,null,null,null,null,null,null,74,"2013-03-11","Robert",{"$f":"(390000*(1/4))-1500","v":96000}]
[75,"2013-04-15","Bob",{"$f":"(450000*(1/4))-1500","v":111000},null,null,null,null,null,null,null,null,null,null,null,null,null,null,null,null,null,null,null,null,null,null,75,"2013-04-15","Robert",{"$f":"(450000*(1/4))-1500","v":111000}]
[76,"2013-05-13","Bob",{"$f":"(300000*(1/4))-1500","v":73500},null,null,null,null,null,null,null,null,null,null,null,null,null,null,null,null,null,null,null,null,null,null,76,"2013-05-13","Robert",{"$f":"(300000*(1/4))-1500","v":73500}]
[77,"2013-06-10","Bob",{"$f":"(340000*(1/4))-1500","v":83500},null,null,null,null,null,null,null,null,null,null,null,null,null,null,null,null,null,null,null,null,null,null,77,"2013-06-10","Robert",{"$f":"(340000*(1/4))-1500","v":83500}]
[78,"2013-07-15","Bob",{"$f":"(240000*(1/4))-1500","v":58500},null,null,null,null,null,null,null,null,null,null,null,null,null,null,null,null,null,null,null,null,null,null,78,"2013-07-15","Robert",{"$f":"(240000*(1/4))-1500","v":58500}]
[79,"2013-08-12","Bob",{"$f":"(270000*(1/4))-1500","v":66000},null,null,null,null,null,null,null,null,null,null,null,null,null,null,null,null,null,null,null,null,null,null,79,"2013-08-12","Robert",{"$f":"(270000*(1/4))-1500","v":66000}]
[80,"2013-09-09","Bob",{"$f":"(340000*(1/4))-1500","v":83500},null,null,null,null,null,null,null,null,null,null,null,null,null,null,null,null,null,null,null,null,null,null,80,"2013-09-09","Robert",{"$f":"(340000*(1/4))-1500","v":83500}]
[81,"2013-10-14","Bob",{"$f":"(300000*(1/4))-1500","v":73500},null,null,null,null,null,null,null,null,null,null,null,null,null,null,null,null,null,null,null,null,null,null,81,"2013-10-14","Robert",{"$f":"(300000*(1/4))-1500","v":73500}]
[82,"2013-11-11","Bob",{"$f":"(310000*(1/4))-1500","v":76000},null,null,null,null,null,null,null,null,null,null,null,null,null,null,null,null,null,null,null,null,null,null,82,"2013-11-11","Robert",{"$f":"(310000*(1/4))-1500","v":76000}]
[83,"2013-12-09","Bob",{"$f":"(260000*(1/4))-1500","v":63500},null,null,null,null,null,null,null,null,null,null,null,null,null,null,null,null,null,null,null,null,null,null,83,"2013-12-09","Robert",{"$f":"(260000*(1/4))-1500","v":63500}]
[84,"2013-01-14","Frank",{"$f":"(270000*(1/4))-1500","v":66000},null,null,null,null,null,null,null,null,null,null,null,null,null,null,null,null,null,null,null,null,null,null,84,"2013-01-14","Franek",{"$f":"(270000*(1/4))-1500","v":66000}]
[85,"2013-02-11","Frank",{"$f":"(360000*(1/4))-1500","v":88500},null,null,null,null,null,null,null,null,null,null,null,null,null,null,null,null,null,null,null,null,null,null,85,"2013-02-11","Franek",{"$f":"(360000*(1/4))-1500","v":88500}]
[86,"2013-03-11","Frank",{"$f":"(280000*(1/4))-1500","v":68500},null,null,null,null,null,null,null,null,null,null,null,null,null,null,null,null,null,null,null,null,null,null,86,"2013-03-11","Franek",{"$f":"(280000*(1/4))-1500","v":68500}]
[87,"2013-04-15","Frank",{"$f":"(380000*(1/4))-1500","v":93500},null,null,null,null,null,null,null,null,null,null,null,null,null,null,null,null,null,null,null,null,null,null,87,"2013-04-15","Franek",{"$f":"(380000*(1/4))-1500","v":93500}]
[88,"2013-05-13","Frank",{"$f":"(340000*(1/4))-1500","v":83500},null,null,null,null,null,null,null,null,null,null,null,null,null,null,null,null,null,null,null,null,null,null,88,"2013-05-13","Franek",{"$f":"(340000*(1/4))-1500","v":83500}]
[89,"2013-06-10","Frank",{"$f":"(20000*(1/4))-1500","v":3500},null,null,null,null,null,null,null,null,null,null,null,null,null,null,null,null,null,null,null,null,null,null,89,"2013-06-10","Franek",{"$f":"(20000*(1/4))-1500","v":3500}]
[90,"2013-07-15","Frank",{"$f":"(280000*(1/4))-1500","v":68500},null,null,null,null,null,null,null,null,null,null,null,null,null,null,null,null,null,null,null,null,null,null,90,"2013-07-15","Franek",{"$f":"(280000*(1/4))-1500","v":68500}]
[91,"2013-08-12","Frank",{"$f":"(530000*(1/4))-1500","v":131000},null,null,null,null,null,null,null,null,null,null,null,null,null,null,null,null,null,null,null,null,null,null,91,"2013-08-12","Franek",{"$f":"(530000*(1/4))-1500","v":131000}]
[92,"2013-09-09","Frank",{"$f":"(170000*(1/4))-1500","v":41000},null,null,null,null,null,null,null,null,null,null,null,null,null,null,null,null,null,null,null,null,null,null,92,"2013-09-09","Franek",{"$f":"(170000*(1/4))-1500","v":41000}]
[93,"2013-10-14","Frank",{"$f":"(360000*(1/4))-1500","v":88500},null,null,null,null,null,null,null,null,null,null,null,null,null,null,null,null,null,null,null,null,null,null,93,"2013-10-14","Franek",{"$f":"(360000*(1/4))-1500","v":88500}]
[94,"2013-11-11","Frank",{"$f":"(340000*(1/4))-1500","v":83500},null,null,null,null,null,null,null,null,null,null,null,null,null,null,null,null,null,null,null,null,null,null,94,"2013-11-11","Franek",{"$f":"(340000*(1/4))-1500","v":83500}]
[95,"2013-12-09","Frank",{"$f":"(420000*(1/4))-1500","v":103500},null,null,null,null,null,null,null,null,null,null,null,null,null,null,null,null,null,null,null,null,null,null,95,"2013-12-09","Franek",{"$f":"(420000*(1/4))-1500","v":103500}]
[96,"2013-02-11","Jill",{"$f":"(260000*(1/4))-1500","v":63500},null,null,null,null,null,null,null,null,null,null,null,null,null,null,null,null,null,null,null,null,null,null,96,"2013-02-11","Joanna",{"$f":"(260000*(1/4))-1500","v":63500}]
[97,"2013-03-11","Jill",{"$f":"(340000*(1/4))-1500","v":83500},null,null,null,null,null,null,null,null,null,null,null,null,null,null,null,null,null,null,null,null,null,null,97,"2013-03-11","Joanna",{"$f":"(340000*(1/4))-1500","v":83500}]
[98,"2013-04-15","Jill",{"$f":"(230000*(1/4))-1500","v":56000},null,null,null,null,null,null,null,null,null,null,null,null,null,null,null,null,null,null,null,null,null,null,98,"2013-04-15","Joanna",{"$f":"(230000*(1/4))-1500","v":56000}]
[99,"2013-05-13","Jill",{"$f":"(510000*(1/4))-1500","v":126000},null,null,null,null,null,null,null,null,null,null,null,null,null,null,null,null,null,null,null,null,null,null,99,"2013-05-13","Joanna",{"$f":"(510000*(1/4))-1500","v":126000}]
[100,"2013-06-10","Jill",{"$f":"(290000*(1/4))-1500","v":71000},null,null,null,null,null,null,null,null,null,null,null,null,null,null,null,null,null,null,null,null,null,null,100,"2013-06-10","Joanna",{"$f":"(290000*(1/4))-1500","v":71000}]
[101,"2013-07-15","Jill",{"$f":"(240000*(1/4))-1500","v":58500},null,null,null,null,null,null,null,null,null,null,null,null,null,null,null,null,null,null,null,null,null,null,101,"2013-07-15","Joanna",{"$f":"(240000*(1/4))-1500","v":58500}]
[102,"2013-08-12","Jill",{"$f":"(430000*(1/4))-1500","v":106000},null,null,null,null,null,null,null,null,null,null,null,null,null,null,null,null,null,null,null,null,null,null,102,"2013-08-12","Joanna",{"$f":"(430000*(1/4))-1500","v":106000}]
[103,"2013-09-09","Jill",{"$f":"(300000*(1/4))-1500","v":73500},null,null,null,null,null,null,null,null,null,null,null,null,null,null,null,null,null,null,null,null,null,null,103,"2013-09-09","Joanna",{"$f":"(300000*(1/4))-1500","v":73500}]
[104,"2013-10-14","Jill",{"$f":"(180000*(1/4))-1500","v":43500},null,null,null,null,null,null,null,null,null,null,null,null,null,null,null,null,null,null,null,null,null,null,104,"2013-10-14","Joanna",{"$f":"(180000*(1/4))-1500","v":43500}]
[105,"2013-11-11","Jill",{"$f":"(280000*(1/4))-1500","v":68500},null,null,null,null,null,null,null,null,null,null,null,null,null,null,null,null,null,null,null,null,null,null,105,"2013-11-11","Joanna",{"$f":"(280000*(1/4))-1500","v":68500}]
[106,"2013-12-09","Jill",{"$f":"(190000*(1/4))-1500","v":46000},null,null,null,null,null,null,null,null,null,null,null,null,null,null,null,null,null,null,null,null,null,null,106,"2013-12-09","Joanna",{"$f":"(190000*(1/4))-1500","v":46000}]
[107,"2013-01-14","Mary",{"$f":"(310000*(1/4))-1500","v":76000},null,null,null,null,null,null,null,null,null,null,null,null,null,null,null,null,null,null,null,null,null,null,107,"2013-01-14","Maria",{"$f":"(310000*(1/4))-1500","v":76000}]
[108,"2013-02-11","Mary",{"$f":"(150000*(1/4))-1500","v":36000},null,null,null,null,null,null,null,null,null,null,null,null,null,null,null,null,null,null,null,null,null,null,108,"2013-02-11","Maria",{"$f":"(150000*(1/4))-1500","v":36000}]
[109,"2013-03-11","Mary",{"$f":"(250000*(1/4))-1500","v":61000},null,null,null,null,null,null,null,null,null,null,null,null,null,null,null,null,null,null,null,null,null,null,109,"2013-03-11","Maria",{"$f":"(250000*(1/4))-1500","v":61000}]
[110,"2013-04-15","Mary",{"$f":"(180000*(1/4))-1500","v":43500},null,null,null,null,null,null,null,null,null,null,null,null,null,null,null,null,null,null,null,null,null,null,110,"2013-04-15","Maria",{"$f":"(180000*(1/4))-1500","v":43500}]
[111,"2013-05-13","Mary",{"$f":"(280000*(1/4))-1500","v":68500},null,null,null,null,null,null,null,null,null,null,null,null,null,null,null,null,null,null,null,null,null,null,111,"2013-05-13","Maria",{"$f":"(280000*(1/4))-1500","v":68500}]
[112,"2013-06-10","Mary",{"$f":"(350000*(1/4))-1500","v":86000},null,null,null,null,null,null,null,null,null,null,null,null,null,null,null,null,null,null,null,null,null,null,112,"2013-06-10","Maria",{"$f":"(350000*(1/4))-1500","v":86000}]
[113,"2013-07-15","Mary",{"$f":"(400000*(1/4))-1500","v":98500},null,null,null,null,null,null,null,null,null,null,null,null,null,null,null,null,null,null,null,null,null,null,113,"2013-07-15","Maria",{"$f":"(400000*(1/4))-1500","v":98500}]
[114,"2013-08-12","Mary",{"$f":"(320000*(1/4))-1500","v":78500},null,null,null,null,null,null,null,null,null,null,null,null,null,null,null,null,null,null,null,null,null,null,114,"2013-08-12","Maria",{"$f":"(320000*(1/4))-1500","v":78500}]
[115,"2013-09-09","Mary",{"$f":"(330000*(1/4))-1500","v":81000},null,null,null,null,null,null,null,null,null,null,null,null,null,null,null,null,null,null,null,null,null,null,115,"2013-09-09","Maria",{"$f":"(330000*(1/4))-1500","v":81000}]
[116,"2013-10-14","Mary",{"$f":"(430000*(1/4))-1500","v":106000},null,null,null,null,null,null,null,null,null,null,null,null,null,null,null,null,null,null,null,null,null,null,116,"2013-10-14","Maria",{"$f":"(430000*(1/4))-1500","v":106000}]
[117,"2013-11-11","Mary",{"$f":"(250000*(1/4))-1500","v":61000},null,null,null,null,null,null,null,null,null,null,null,null,null,null,null,null,null,null,null,null,null,null,117,"2013-11-11","Maria",{"$f":"(250000*(1/4))-1500","v":61000}]
[118,"2013-12-09","Mary",{"$f":"(140000*(1/4))-1500","v":33500},null,null,null,null,null,null,null,null,null,null,null,null,null,null,null,null,null,null,null,null,null,null,118,"2013-12-09","Maria",{"$f":"(140000*(1/4))-1500","v":33500}]
[119,"2013-01-14","Paul",{"$f":"(430000*(1/4))-1500","v":106000},null,null,null,null,null,null,null,null,null,null,null,null,null,null,null,null,null,null,null,null,null,null,119,"2013-01-14","Paweł",{"$f":"(430000*(1/4))-1500","v":106000}]
[120,"2013-02-11","Paul",{"$f":"(300000*(1/4))-1500","v":73500},null,null,null,null,null,null,null,null,null,null,null,null,null,null,null,null,null,null,null,null,null,null,120,"2013-02-11","Paweł",{"$f":"(300000*(1/4))-1500","v":73500}]
[121,"2013-03-11","Paul",{"$f":"(470000*(1/4))-1500","v":116000},null,null,null,null,null,null,null,null,null,null,null,null,null,null,null,null,null,null,null,null,null,null,121,"2013-03-11","Paweł",{"$f":"(470000*(1/4))-1500","v":116000}]
[122,"2013-04-15","Paul",{"$f":"(300000*(1/4))-1500","v":73500},null,null,null,null,null,null,null,null,null,null,null,null,null,null,null,null,null,null,null,null,null,null,122,"2013-04-15","Paweł",{"$f":"(300000*(1/4))-1500","v":73500}]
[123,"2013-05-13","Paul",{"$f":"(370000*(1/4))-1500","v":91000},null,null,null,null,null,null,null,null,null,null,null,null,null,null,null,null,null,null,null,null,null,null,123,"2013-05-13","Paweł",{"$f":"(370000*(1/4))-1500","v":91000}]
[124,"2013-06-10","Paul",{"$f":"(360000*(1/4))-1500","v":88500},null,null,null,null,null,null,null,null,null,null,null,null,null,null,null,null,null,null,null,null,null,null,124,"2013-06-10","Paweł",{"$f":"(360000*(1/4))-1500","v":88500}]
[125,"2013-07-15","Paul",{"$f":"(300000*(1/4))-1500","v":73500},null,null,null,null,null,null,null,null,null,null,null,null,null,null,null,null,null,null,null,null,null,null,125,"2013-07-15","Paweł",{"$f":"(300000*(1/4))-1500","v":73500}]
[126,"2013-08-12","Paul",{"$f":"(260000*(1/4))-1500","v":63500},null,null,null,null,null,null,null,null,null,null,null,null,null,null,null,null,null,null,null,null,null,null,126,"2013-08-12","Paweł",{"$f":"(260000*(1/4))-1500","v":63500}]
[127,"2013-09-09","Paul",{"$f":"(320000*(1/4))-1500","v":78500},null,null,null,null,null,null,null,null,null,null,null,null,null,null,null,null,null,null,null,null,null,null,127,"2013-09-09","Paweł",{"$f":"(320000*(1/4))-1500","v":78500}]
[128,"2013-10-14","Paul",{"$f":"(330000*(1/4))-1500","v":81000},null,null,null,null,null,null,null,null,null,null,null,null,null,null,null,null,null,null,null,null,null,null,128,"2013-10-14","Paweł",{"$f":"(330000*(1/4))-1500","v":81000}]
[129,"2013-11-11","Paul",{"$f":"(160000*(1/4))-1500","v":38500},null,null,null,null,null,null,null,null,null,null,null,null,null,null,null,null,null,null,null,null,null,null,129,"2013-11-11","Paweł",{"$f":"(160000*(1/4))-1500","v":38500}]
[130,"2013-12-09","Paul",{"$f":"(220000*(1/4))-1500","v":53500},null,null,null,null,null,null,null,null,null,null,null,null,null,null,null,null,null,null,null,null,null,null,130,"2013-12-09","Paweł",{"$f":"(220000*(1/4))-1500","v":53500}]
[131,"2013-01-14","Randy",{"$f":"(350000*(1/4))-1500","v":86000},null,null,null,null,null,null,null,null,null,null,null,null,null,null,null,null,null,null,null,null,null,null,131,"2013-01-14","Rafał",{"$f":"(350000*(1/4))-1500","v":86000}]
[132,"2013-02-11","Randy",{"$f":"(380000*(1/4))-1500","v":93500},null,null,null,null,null,null,null,null,null,null,null,null,null,null,null,null,null,null,null,null,null,null,132,"2013-02-11","Rafał",{"$f":"(380000*(1/4))-1500","v":93500}]
[133,"2013-03-11","Randy",{"$f":"(330000*(1/4))-1500","v":81000},null,null,null,null,null,null,null,null,null,null,null,null,null,null,null,null,null,null,null,null,null,null,133,"2013-03-11","Rafał",{"$f":"(330000*(1/4))-1500","v":81000}]
[134,"2013-04-15","Randy",{"$f":"(320000*(1/4))-1500","v":78500},null,null,null,null,null,null,null,null,null,null,null,null,null,null,null,null,null,null,null,null,null,null,134,"2013-04-15","Rafał",{"$f":"(320000*(1/4))-1500","v":78500}]
[135,"2013-05-13","Randy",{"$f":"(250000*(1/4))-1500","v":61000},null,null,null,null,null,null,null,null,null,null,null,null,null,null,null,null,null,null,null,null,null,null,135,"2013-05-13","Rafał",{"$f":"(250000*(1/4))-1500","v":61000}]
[136,"2013-06-10","Randy",{"$f":"(170000*(1/4))-1500","v":41000},null,null,null,null,null,null,null,null,null,null,null,null,null,null,null,null,null,null,null,null,null,null,136,"2013-06-10","Rafał",{"$f":"(170000*(1/4))-1500","v":41000}]
[137,"2013-07-15","Randy",{"$f":"(240000*(1/4))-1500","v":58500},null,null,null,null,null,null,null,null,null,null,null,null,null,null,null,null,null,null,null,null,null,null,137,"2013-07-15","Rafał",{"$f":"(240000*(1/4))-1500","v":58500}]
[138,"2013-08-12","Randy",{"$f":"(250000*(1/4))-1500","v":61000},null,null,null,null,null,null,null,null,null,null,null,null,null,null,null,null,null,null,null,null,null,null,138,"2013-08-12","Rafał",{"$f":"(250000*(1/4))-1500","v":61000}]
[139,"2013-09-09","Randy",{"$f":"(330000*(1/4))-1500","v":81000},null,null,null,null,null,null,null,null,null,null,null,null,null,null,null,null,null,null,null,null,null,null,139,"2013-09-09","Rafał",{"$f":"(330000*(1/4))-1500","v":81000}]
[140,"2013-10-14","Randy",{"$f":"(240000*(1/4))-1500","v":58500},null,null,null,null,null,null,null,null,null,null,null,null,null,null,null,null,null,null,null,null,null,null,140,"2013-10-14","Rafał",{"$f":"(240000*(1/4))-1500","v":58500}]
[141,"2013-11-11","Randy",{"$f":"(270000*(1/4))-1500","v":66000},null,null,null,null,null,null,null,null,null,null,null,null,null,null,null,null,null,null,null,null,null,null,141,"2013-11-11","Rafał",{"$f":"(270000*(1/4))-1500","v":66000}]
[142,"2013-12-09","Randy",{"$f":"(290000*(1/4))-1500","v":71000},null,null,null,null,null,null,null,null,null,null,null,null,null,null,null,null,null,null,null,null,null,null,142,"2013-12-09","Rafał",{"$f":"(290000*(1/4))-1500","v":71000}]
[143,"2013-01-21","Bob",{"$f":"(300000*(1/4))+1500","v":76500},null,null,null,null,null,null,null,null,null,null,null,null,null,null,null,null,null,null,null,null,null,null,143,"2013-01-21","Robert",{"$f":"(300000*(1/4))+1500","v":76500}]
[144,"2013-02-18","Bob",{"$f":"(230000*(1/4))+1500","v":59000},null,null,null,null,null,null,null,null,null,null,null,null,null,null,null,null,null,null,null,null,null,null,144,"2013-02-18","Robert",{"$f":"(230000*(1/4))+1500","v":59000}]
[145,"2013-03-18","Bob",{"$f":"(390000*(1/4))+1500","v":99000},null,null,null,null,null,null,null,null,null,null,null,null,null,null,null,null,null,null,null,null,null,null,145,"2013-03-18","Robert",{"$f":"(390000*(1/4))+1500","v":99000}]
[146,"2013-04-22","Bob",{"$f":"(450000*(1/4))+1500","v":114000},null,null,null,null,null,null,null,null,null,null,null,null,null,null,null,null,null,null,null,null,null,null,146,"2013-04-22","Robert",{"$f":"(450000*(1/4))+1500","v":114000}]
[147,"2013-05-20","Bob",{"$f":"(300000*(1/4))+1500","v":76500},null,null,null,null,null,null,null,null,null,null,null,null,null,null,null,null,null,null,null,null,null,null,147,"2013-05-20","Robert",{"$f":"(300000*(1/4))+1500","v":76500}]
[148,"2013-06-17","Bob",{"$f":"(340000*(1/4))+1500","v":86500},null,null,null,null,null,null,null,null,null,null,null,null,null,null,null,null,null,null,null,null,null,null,148,"2013-06-17","Robert",{"$f":"(340000*(1/4))+1500","v":86500}]
[149,"2013-07-22","Bob",{"$f":"(240000*(1/4))+1500","v":61500},null,null,null,null,null,null,null,null,null,null,null,null,null,null,null,null,null,null,null,null,null,null,149,"2013-07-22","Robert",{"$f":"(240000*(1/4))+1500","v":61500}]
[150,"2013-08-19","Bob",{"$f":"(270000*(1/4))+1500","v":69000},null,null,null,null,null,null,null,null,null,null,null,null,null,null,null,null,null,null,null,null,null,null,150,"2013-08-19","Robert",{"$f":"(270000*(1/4))+1500","v":69000}]
[151,"2013-09-16","Bob",{"$f":"(340000*(1/4))+1500","v":86500},null,null,null,null,null,null,null,null,null,null,null,null,null,null,null,null,null,null,null,null,null,null,151,"2013-09-16","Robert",{"$f":"(340000*(1/4))+1500","v":86500}]
[152,"2013-10-21","Bob",{"$f":"(300000*(1/4))+1500","v":76500},null,null,null,null,null,null,null,null,null,null,null,null,null,null,null,null,null,null,null,null,null,null,152,"2013-10-21","Robert",{"$f":"(300000*(1/4))+1500","v":76500}]
[153,"2013-11-18","Bob",{"$f":"(310000*(1/4))+1500","v":79000},null,null,null,null,null,null,null,null,null,null,null,null,null,null,null,null,null,null,null,null,null,null,153,"2013-11-18","Robert",{"$f":"(310000*(1/4))+1500","v":79000}]
[154,"2013-12-16","Bob",{"$f":"(260000*(1/4))+1500","v":66500},null,null,null,null,null,null,null,null,null,null,null,null,null,null,null,null,null,null,null,null,null,null,154,"2013-12-16","Robert",{"$f":"(260000*(1/4))+1500","v":66500}]
[155,"2013-01-21","Frank",{"$f":"(270000*(1/4))+1500","v":69000},null,null,null,null,null,null,null,null,null,null,null,null,null,null,null,null,null,null,null,null,null,null,155,"2013-01-21","Franek",{"$f":"(270000*(1/4))+1500","v":69000}]
[156,"2013-02-18","Frank",{"$f":"(360000*(1/4))+1500","v":91500},null,null,null,null,null,null,null,null,null,null,null,null,null,null,null,null,null,null,null,null,null,null,156,"2013-02-18","Franek",{"$f":"(360000*(1/4))+1500","v":91500}]
[157,"2013-03-18","Frank",{"$f":"(280000*(1/4))+1500","v":71500},null,null,null,null,null,null,null,null,null,null,null,null,null,null,null,null,null,null,null,null,null,null,157,"2013-03-18","Franek",{"$f":"(280000*(1/4))+1500","v":71500}]
[158,"2013-04-22","Frank",{"$f":"(380000*(1/4))+1500","v":96500},null,null,null,null,null,null,null,null,null,null,null,null,null,null,null,null,null,null,null,null,null,null,158,"2013-04-22","Franek",{"$f":"(380000*(1/4))+1500","v":96500}]
[159,"2013-05-20","Frank",{"$f":"(340000*(1/4))+1500","v":86500},null,null,null,null,null,null,null,null,null,null,null,null,null,null,null,null,null,null,null,null,null,null,159,"2013-05-20","Franek",{"$f":"(340000*(1/4))+1500","v":86500}]
[160,"2013-06-17","Frank",{"$f":"(20000*(1/4))+1500","v":6500},null,null,null,null,null,null,null,null,null,null,null,null,null,null,null,null,null,null,null,null,null,null,160,"2013-06-17","Franek",{"$f":"(20000*(1/4))+1500","v":6500}]
[161,"2013-07-22","Frank",{"$f":"(280000*(1/4))+1500","v":71500},null,null,null,null,null,null,null,null,null,null,null,null,null,null,null,null,null,null,null,null,null,null,161,"2013-07-22","Franek",{"$f":"(280000*(1/4))+1500","v":71500}]
[162,"2013-08-19","Frank",{"$f":"(530000*(1/4))+1500","v":134000},null,null,null,null,null,null,null,null,null,null,null,null,null,null,null,null,null,null,null,null,null,null,162,"2013-08-19","Franek",{"$f":"(530000*(1/4))+1500","v":134000}]
[163,"2013-09-16","Frank",{"$f":"(170000*(1/4))+1500","v":44000},null,null,null,null,null,null,null,null,null,null,null,null,null,null,null,null,null,null,null,null,null,null,163,"2013-09-16","Franek",{"$f":"(170000*(1/4))+1500","v":44000}]
[164,"2013-10-21","Frank",{"$f":"(360000*(1/4))+1500","v":91500},null,null,null,null,null,null,null,null,null,null,null,null,null,null,null,null,null,null,null,null,null,null,164,"2013-10-21","Franek",{"$f":"(360000*(1/4))+1500","v":91500}]
[165,"2013-11-18","Frank",{"$f":"(340000*(1/4))+1500","v":86500},null,null,null,null,null,null,null,null,null,null,null,null,null,null,null,null,null,null,null,null,null,null,165,"2013-11-18","Franek",{"$f":"(340000*(1/4))+1500","v":86500}]
[166,"2013-12-16","Frank",{"$f":"(420000*(1/4))+1500","v":106500},null,null,null,null,null,null,null,null,null,null,null,null,null,null,null,null,null,null,null,null,null,null,166,"2013-12-16","Franek",{"$f":"(420000*(1/4))+1500","v":106500}]
[167,"2013-02-18","Jill",{"$f":"(260000*(1/4))+1500","v":66500},null,null,null,null,null,null,null,null,null,null,null,null,null,null,null,null,null,null,null,null,null,null,167,"2013-02-18","Joanna",{"$f":"(260000*(1/4))+1500","v":66500}]
[168,"2013-03-18","Jill",{"$f":"(340000*(1/4))+1500","v":86500},null,null,null,null,null,null,null,null,null,null,null,null,null,null,null,null,null,null,null,null,null,null,168,"2013-03-18","Joanna",{"$f":"(340000*(1/4))+1500","v":86500}]
[169,"2013-04-22","Jill",{"$f":"(230000*(1/4))+1500","v":59000},null,null,null,null,null,null,null,null,null,null,null,null,null,null,null,null,null,null,null,null,null,null,169,"2013-04-22","Joanna",{"$f":"(230000*(1/4))+1500","v":59000}]
[170,"2013-05-20","Jill",{"$f":"(510000*(1/4))+1500","v":129000},null,null,null,null,null,null,null,null,null,null,null,null,null,null,null,null,null,null,null,null,null,null,170,"2013-05-20","Joanna",{"$f":"(510000*(1/4))+1500","v":129000}]
[171,"2013-06-17","Jill",{"$f":"(290000*(1/4))+1500","v":74000},null,null,null,null,null,null,null,null,null,null,null,null,null,null,null,null,null,null,null,null,null,null,171,"2013-06-17","Joanna",{"$f":"(290000*(1/4))+1500","v":74000}]
[172,"2013-07-22","Jill",{"$f":"(240000*(1/4))+1500","v":61500},null,null,null,null,null,null,null,null,null,null,null,null,null,null,null,null,null,null,null,null,null,null,172,"2013-07-22","Joanna",{"$f":"(240000*(1/4))+1500","v":61500}]
[173,"2013-08-19","Jill",{"$f":"(430000*(1/4))+1500","v":109000},null,null,null,null,null,null,null,null,null,null,null,null,null,null,null,null,null,null,null,null,null,null,173,"2013-08-19","Joanna",{"$f":"(430000*(1/4))+1500","v":109000}]
[174,"2013-09-16","Jill",{"$f":"(300000*(1/4))+1500","v":76500},null,null,null,null,null,null,null,null,null,null,null,null,null,null,null,null,null,null,null,null,null,null,174,"2013-09-16","Joanna",{"$f":"(300000*(1/4))+1500","v":76500}]
[175,"2013-10-21","Jill",{"$f":"(180000*(1/4))+1500","v":46500},null,null,null,null,null,null,null,null,null,null,null,null,null,null,null,null,null,null,null,null,null,null,175,"2013-10-21","Joanna",{"$f":"(180000*(1/4))+1500","v":46500}]
[176,"2013-11-18","Jill",{"$f":"(280000*(1/4))+1500","v":71500},null,null,null,null,null,null,null,null,null,null,null,null,null,null,null,null,null,null,null,null,null,null,176,"2013-11-18","Joanna",{"$f":"(280000*(1/4))+1500","v":71500}]
[177,"2013-12-16","Jill",{"$f":"(190000*(1/4))+1500","v":49000},null,null,null,null,null,null,null,null,null,null,null,null,null,null,null,null,null,null,null,null,null,null,177,"2013-12-16","Joanna",{"$f":"(190000*(1/4))+1500","v":49000}]
[178,"2013-01-21","Mary",{"$f":"(310000*(1/4))+1500","v":79000},null,null,null,null,null,null,null,null,null,null,null,null,null,null,null,null,null,null,null,null,null,null,178,"2013-01-21","Maria",{"$f":"(310000*(1/4))+1500","v":79000}]
[179,"2013-02-18","Mary",{"$f":"(150000*(1/4))+1500","v":39000},null,null,null,null,null,null,null,null,null,null,null,null,null,null,null,null,null,null,null,null,null,null,179,"2013-02-18","Maria",{"$f":"(150000*(1/4))+1500","v":39000}]
[180,"2013-03-18","Mary",{"$f":"(250000*(1/4))+1500","v":64000},null,null,null,null,null,null,null,null,null,null,null,null,null,null,null,null,null,null,null,null,null,null,180,"2013-03-18","Maria",{"$f":"(250000*(1/4))+1500","v":64000}]
[181,"2013-04-22","Mary",{"$f":"(180000*(1/4))+1500","v":46500},null,null,null,null,null,null,null,null,null,null,null,null,null,null,null,null,null,null,null,null,null,null,181,"2013-04-22","Maria",{"$f":"(180000*(1/4))+1500","v":46500}]
[182,"2013-05-20","Mary",{"$f":"(280000*(1/4))+1500","v":71500},null,null,null,null,null,null,null,null,null,null,null,null,null,null,null,null,null,null,null,null,null,null,182,"2013-05-20","Maria",{"$f":"(280000*(1/4))+1500","v":71500}]
[183,"2013-06-17","Mary",{"$f":"(350000*(1/4))+1500","v":89000},null,null,null,null,null,null,null,null,null,null,null,null,null,null,null,null,null,null,null,null,null,null,183,"2013-06-17","Maria",{"$f":"(350000*(1/4))+1500","v":89000}]
[184,"2013-07-22","Mary",{"$f":"(400000*(1/4))+1500","v":101500},null,null,null,null,null,null,null,null,null,null,null,null,null,null,null,null,null,null,null,null,null,null,184,"2013-07-22","Maria",{"$f":"(400000*(1/4))+1500","v":101500}]
[185,"2013-08-19","Mary",{"$f":"(320000*(1/4))+1500","v":81500},null,null,null,null,null,null,null,null,null,null,null,null,null,null,null,null,null,null,null,null,null,null,185,"2013-08-19","Maria",{"$f":"(320000*(1/4))+1500","v":81500}]
[186,"2013-09-16","Mary",{"$f":"(330000*(1/4))+1500","v":84000},null,null,null,null,null,null,null,null,null,null,null,null,null,null,null,null,null,null,null,null,null,null,186,"2013-09-16","Maria",{"$f":"(330000*(1/4))+1500","v":84000}]
[187,"2013-10-21","Mary",{"$f":"(430000*(1/4))+1500","v":109000},null,null,null,null,null,null,null,null,null,null,null,null,null,null,null,null,null,null,null,null,null,null,187,"2013-10-21","Maria",{"$f":"(430000*(1/4))+1500","v":109000}]
[188,"2013-11-18","Mary",{"$f":"(250000*(1/4))+1500","v":64000},null,null,null,null,null,null,null,null,null,null,null,null,null,null,null,null,null,null,null,null,null,null,188,"2013-11-18","Maria",{"$f":"(250000*(1/4))+1500","v":64000}]
[189,"2013-12-16","Mary",{"$f":"(140000*(1/4))+1500","v":36500},null,null,null,null,null,null,null,null,null,null,null,null,null,null,null,null,null,null,null,null,null,null,189,"2013-12-16","Maria",{"$f":"(140000*(1/4))+1500","v":36500}]
[190,"2013-01-21","Paul",{"$f":"(430000*(1/4))+1500","v":109000},null,null,null,null,null,null,null,null,null,null,null,null,null,null,null,null,null,null,null,null,null,null,190,"2013-01-21","Paweł",{"$f":"(430000*(1/4))+1500","v":109000}]
[191,"2013-02-18","Paul",{"$f":"(300000*(1/4))+1500","v":76500},null,null,null,null,null,null,null,null,null,null,null,null,null,null,null,null,null,null,null,null,null,null,191,"2013-02-18","Paweł",{"$f":"(300000*(1/4))+1500","v":76500}]
[192,"2013-03-18","Paul",{"$f":"(470000*(1/4))+1500","v":119000},null,null,null,null,null,null,null,null,null,null,null,null,null,null,null,null,null,null,null,null,null,null,192,"2013-03-18","Paweł",{"$f":"(470000*(1/4))+1500","v":119000}]
[193,"2013-04-22","Paul",{"$f":"(300000*(1/4))+1500","v":76500},null,null,null,null,null,null,null,null,null,null,null,null,null,null,null,null,null,null,null,null,null,null,193,"2013-04-22","Paweł",{"$f":"(300000*(1/4))+1500","v":76500}]
[194,"2013-05-20","Paul",{"$f":"(370000*(1/4))+1500","v":94000},null,null,null,null,null,null,null,null,null,null,null,null,null,null,null,null,null,null,null,null,null,null,194,"2013-05-20","Paweł",{"$f":"(370000*(1/4))+1500","v":94000}]
[195,"2013-06-17","Paul",{"$f":"(360000*(1/4))+1500","v":91500},null,null,null,null,null,null,null,null,null,null,null,null,null,null,null,null,null,null,null,null,null,null,195,"2013-06-17","Paweł",{"$f":"(360000*(1/4))+1500","v":91500}]
[196,"2013-07-22","Paul",{"$f":"(300000*(1/4))+1500","v":76500},null,null,null,null,null,null,null,null,null,null,null,null,null,null,null,null,null,null,null,null,null,null,196,"2013-07-22","Paweł",{"$f":"(300000*(1/4))+1500","v":76500}]
[197,"2013-08-19","Paul",{"$f":"(260000*(1/4))+1500","v":66500},null,null,null,null,null,null,null,null,null,null,null,null,null,null,null,null,null,null,null,null,null,null,197,"2013-08-19","Paweł",{"$f":"(260000*(1/4))+1500","v":66500}]
[198,"2013-09-16","Paul",{"$f":"(320000*(1/4))+1500","v":81500},null,null,null,null,null,null,null,null,null,null,null,null,null,null,null,null,null,null,null,null,null,null,198,"2013-09-16","Paweł",{"$f":"(320000*(1/4))+1500","v":81500}]
[199,"2013-10-21","Paul",{"$f":"(330000*(1/4))+1500","v":84000},null,null,null,null,null,null,null,null,null,null,null,null,null,null,null,null,null,null,null,null,null,null,199,"2013-10-21","Paweł",{"$f":"(330000*(1/4))+1500","v":84000}]
[200,"2013-11-18","Paul",{"$f":"(160000*(1/4))+1500","v":41500},null,null,null,null,null,null,null,null,null,null,null,null,null,null,null,null,null,null,null,null,null,null,200,"2013-11-18","Paweł",{"$f":"(160000*(1/4))+1500","v":41500}]
[201,"2013-12-16","Paul",{"$f":"(220000*(1/4))+1500","v":56500},null,null,null,null,null,null,null,null,null,null,null,null,null,null,null,null,null,null,null,null,null,null,201,"2013-12-16","Paweł",{"$f":"(220000*(1/4))+1500","v":56500}]
[202,"2013-01-21","Randy",{"$f":"(350000*(1/4))+1500","v":89000},null,null,null,null,null,null,null,null,null,null,null,null,null,null,null,null,null,null,null,null,null,null,202,"2013-01-21","Rafał",{"$f":"(350000*(1/4))+1500","v":89000}]
[203,"2013-02-18","Randy",{"$f":"(380000*(1/4))+1500","v":96500},null,null,null,null,null,null,null,null,null,null,null,null,null,null,null,null,null,null,null,null,null,null,203,"2013-02-18","Rafał",{"$f":"(380000*(1/4))+1500","v":96500}]
[204,"2013-03-18","Randy",{"$f":"(330000*(1/4))+1500","v":84000},null,null,null,null,null,null,null,null,null,null,null,null,null,null,null,null,null,null,null,null,null,null,204,"2013-03-18","Rafał",{"$f":"(330000*(1/4))+1500","v":84000}]
[205,"2013-04-22","Randy",{"$f":"(320000*(1/4))+1500","v":81500},null,null,null,null,null,null,null,null,null,null,null,null,null,null,null,null,null,null,null,null,null,null,205,"2013-04-22","Rafał",{"$f":"(320000*(1/4))+1500","v":81500}]
[206,"2013-05-20","Randy",{"$f":"(250000*(1/4))+1500","v":64000},null,null,null,null,null,null,null,null,null,null,null,null,null,null,null,null,null,null,null,null,null,null,206,"2013-05-20","Rafał",{"$f":"(250000*(1/4))+1500","v":64000}]
[207,"2013-06-17","Randy",{"$f":"(170000*(1/4))+1500","v":44000},null,null,null,null,null,null,null,null,null,null,null,null,null,null,null,null,null,null,null,null,null,null,207,"2013-06-17","Rafał",{"$f":"(170000*(1/4))+1500","v":44000}]
[208,"2013-07-22","Randy",{"$f":"(240000*(1/4))+1500","v":61500},null,null,null,null,null,null,null,null,null,null,null,null,null,null,null,null,null,null,null,null,null,null,208,"2013-07-22","Rafał",{"$f":"(240000*(1/4))+1500","v":61500}]
[209,"2013-08-19","Randy",{"$f":"(250000*(1/4))+1500","v":64000},null,null,null,null,null,null,null,null,null,null,null,null,null,null,null,null,null,null,null,null,null,null,209,"2013-08-19","Rafał",{"$f":"(250000*(1/4))+1500","v":64000}]
[210,"2013-09-16","Randy",{"$f":"(330000*(1/4))+1500","v":84000},null,null,null,null,null,null,null,null,null,null,null,null,null,null,null,null,null,null,null,null,null,null,210,"2013-09-16","Rafał",{"$f":"(330000*(1/4))+1500","v":84000}]
[211,"2013-10-21","Randy",{"$f":"(240000*(1/4))+1500","v":61500},null,null,null,null,null,null,null,null,null,null,null,null,null,null,null,null,null,null,null,null,null,null,211,"2013-10-21","Rafał",{"$f":"(240000*(1/4))+1500","v":61500}]
[212,"2013-11-18","Randy",{"$f":"(270000*(1/4))+1500","v":69000},null,null,null,null,null,null,null,null,null,null,null,null,null,null,null,null,null,null,null,null,null,null,212,"2013-11-18","Rafał",{"$f":"(270000*(1/4))+1500","v":69000}]
[213,"2013-12-16","Randy",{"$f":"(290000*(1/4))+1500","v":74000},null,null,null,null,null,null,null,null,null,null,null,null,null,null,null,null,null,null,null,null,null,null,213,"2013-12-16","Rafał",{"$f":"(290000*(1/4))+1500","v":74000}]
[214,"2013-01-28","Bob",{"$f":"300000*(1/4)","v":75000},null,null,null,null,null,null,null,null,null,null,null,null,null,null,null,null,null,null,null,null,null,null,214,"2013-01-28","Robert",{"$f":"300000*(1/4)","v":75000}]
[215,"2013-02-25","Bob",{"$f":"230000*(1/4)","v":57500},null,null,null,null,null,null,null,null,null,null,null,null,null,null,null,null,null,null,null,null,null,null,215,"2013-02-25","Robert",{"$f":"230000*(1/4)","v":57500}]
[216,"2013-03-25","Bob",{"$f":"390000*(1/4)","v":97500},null,null,null,null,null,null,null,null,null,null,null,null,null,null,null,null,null,null,null,null,null,null,216,"2013-03-25","Robert",{"$f":"390000*(1/4)","v":97500}]
[217,"2013-04-29","Bob",{"$f":"450000*(1/4)","v":112500},null,null,null,null,null,null,null,null,null,null,null,null,null,null,null,null,null,null,null,null,null,null,217,"2013-04-29","Robert",{"$f":"450000*(1/4)","v":112500}]
[218,"2013-05-27","Bob",{"$f":"300000*(1/4)","v":75000},null,null,null,null,null,null,null,null,null,null,null,null,null,null,null,null,null,null,null,null,null,null,218,"2013-05-27","Robert",{"$f":"300000*(1/4)","v":75000}]
[219,"2013-06-24","Bob",{"$f":"340000*(1/4)","v":85000},null,null,null,null,null,null,null,null,null,null,null,null,null,null,null,null,null,null,null,null,null,null,219,"2013-06-24","Robert",{"$f":"340000*(1/4)","v":85000}]
[220,"2013-07-29","Bob",{"$f":"240000*(1/4)","v":60000},null,null,null,null,null,null,null,null,null,null,null,null,null,null,null,null,null,null,null,null,null,null,220,"2013-07-29","Robert",{"$f":"240000*(1/4)","v":60000}]
[221,"2013-08-26","Bob",{"$f":"270000*(1/4)","v":67500},null,null,null,null,null,null,null,null,null,null,null,null,null,null,null,null,null,null,null,null,null,null,221,"2013-08-26","Robert",{"$f":"270000*(1/4)","v":67500}]
[222,"2013-09-23","Bob",{"$f":"340000*(1/4)","v":85000},null,null,null,null,null,null,null,null,null,null,null,null,null,null,null,null,null,null,null,null,null,null,222,"2013-09-23","Robert",{"$f":"340000*(1/4)","v":85000}]
[223,"2013-10-28","Bob",{"$f":"300000*(1/4)","v":75000},null,null,null,null,null,null,null,null,null,null,null,null,null,null,null,null,null,null,null,null,null,null,223,"2013-10-28","Robert",{"$f":"300000*(1/4)","v":75000}]
[224,"2013-11-25","Bob",{"$f":"310000*(1/4)","v":77500},null,null,null,null,null,null,null,null,null,null,null,null,null,null,null,null,null,null,null,null,null,null,224,"2013-11-25","Robert",{"$f":"310000*(1/4)","v":77500}]
[225,"2013-12-23","Bob",{"$f":"260000*(1/4)","v":65000},null,null,null,null,null,null,null,null,null,null,null,null,null,null,null,null,null,null,null,null,null,null,225,"2013-12-23","Robert",{"$f":"260000*(1/4)","v":65000}]
[226,"2013-01-28","Frank",{"$f":"270000*(1/4)","v":67500},null,null,null,null,null,null,null,null,null,null,null,null,null,null,null,null,null,null,null,null,null,null,226,"2013-01-28","Franek",{"$f":"270000*(1/4)","v":67500}]
[227,"2013-02-25","Frank",{"$f":"360000*(1/4)","v":90000},null,null,null,null,null,null,null,null,null,null,null,null,null,null,null,null,null,null,null,null,null,null,227,"2013-02-25","Franek",{"$f":"360000*(1/4)","v":90000}]
[228,"2013-03-25","Frank",{"$f":"280000*(1/4)","v":70000},null,null,null,null,null,null,null,null,null,null,null,null,null,null,null,null,null,null,null,null,null,null,228,"2013-03-25","Franek",{"$f":"280000*(1/4)","v":70000}]
[229,"2013-04-29","Frank",{"$f":"380000*(1/4)","v":95000},null,null,null,null,null,null,null,null,null,null,null,null,null,null,null,null,null,null,null,null,null,null,229,"2013-04-29","Franek",{"$f":"380000*(1/4)","v":95000}]
[230,"2013-05-27","Frank",{"$f":"340000*(1/4)","v":85000},null,null,null,null,null,null,null,null,null,null,null,null,null,null,null,null,null,null,null,null,null,null,230,"2013-05-27","Franek",{"$f":"340000*(1/4)","v":85000}]
[231,"2013-06-24","Frank",{"$f":"20000*(1/4)","v":5000},null,null,null,null,null,null,null,null,null,null,null,null,null,null,null,null,null,null,null,null,null,null,231,"2013-06-24","Franek",{"$f":"20000*(1/4)","v":5000}]
[232,"2013-07-29","Frank",{"$f":"280000*(1/4)","v":70000},null,null,null,null,null,null,null,null,null,null,null,null,null,null,null,null,null,null,null,null,null,null,232,"2013-07-29","Franek",{"$f":"280000*(1/4)","v":70000}]
[233,"2013-08-26","Frank",{"$f":"530000*(1/4)","v":132500},null,null,null,null,null,null,null,null,null,null,null,null,null,null,null,null,null,null,null,null,null,null,233,"2013-08-26","Franek",{"$f":"530000*(1/4)","v":132500}]
[234,"2013-09-23","Frank",{"$f":"170000*(1/4)","v":42500},null,null,null,null,null,null,null,null,null,null,null,null,null,null,null,null,null,null,null,null,null,null,234,"2013-09-23","Franek",{"$f":"170000*(1/4)","v":42500}]
[235,"2013-10-28","Frank",{"$f":"360000*(1/4)","v":90000},null,null,null,null,null,null,null,null,null,null,null,null,null,null,null,null,null,null,null,null,null,null,235,"2013-10-28","Franek",{"$f":"360000*(1/4)","v":90000}]
[236,"2013-11-25","Frank",{"$f":"340000*(1/4)","v":85000},null,null,null,null,null,null,null,null,null,null,null,null,null,null,null,null,null,null,null,null,null,null,236,"2013-11-25","Franek",{"$f":"340000*(1/4)","v":85000}]
[237,"2013-12-23","Frank",{"$f":"420000*(1/4)","v":105000},null,null,null,null,null,null,null,null,null,null,null,null,null,null,null,null,null,null,null,null,null,null,237,"2013-12-23","Franek",{"$f":"420000*(1/4)","v":105000}]
[238,"2013-02-25","Jill",{"$f":"260000*(1/4)","v":65000},null,null,null,null,null,null,null,null,null,null,null,null,null,null,null,null,null,null,null,null,null,null,238,"2013-02-25","Joanna",{"$f":"260000*(1/4)","v":65000}]
[239,"2013-03-25","Jill",{"$f":"340000*(1/4)","v":85000},null,null,null,null,null,null,null,null,null,null,null,null,null,null,null,null,null,null,null,null,null,null,239,"2013-03-25","Joanna",{"$f":"340000*(1/4)","v":85000}]
[240,"2013-04-29","Jill",{"$f":"230000*(1/4)","v":57500},null,null,null,null,null,null,null,null,null,null,null,null,null,null,null,null,null,null,null,null,null,null,240,"2013-04-29","Joanna",{"$f":"230000*(1/4)","v":57500}]
[241,"2013-05-27","Jill",{"$f":"510000*(1/4)","v":127500},null,null,null,null,null,null,null,null,null,null,null,null,null,null,null,null,null,null,null,null,null,null,241,"2013-05-27","Joanna",{"$f":"510000*(1/4)","v":127500}]
[242,"2013-06-24","Jill",{"$f":"290000*(1/4)","v":72500},null,null,null,null,null,null,null,null,null,null,null,null,null,null,null,null,null,null,null,null,null,null,242,"2013-06-24","Joanna",{"$f":"290000*(1/4)","v":72500}]
[243,"2013-07-29","Jill",{"$f":"240000*(1/4)","v":60000},null,null,null,null,null,null,null,null,null,null,null,null,null,null,null,null,null,null,null,null,null,null,243,"2013-07-29","Joanna",{"$f":"240000*(1/4)","v":60000}]
[244,"2013-08-26","Jill",{"$f":"430000*(1/4)","v":107500},null,null,null,null,null,null,null,null,null,null,null,null,null,null,null,null,null,null,null,null,null,null,244,"2013-08-26","Joanna",{"$f":"430000*(1/4)","v":107500}]
[245,"2013-09-23","Jill",{"$f":"300000*(1/4)","v":75000},null,null,null,null,null,null,null,null,null,null,null,null,null,null,null,null,null,null,null,null,null,null,245,"2013-09-23","Joanna",{"$f":"300000*(1/4)","v":75000}]
[246,"2013-10-28","Jill",{"$f":"180000*(1/4)","v":45000},null,null,null,null,null,null,null,null,null,null,null,null,null,null,null,null,null,null,null,null,null,null,246,"2013-10-28","Joanna",{"$f":"180000*(1/4)","v":45000}]
[247,"2013-11-25","Jill",{"$f":"280000*(1/4)","v":70000},null,null,null,null,null,null,null,null,null,null,null,null,null,null,null,null,null,null,null,null,null,null,247,"2013-11-25","Joanna",{"$f":"280000*(1/4)","v":70000}]
[248,"2013-12-23","Jill",{"$f":"190000*(1/4)","v":47500},null,null,null,null,null,null,null,null,null,null,null,null,null,null,null,null,null,null,null,null,null,null,248,"2013-12-23","Joanna",{"$f":"190000*(1/4)","v":47500}]
[249,"2013-01-28","Mary",{"$f":"310000*(1/4)","v":77500},null,null,null,null,null,null,null,null,null,null,null,null,null,null,null,null,null,null,null,null,null,null,249,"2013-01-28","Maria",{"$f":"310000*(1/4)","v":77500}]
[250,"2013-02-25","Mary",{"$f":"150000*(1/4)","v":37500},null,null,null,null,null,null,null,null,null,null,null,null,null,null,null,null,null,null,null,null,null,null,250,"2013-02-25","Maria",{"$f":"150000*(1/4)","v":37500}]
[251,"2013-03-25","Mary",{"$f":"250000*(1/4)","v":62500},null,null,null,null,null,null,null,null,null,null,null,null,null,null,null,null,null,null,null,null,null,null,251,"2013-03-25","Maria",{"$f":"250000*(1/4)","v":62500}]
[252,"2013-04-29","Mary",{"$f":"180000*(1/4)","v":45000},null,null,null,null,null,null,null,null,null,null,null,null,null,null,null,null,null,null,null,null,null,null,252,"2013-04-29","Maria",{"$f":"180000*(1/4)","v":45000}]
[253,"2013-05-27","Mary",{"$f":"280000*(1/4)","v":70000},null,null,null,null,null,null,null,null,null,null,null,null,null,null,null,null,null,null,null,null,null,null,253,"2013-05-27","Maria",{"$f":"280000*(1/4)","v":70000}]
[254,"2013-06-24","Mary",{"$f":"350000*(1/4)","v":87500},null,null,null,null,null,null,null,null,null,null,null,null,null,null,null,null,null,null,null,null,null,null,254,"2013-06-24","Maria",{"$f":"350000*(1/4)","v":87500}]
[255,"2013-07-29","Mary",{"$f":"400000*(1/4)","v":100000},null,null,null,null,null,null,null,null,null,null,null,null,null,null,null,null,null,null,null,null,null,null,255,"2013-07-29","Maria",{"$f":"400000*(1/4)","v":100000}]
[256,"2013-08-26","Mary",{"$f":"320000*(1/4)","v":80000},null,null,null,null,null,null,null,null,null,null,null,null,null,null,null,null,null,null,null,null,null,null,256,"2013-08-26","Maria",{"$f":"320000*(1/4)","v":80000}]
[257,"2013-09-23","Mary",{"$f":"330000*(1/4)","v":82500},null,null,null,null,null,null,null,null,null,null,null,null,null,null,null,null,null,null,null,null,null,null,257,"2013-09-23","Maria",{"$f":"330000*(1/4)","v":82500}]
[258,"2013-10-28","Mary",{"$f":"430000*(1/4)","v":107500},null,null,null,null,null,null,null,null,null,null,null,null,null,null,null,null,null,null,null,null,null,null,258,"2013-10-28","Maria",{"$f":"430000*(1/4)","v":107500}]
[259,"2013-11-25","Mary",{"$f":"250000*(1/4)","v":62500},null,null,null,null,null,null,null,null,null,null,null,null,null,null,null,null,null,null,null,null,null,null,259,"2013-11-25","Maria",{"$f":"250000*(1/4)","v":62500}]
[260,"2013-12-23","Mary",{"$f":"140000*(1/4)","v":35000},null,null,null,null,null,null,null,null,null,null,null,null,null,null,null,null,null,null,null,null,null,null,260,"2013-12-23","Maria",{"$f":"140000*(1/4)","v":35000}]
[261,"2013-01-28","Paul",{"$f":"430000*(1/4)","v":107500},null,null,null,null,null,null,null,null,null,null,null,null,null,null,null,null,null,null,null,null,null,null,261,"2013-01-28","Paweł",{"$f":"430000*(1/4)","v":107500}]
[262,"2013-02-25","Paul",{"$f":"300000*(1/4)","v":75000},null,null,null,null,null,null,null,null,null,null,null,null,null,null,null,null,null,null,null,null,null,null,262,"2013-02-25","Paweł",{"$f":"300000*(1/4)","v":75000}]
[263,"2013-03-25","Paul",{"$f":"470000*(1/4)","v":117500},null,null,null,null,null,null,null,null,null,null,null,null,null,null,null,null,null,null,null,null,null,null,263,"2013-03-25","Paweł",{"$f":"470000*(1/4)","v":117500}]
[264,"2013-04-29","Paul",{"$f":"300000*(1/4)","v":75000},null,null,null,null,null,null,null,null,null,null,null,null,null,null,null,null,null,null,null,null,null,null,264,"2013-04-29","Paweł",{"$f":"300000*(1/4)","v":75000}]
[265,"2013-05-27","Paul",{"$f":"370000*(1/4)","v":92500},null,null,null,null,null,null,null,null,null,null,null,null,null,null,null,null,null,null,null,null,null,null,265,"2013-05-27","Paweł",{"$f":"370000*(1/4)","v":92500}]
[266,"2013-06-24","Paul",{"$f":"360000*(1/4)","v":90000},null,null,null,null,null,null,null,null,null,null,null,null,null,null,null,null,null,null,null,null,null,null,266,"2013-06-24","Paweł",{"$f":"360000*(1/4)","v":90000}]
[267,"2013-07-29","Paul",{"$f":"300000*(1/4)","v":75000},null,null,null,null,null,null,null,null,null,null,null,null,null,null,null,null,null,null,null,null,null,null,267,"2013-07-29","Paweł",{"$f":"300000*(1/4)","v":75000}]
[268,"2013-08-26","Paul",{"$f":"260000*(1/4)","v":65000},null,null,null,null,null,null,null,null,null,null,null,null,null,null,null,null,null,null,null,null,null,null,268,"2013-08-26","Paweł",{"$f":"260000*(1/4)","v":65000}]
[269,"2013-09-23","Paul",{"$f":"320000*(1/4)","v":80000},null,null,null,null,null,null,null,null,null,null,null,null,null,null,null,null,null,null,null,null,null,null,269,"2013-09-23","Paweł",{"$f":"320000*(1/4)","v":80000}]
[270,"2013-10-28","Paul",{"$f":"330000*(1/4)","v":82500},null,null,null,null,null,null,null,null,null,null,null,null,null,null,null,null,null,null,null,null,null,null,270,"2013-10-28","Paweł",{"$f":"330000*(1/4)","v":82500}]
[271,"2013-11-25","Paul",{"$f":"160000*(1/4)","v":40000},null,null,null,null,null,null,null,null,null,null,null,null,null,null,null,null,null,null,null,null,null,null,271,"2013-11-25","Paweł",{"$f":"160000*(1/4)","v":40000}]
[272,"2013-12-23","Paul",{"$f":"220000*(1/4)","v":55000},null,null,null,null,null,null,null,null,null,null,null,null,null,null,null,null,null,null,null,null,null,null,272,"2013-12-23","Paweł",{"$f":"220000*(1/4)","v":55000}]
[273,"2013-01-28","Randy",{"$f":"350000*(1/4)","v":87500},null,null,null,null,null,null,null,null,null,null,null,null,null,null,null,null,null,null,null,null,null,null,273,"2013-01-28","Rafał",{"$f":"350000*(1/4)","v":87500}]
[274,"2013-02-25","Randy",{"$f":"380000*(1/4)","v":95000},null,null,null,null,null,null,null,null,null,null,null,null,null,null,null,null,null,null,null,null,null,null,274,"2013-02-25","Rafał",{"$f":"380000*(1/4)","v":95000}]
[275,"2013-03-25","Randy",{"$f":"330000*(1/4)","v":82500},null,null,null,null,null,null,null,null,null,null,null,null,null,null,null,null,null,null,null,null,null,null,275,"2013-03-25","Rafał",{"$f":"330000*(1/4)","v":82500}]
[276,"2013-04-29","Randy",{"$f":"320000*(1/4)","v":80000},null,null,null,null,null,null,null,null,null,null,null,null,null,null,null,null,null,null,null,null,null,null,276,"2013-04-29","Rafał",{"$f":"320000*(1/4)","v":80000}]
[277,"2013-05-27","Randy",{"$f":"250000*(1/4)","v":62500},null,null,null,null,null,null,null,null,null,null,null,null,null,null,null,null,null,null,null,null,null,null,277,"2013-05-27","Rafał",{"$f":"250000*(1/4)","v":62500}]
[278,"2013-06-24","Randy",{"$f":"170000*(1/4)","v":42500},null,null,null,null,null,null,null,null,null,null,null,null,null,null,null,null,null,null,null,null,null,null,278,"2013-06-24","Rafał",{"$f":"170000*(1/4)","v":42500}]
[279,"2013-07-29","Randy",{"$f":"240000*(1/4)","v":60000},null,null,null,null,null,null,null,null,null,null,null,null,null,null,null,null,null,null,null,null,null,null,279,"2013-07-29","Rafał",{"$f":"240000*(1/4)","v":60000}]
[280,"2013-08-26","Randy",{"$f":"250000*(1/4)","v":62500},null,null,null,null,null,null,null,null,null,null,null,null,null,null,null,null,null,null,null,null,null,null,280,"2013-08-26","Rafał",{"$f":"250000*(1/4)","v":62500}]
[281,"2013-09-23","Randy",{"$f":"330000*(1/4)","v":82500},null,null,null,null,null,null,null,null,null,null,null,null,null,null,null,null,null,null,null,null,null,null,281,"2013-09-23","Rafał",{"$f":"330000*(1/4)","v":82500}]
[282,"2013-10-28","Randy",{"$f":"240000*(1/4)","v":60000},null,null,null,null,null,null,null,null,null,null,null,null,null,null,null,null,null,null,null,null,null,null,282,"2013-10-28","Rafał",{"$f":"240000*(1/4)","v":60000}]
[283,"2013-11-25","Randy",{"$f":"270000*(1/4)","v":67500},null,null,null,null,null,null,null,null,null,null,null,null,null,null,null,null,null,null,null,null,null,null,283,"2013-11-25","Rafał",{"$f":"270000*(1/4)","v":67500}]
[284,"2013-12-23","Randy",{"$f":"290000*(1/4)","v":72500},null,null,null,null,null,null,null,null,null,null,null,null,null,null,null,null,null,null,null,null,null,null,284,"2013-12-23","Rafał",{"$f":"290000*(1/4)","v":72500}]

{"sheet":"intro3","index":3,"n_rows":38,"n_cols":32,"rows_kept":38,"cut":false,"hidden":false,"merged":[]}
[]
[]
[]
[]
[null,"In the table below:",null,null,null,null,null,null,null,null,null,null,null,null,null,null,null,null,null,null,null,null,null,null,null,null,null,"W tabeli poniżej: "]
[null,"how many dimensions do you see?",null,null,null,null,null,null,null,null,null,null,null,null,null,null,null,null,null,null,null,null,null,null,null,null,null,"ile widzisz wymiarów"]
[]
[null,"how many metrics do you see?",null,null,null,null,null,null,null,null,null,null,null,null,null,null,null,null,null,null,null,null,null,null,null,null,null,"ile widzisz miar"]
[]
[null,"how many the less important fields for pivot tables do you see?",null,null,null,null,null,null,null,null,null,null,null,null,null,null,null,null,null,null,null,null,null,null,null,null,null,"ile widzisz mniej istotnych pól dla tabel przestawnych"]
[]
["ID","chamber","kind of case","effectiveness","fare for service","days spent",null,null,null,null,null,null,null,null,null,null,null,null,null,null,null,null,null,null,null,null,"ID","zaspół adwokacki","rodzaj","wynik","opłata","liczba dni "]
[1,"Lukas Company","merchant","won",42000,21,null,null,null,null,null,null,null,null,null,null,null,null,null,null,null,null,null,null,null,null,1,"M&R Company","nieruchomości","przegrana",7500,5]
[2,"M&R Company","merchant","lost",13000,7,null,null,null,null,null,null,null,null,null,null,null,null,null,null,null,null,null,null,null,null,2,"Lukas Company","nieruchomości","przegrana",5000,3]
[3,"Lukas Company","families","lost",1800,1,null,null,null,null,null,null,null,null,null,null,null,null,null,null,null,null,null,null,null,null,3,"Lukas Company","nieruchomości","przegrana",4300,3]
[4,"M&R Company","families","won",1800,1,null,null,null,null,null,null,null,null,null,null,null,null,null,null,null,null,null,null,null,null,4,"Lukas Company","rodzinna","przegrana",1800,1]
[5,"M&R Company","merchant","won",25000,14,null,null,null,null,null,null,null,null,null,null,null,null,null,null,null,null,null,null,null,null,5,"Lukas Company","rodzinna","przegrana",1500,1]
[6,"Lukas Company","estate ","won",3500,2,null,null,null,null,null,null,null,null,null,null,null,null,null,null,null,null,null,null,null,null,6,"Lukas Company","rodzinna","przegrana",2700,2]
[7,"Lukas Company","merchant","won",36000,21,null,null,null,null,null,null,null,null,null,null,null,null,null,null,null,null,null,null,null,null,7,"M&R Company","gospodarcza","przegrana",13000,7]
[8,"Lukas Company","estate ","lost",5000,3,null,null,null,null,null,null,null,null,null,null,null,null,null,null,null,null,null,null,null,null,8,"M&R Company","gospodarcza","przegrana",22000,14]
[9,"M&R Company","estate ","won",5000,3,null,null,null,null,null,null,null,null,null,null,null,null,null,null,null,null,null,null,null,null,9,"M&R Company","gospodarcza","przegrana",15000,10]
[10,"Lukas Company","estate ","won",4800,3,null,null,null,null,null,null,null,null,null,null,null,null,null,null,null,null,null,null,null,null,10,"M&R Company","nieruchomości","wygrana",5000,3]
[11,"M&R Company","merchant","lost",22000,14,null,null,null,null,null,null,null,null,null,null,null,null,null,null,null,null,null,null,null,null,11,"M&R Company","nieruchomości","wygrana",3000,2]
[12,"Lukas Company","families","lost",1500,1,null,null,null,null,null,null,null,null,null,null,null,null,null,null,null,null,null,null,null,null,12,"M&R Company","nieruchomości","wygrana",6000,5]
[13,"Lukas Company","merchant","won",21000,14,null,null,null,null,null,null,null,null,null,null,null,null,null,null,null,null,null,null,null,null,13,"Lukas Company","nieruchomości","wygrana",3500,2]
[14,"M&R Company","estate ","lost",7500,5,null,null,null,null,null,null,null,null,null,null,null,null,null,null,null,null,null,null,null,null,14,"Lukas Company","nieruchomości","wygrana",4800,3]
[15,"M&R Company","estate ","won",3000,2,null,null,null,null,null,null,null,null,null,null,null,null,null,null,null,null,null,null,null,null,15,"M&R Company","rodzinna","wygrana",1800,1]
[16,"M&R Company","families","won",1500,1,null,null,null,null,null,null,null,null,null,null,null,null,null,null,null,null,null,null,null,null,16,"M&R Company","rodzinna","wygrana",1500,1]
[17,"M&R Company","families","won",1500,1,null,null,null,null,null,null,null,null,null,null,null,null,null,null,null,null,null,null,null,null,17,"M&R Company","rodzinna","wygrana",1500,1]
[18,"M&R Company","merchant","lost",15000,10,null,null,null,null,null,null,null,null,null,null,null,null,null,null,null,null,null,null,null,null,18,"M&R Company","rodzinna","wygrana",2500,2]
[19,"Lukas Company","estate ","lost",4300,3,null,null,null,null,null,null,null,null,null,null,null,null,null,null,null,null,null,null,null,null,19,"M&R Company","rodzinna","wygrana",2000,2]
[20,"Lukas Company","families","lost",2700,2,null,null,null,null,null,null,null,null,null,null,null,null,null,null,null,null,null,null,null,null,20,"Lukas Company","rodzinna","wygrana",2500,2]
[21,"Lukas Company","families","won",2500,2,null,null,null,null,null,null,null,null,null,null,null,null,null,null,null,null,null,null,null,null,21,"Lukas Company","rodzinna","wygrana",1200,1]
[22,"M&R Company","families","won",2500,2,null,null,null,null,null,null,null,null,null,null,null,null,null,null,null,null,null,null,null,null,22,"M&R Company","gospodarcza","wygrana",25000,14]
[23,"Lukas Company","families","won",1200,1,null,null,null,null,null,null,null,null,null,null,null,null,null,null,null,null,null,null,null,null,23,"Lukas Company","gospodarcza","wygrana",42000,21]
[24,"M&R Company","estate ","won",6000,5,null,null,null,null,null,null,null,null,null,null,null,null,null,null,null,null,null,null,null,null,24,"Lukas Company","gospodarcza","wygrana",36000,21]
[25,"Lukas Company","merchant","won",15000,14,null,null,null,null,null,null,null,null,null,null,null,null,null,null,null,null,null,null,null,null,25,"Lukas Company","gospodarcza","wygrana",21000,14]
[26,"M&R Company","families","won",2000,2,null,null,null,null,null,null,null,null,null,null,null,null,null,null,null,null,null,null,null,null,26,"Lukas Company","gospodarcza","wygrana",15000,14]

{"sheet":"source","index":4,"n_rows":32,"n_cols":256,"rows_kept":32,"cut":false,"hidden":false,"merged":[]}
[null,null,null,null,null,null,null,null,null,null,null,null,null,null,null,null,null,null,null,null,null,null,null,null,null,null,null,null,null,null,null,null,null,null,null,null,null,null,null,null,null,null,null,null,null,null,null,null,null,null,null,null,null,null,null,null,null,null,null,null,null,null,null,null,null,null,null,null,null,null,null,null,null,null,null,null,null,null,null,null,null,null,null,null,null,null,null,null,null,null,null,null,null,null,null,null,null,null,null,null,null,null,null,null,null,null,null,null,null,null,null,null,null,null,null,null,null,null,null,null,null,null,null,null,null,null,null,null,null,null,null,null,null,null,null,null,null,null,null,null,null,null,null,null,null,null,null,null,null,null,null,null,null,null,null,null,null,null,null,null,null,null,null,null,null,null,null,null,null,null,null,null,null,null,null,null,null,null,null,null,null,null,null,null,null,null,null,null,null,null,null,null,null,null,null,null,null,null,null,null,null,null,null,null,null,null,null,null,null,null,null,null,null,null,null,null,null,null,null,null,null,null,null,null,null,null,null,null,null,null,null,null,null,null,null,null,null,null,null,null,null,null,null,null,null,null,null,null,null,null,null,null,null,null,null,"aaa 2011-01-23 14:06:58"]
[]
[]
[null,null,"In the table below:",null,null,null,null,null,null,null,null,null,null,null,null,null,null,null,null,null,null,null,null,null,null,null,null,"W tabeli poniżej: "]
[null,null,"how many dimensions do you see?",null,null,null,null,null,null,null,null,null,null,null,null,null,null,null,null,null,null,null,null,null,null,null,null,"ile widzisz wymiarów"]
[]
[null,null,"how many metrics do you see?",null,null,null,null,null,null,null,null,null,null,null,null,null,null,null,null,null,null,null,null,null,null,null,null,"ile widzisz miar"]
[]
[null,null,"how many the less important fields for pivot tables do you see?",null,null,null,null,null,null,null,null,null,null,null,null,null,null,null,null,null,null,null,null,null,null,null,null,"ile widzisz mniej istotnych pól dla tabel przestawnych"]
[]
[]
["ID","Name","Annual_Salary","Monthly_Salary","Location","Date Hired","Pension fund",null,null,null,null,null,null,null,null,null,null,null,null,null,null,null,null,null,null,null,"ID","Osoba","Roczne zarobki","Miesięczne zarobki","Miejscowość","Data zatrudnienia","PPE","Płeć"]
[1,"James Millen",27690,{"$f":"C13/12","v":2307.5},"Los Angeles","1994-12-26",false,null,null,null,null,null,null,null,null,null,null,null,null,null,null,null,null,null,null,null,1,"Adam Jantar",{"$f":"AD13*12","v":58272},4856,"Poznań","2013-02-01",false,"M"]
[2,"Thomas E. Abbott",60000,5000,"Los Angeles","1995-01-22",false,null,null,null,null,null,null,null,null,null,null,null,null,null,null,null,null,null,null,null,2,"Alina Kuna",73800,6150,"Kraków","2006-09-13",false,"K"]
[3,"Chris Poundsworth",29850,2487.5,"Seattle","1999-03-24",false,null,null,null,null,null,null,null,null,null,null,null,null,null,null,null,null,null,null,null,3,"Cezary Piórkowski",69864,5822,"Wrocław","1998-07-19",true,"M"]
[4,"Richard E. Card",43000,3583.3333333333335,"Seattle","1999-04-13",false,null,null,null,null,null,null,null,null,null,null,null,null,null,null,null,null,null,null,null,4,"Ewa Nowek",47304,3942,"Poznań","2003-02-06",false,"K"]
[5,"Douglas Williams",89687,7473.916666666667,"Portland","1999-10-15",true,null,null,null,null,null,null,null,null,null,null,null,null,null,null,null,null,null,null,null,5,"Iwona Laskowska",85680,7140,"Wrocław","2006-05-12",true,"K"]
[6,"Phillip A. Todd",29500,2458.3333333333335,"Portland","1999-10-15",false,null,null,null,null,null,null,null,null,null,null,null,null,null,null,null,null,null,null,null,6,"Jan Brzytwa",67284,5607,"Poznań","2011-08-16",true,"M"]
[7,"Anthony Taylor",55500,4625,"Los Angeles","2000-02-11",false,null,null,null,null,null,null,null,null,null,null,null,null,null,null,null,null,null,null,null,7,"Jan Nowicki",82176,6848,"Wrocław","2009-09-11",true,"M"]
[8,"Rick Fogerty",89873,7489.416666666667,"Portland","2000-04-08",true,null,null,null,null,null,null,null,null,null,null,null,null,null,null,null,null,null,null,null,8,"Janina Belkowa",27600,2300,"Wrocław","2006-03-06",false,"K"]
[9,"Stephen C. Carter",44123,3676.9166666666665,"Los Angeles","2000-07-10",false,null,null,null,null,null,null,null,null,null,null,null,null,null,null,null,null,null,null,null,9,"Joanna Wysocka",57768,4814,"Poznań","2005-12-25",true,"K"]
[10,"Ivan Silberstein",95000,7916.666666666667,"Los Angeles","2000-09-11",true,null,null,null,null,null,null,null,null,null,null,null,null,null,null,null,null,null,null,null,10,"Joanna Zimowa",61296,5108,"Wrocław","1996-08-14",false,"K"]
[11,"Joe Morrison",24000,2000,"Seattle","2000-12-22",false,null,null,null,null,null,null,null,null,null,null,null,null,null,null,null,null,null,null,null,11,"Marta Domerecka",68616,5718,"Poznań","2005-05-28",true,"K"]
[12,"Robert H. Miller",149000,12416.666666666666,"Portland","2001-02-09",true,null,null,null,null,null,null,null,null,null,null,null,null,null,null,null,null,null,null,null,12,"Paweł Gaweł",75600,6300,"Poznań","2010-09-13",false,"M"]
[13,"Michael Hayden",78230,6519.166666666667,"Seattle","2001-03-12",true,null,null,null,null,null,null,null,null,null,null,null,null,null,null,null,null,null,null,null,13,"Paweł Kitera",27816,2318,"Kraków","2005-05-16",true,"M"]
[14,"John T. Foster",39500,3291.6666666666665,"Seattle","2001-07-21",false,null,null,null,null,null,null,null,null,null,null,null,null,null,null,null,null,null,null,null,14,"Paweł Pawlak",69600,5800,"Wrocław","2003-09-22",false,"M"]
[15,"Steven H. Katz",32900,2741.6666666666665,"Los Angeles","2001-12-26",false,null,null,null,null,null,null,null,null,null,null,null,null,null,null,null,null,null,null,null,15,"Piotr Konopnicki",53640,4470,"Kraków","2009-04-18",false,"M"]
[16,"Jeffrey P. Jones",42000,3500,"Seattle","2002-01-19",false,null,null,null,null,null,null,null,null,null,null,null,null,null,null,null,null,null,null,null,16,"Radosław Czerkawski",54552,4546,"Wrocław","2008-02-24",false,"M"]
[17,"Clark Bickerson",120000,10000,"Los Angeles","2002-01-29",true,null,null,null,null,null,null,null,null,null,null,null,null,null,null,null,null,null,null,null,17,"Rafał Janowski",68232,5686,"Wrocław","2004-08-16",true,"M"]
[18,"Charles S. Billings",39000,3250,"Los Angeles","2002-08-13",false,null,null,null,null,null,null,null,null,null,null,null,null,null,null,null,null,null,null,null,18,"Stefan Burczymucha",112296,9358,"Poznań","2003-06-09",false,"M"]
[19,"Kurt Kamichoff",48000,4000,"Los Angeles","2002-08-17",false,null,null,null,null,null,null,null,null,null,null,null,null,null,null,null,null,null,null,null,19,"Wojciech Szczerba",34860,2905,"Poznań","2005-10-01",false,"M"]
[20,"Tom Brown",65000,5416.666666666667,"Seattle","2003-03-08",true,null,null,null,null,null,null,null,null,null,null,null,null,null,null,null,null,null,null,null,20,"Zenon Kowalski",63744,5312,"Kraków","2006-12-14",true,"M"]

{"sheet":"tasks_basic","index":5,"n_rows":83,"n_cols":255,"rows_kept":83,"cut":false,"hidden":false,"merged":[]}
[null,null,null,null,null,null,null,null,null,null,null,null,null,null,null,null,null,null,null,null,null,null,null,null,null,null,null,null,null,null,null,null,null,null,null,null,null,null,null,null,null,null,null,null,null,null,null,null,null,null,null,null,null,null,null,null,null,null,null,null,null,null,null,null,null,null,null,null,null,null,null,null,null,null,null,null,null,null,null,null,null,null,null,null,null,null,null,null,null,null,null,null,null,null,null,null,null,null,null,null,null,null,null,null,null,null,null,null,null,null,null,null,null,null,null,null,null,null,null,null,null,null,null,null,null,null,null,null,null,null,null,null,null,null,null,null,null,null,null,null,null,null,null,null,null,null,null,null,null,null,null,null,null,null,null,null,null,null,null,null,null,null,null,null,null,null,null,null,null,null,null,null,null,null,null,null,null,null,null,null,null,null,null,null,null,null,null,null,null,null,null,null,null,null,null,null,null,null,null,null,null,null,null,null,null,null,null,null,null,null,null,null,null,null,null,null,null,null,null,null,null,null,null,null,null,null,null,null,null,null,null,null,null,null,null,null,null,null,null,null,null,null,null,null,null,null,null,null,null,null,null,null,null,null,"aaa 2011-01-23 14:06:58"]
[]
[]
[null,"PIVOT TABLES",null,null,null,null,null,null,null,null,null,null,null,null,null,null,null,null,null,null,null,null,null,null,null,null,"Raporty przestawnej","Screen cast"]
[]
[null,"1. For each location count employees",null,null,null,null,null,null,null,null,null,null,null,null,null,null,null,null,null,null,null,null,null,null,null,null,"1. Dla każdego miasta policz pracowników. (wiersze: miejscowość wartość: policz osoba)"]
[null,"2. For each location sum anual budget",null,null,null,null,null,null,null,null,null,null,null,null,null,null,null,null,null,null,null,null,null,null,null,null,"2. Dla każdego miasta zsumuj roczne zarobki. Posortuj malejąco według zarobków."]
[null,"3. For each location calculate average monthly salary",null,null,null,null,null,null,null,null,null,null,null,null,null,null,null,null,null,null,null,null,null,null,null,null,"3. Dla każdego miasta policz średnie miesięczne zarobki posortuj malejąco według średniej"]
[null,null,null,null,null,null,null,null,null,null,null,null,null,null,null,null,null,null,null,null,null,null,null,null,null,null,"4.  dla wszystkich wpisów za pomocą jednej tabeli przestawnej policz (sumę rocznych zarobków, średnią rocznych zarobków, minimum rocznych zarobków, maksimum rocznych zarobków)"]
[null,null,null,null,null,null,null,null,null,null,null,null,null,null,null,null,null,null,null,null,null,null,null,null,null,null,"5.  dla \"Krakowa\" za pomocą jednej tabeli przestawnej policz (sumę rocznych zarobków, średnią rocznych zarobków, minimum rocznych zarobków, maksimum rocznych zarobków) ustaw \"Kraków\" na w filtrze"]
[null,"4. for each earning bucket (annual salary) 0-10k, 10k-20k, 20k-30k count employees",null,null,null,null,null,null,null,null,null,null,null,null,null,null,null,null,null,null,null,null,null,null,null,null,"6. Dla każdego przedziału zarobków policz pracowników. Przedziały to do  do 10 tys rocznie, do 20 tys rocznie …"]
[null,"5. for each earning bucket, for each city, count employees",null,null,null,null,null,null,null,null,null,null,null,null,null,null,null,null,null,null,null,null,null,null,null,null,"7. Dla każdego przedziału zarobków policz pracowników w rozbiciu na miasta. "]
[null,"6. For each year - count hired employees",null,null,null,null,null,null,null,null,null,null,null,null,null,null,null,null,null,null,null,null,null,null,null,null,"8. Dla każdego roku wziętego z daty zatrudnienia policz nowo zatrudnionych pracowników."]
[null,"improve (show years with count 0)",null,null,null,null,null,null,null,null,null,null,null,null,null,null,null,null,null,null,null,null,null,null,null,null,"Ulepsz - pokaż lata z liczbą zatrudnionych zero, zrób wykres "]
[null,"7. For each location show percentage of anual budget",null,null,null,null,null,null,null,null,null,null,null,null,null,null,null,null,null,null,null,null,null,null,null,null,"9. pokaż udział procentowy każdego miasta w rocznym budżecie na pensje "]
[null,"8*. For junior/senior employee show average annual salary",null,null,null,null,null,null,null,null,null,null,null,null,null,null,null,null,null,null,null,null,null,null,null,null,"10*. dla grup junior i senior policz średnie roczne zarobki (junior jest liczony od 2008-1-1 patrz data zatrudnienia). W Excel2007 uruchom kreatora przestawnych z 2003 (klawisze Alt+D, K) chodzi o osobne cache. Jak tego nie zrobisz zadanie 7 zakłóci zadanie 5-6 "]
[]
[]
[null,null,null,null,null,null,null,null,null,null,null,null,null,null,null,null,null,null,null,null,null,null,null,null,null,null,"screencast do zadania 1. metoda 1","http://www.screencast.com/users/jan.krolikowski/folders/Jing/media/8f79a4df-068a-4c5d-80b7-b1b5a04c4f62"]
[null,null,null,null,null,null,null,null,null,null,null,null,null,null,null,null,null,null,null,null,null,null,null,null,null,null,"screencast do zadania 2. metoda 1","http://www.screencast.com/users/jan.krolikowski/folders/Jing/media/6859f744-7785-4bc5-90cb-aa48e3f3c88e"]
[null,null,null,null,null,null,null,null,null,null,null,null,null,null,null,null,null,null,null,null,null,null,null,null,null,null,"screencast do zadania 1 metoda raportu tabeli przestawnej","http://www.screencast.com/users/jan.krolikowski/folders/Jing/media/daf7a3ba-f29f-4760-8550-8ca57ffc29eb"]
[null,null,null,null,null,null,null,null,null,null,null,null,null,null,null,null,null,null,null,null,null,null,null,null,null,null,"screencast do zadania 2. metoda raportu przestawnej","http://www.screencast.com/users/jan.krolikowski/folders/Jing/media/71ec1ca1-34b1-428b-8b21-a222769be0a1"]
[null,null,null,null,null,null,null,null,null,null,null,null,null,null,null,null,null,null,null,null,null,null,null,null,null,null,null,"http://www.screencast.com/users/jan.krolikowski/folders/Jing/media/76972756-6a06-4d99-b559-f08f3277c44d"]
[null,null,null,null,null,null,null,null,null,null,null,null,null,null,null,null,null,null,null,null,null,null,null,null,null,null,"screencast do zad 6","http://www.screencast.com/users/jan.krolikowski/folders/Jing/media/c928e9dc-8dae-41e2-8f5b-3252bac1af82"]
[null,null,null,null,null,null,null,null,null,null,null,null,null,null,null,null,null,null,null,null,null,null,null,null,null,null,"screencast do zadania 8","http://www.screencast.com/users/jan.krolikowski/folders/Jing/media/e10a8a49-79f0-4af8-b228-0609cd3aefcf"]
[null,null,null,null,null,null,null,null,null,null,null,null,null,null,null,null,null,null,null,null,null,null,null,null,null,null,"screencast do zadania 9","http://www.screencast.com/users/jan.krolikowski/folders/Jing/media/b01d7586-0987-441c-b5ad-7da8fd7d4b9e"]
[]
[]
[]
[]
[]
[]
[]
[]
[]
[]
[]
[]
[]
[]
[]
[]
[]
[]
[]
[]
[]
[]
[]
[]
[]
[]
[]
[]
[]
[]
[]
[]
[]
[]
[]
[]
[]
[]
[]
[]
[]
[]
[]
[]
[]
[]
[]
[]
[]
[]
[]
[]
[]
[]
[]
[]
[null,null,null,null,null,null,null,null,null,null,null,null,null,null,null,null,null,null,null,null,null,null,null,null,null,null,null,null,null,null,null,null,null,null,null,null,null,null,null,null,null,null,null,null,null,null,null,null,null,null,null,null,null,null,null,null,null,null,null,null,null,null,null,null,null,null,null,null,null,null,null,null,null,null,null,null,null,null,null,null,null,null,null,null,null,null,null,null,null,null,null,null,null,null,null,null,null,null,null,null,null,null,null,null,null,null,null,null,null,null,null,null,null,null,null,null,null,null,null,null,null,null,null,null,null,null,null,null,null,null,null,null,null,null,null,null,null,null,null,null,null,null,null,null,null,null,null,null,null,null,null,null,null,null,null,null,null,null,null,null,null,null,null,null,null,null,null,null,null,null,null,null,null,null,null,null,null,null,null,null,null,null,null,null,null,null,null,null,null,null,null,null,null,null,null,null,null,null,null,null,null,null,null,null,null,null,null,null,null,null,null,null,null,null,null,null,null,null,null,null,null,null,null,null,null,null,null,null,null,null,null,null,null,null,null,null,null,null,null,null,null,null,null,null,null,null,null,null,null,null,null,null,null,null,"aaa 2011-01-23 14:06:58"]

{"sheet":"Task01","index":6,"n_rows":27,"n_cols":33,"rows_kept":27,"cut":false,"hidden":false,"merged":[]}
[]
[]
[null,null,null,"In the table below:",null,null,null,null,null,null,null,null,null,null,null,null,null,null,null,null,null,null,null,null,null,null,null,"W tabeli poniżej: "]
[null,null,null,"how many dimensions do you see?",null,null,null,null,"try table",null,null,null,null,null,null,null,null,null,null,null,null,null,null,null,null,null,null,"ile widzisz wymiarów",null,null,null,"For each Month show total value of Sales"]
[null,null,null,null,null,null,null,null,"For each Month show total value of Sales",null,null,null,null,null,null,null,null,null,null,null,null,null,null,null,null,null,null,null,null,null,null,"For each Region show total value of Sales"]
[null,null,null,"how many metrics do you see?",null,null,null,null,"For each Region show total value of Sales",null,null,null,null,null,null,null,null,null,null,null,null,null,null,null,null,null,null,"ile widzisz miar",null,null,null,"For each Person show total value of Sales"]
["Build a Pivot table here: ",null,null,null,null,null,null,null,"For each Person show total value of Sales",null,null,null,null,null,null,null,null,null,null,null,null,null,null,null,null,null,null,null,null,null,null,"For each Person show total number of Contacts"]
[null,null,null,"how many the less important fields for pivot tables do you see?",null,null,null,null,"For each Person show total number of Contacts",null,null,null,null,null,null,null,null,null,null,null,null,null,null,null,null,null,null,"ile widzisz mniej istotnych pól dla tabel przestawnych",null,null,null,"For each Month and each Region show total value of Sales"]
[null,null,null,null,null,null,null,null,"For each Month and each Region show total value of Sales"]
["ID","Month","Sales Rep","Region","Contacts","Sales",null,null,null,null,null,null,null,null,null,null,null,null,null,null,null,null,null,null,null,null,null,"ID","Miesiąc","Przedstawiciel handlowy","Region","Kontakty"," Sprzedaż "]
[1,"Jan","Bob","North",58,283800,null,null,null,null,null,null,null,null,null,null,null,null,null,null,null,null,null,null,null,null,null,1,"Sty","Jan","Zachodni",25,107500]
[2,"Feb","Bob","North",44,558400,null,null,null,null,null,null,null,null,null,null,null,null,null,null,null,null,null,null,null,null,null,2,"Sty","Robert","Wschodni",35,507200]
[3,"Mar","Bob","North",30,353100,null,null,null,null,null,null,null,null,null,null,null,null,null,null,null,null,null,null,null,null,null,3,"Sty","Adam","Wschodni",39,226000]
[4,"Jan","Frank","North",35,507200,null,null,null,null,null,null,null,null,null,null,null,null,null,null,null,null,null,null,null,null,null,4,"Sty","Zbigniew","Zachodni",47,391000]
[5,"Feb","Frank","North",74,411800,null,null,null,null,null,null,null,null,null,null,null,null,null,null,null,null,null,null,null,null,null,5,"Sty","Wiesław","Zachodni",58,283000]
[6,"Mar","Frank","North",57,258400,null,null,null,null,null,null,null,null,null,null,null,null,null,null,null,null,null,null,null,null,null,6,"Lut","Jan","Wschodni",29,154000]
[7,"Feb","Jill","North",46,350400,null,null,null,null,null,null,null,null,null,null,null,null,null,null,null,null,null,null,null,null,null,7,"Lut","Robert","Wschodni",44,558000]
[8,"Mar","Jill","North",44,532100,null,null,null,null,null,null,null,null,null,null,null,null,null,null,null,null,null,null,null,null,null,8,"Lut","Adam","Zachodni",46,350000]
[9,"Jan","Mary","South",39,226700,null,null,null,null,null,null,null,null,null,null,null,null,null,null,null,null,null,null,null,null,null,9,"Lut","Zbigniew","Zachodni",52,233000]
[10,"Feb","Mary","South",52,233800,null,null,null,null,null,null,null,null,null,null,null,null,null,null,null,null,null,null,null,null,null,10,"Lut","Wiesław","Zachodni",74,411000]
[11,"Mar","Mary","South",36,134300,null,null,null,null,null,null,null,null,null,null,null,null,null,null,null,null,null,null,null,null,null,11,"Mar","Jan","Zachodni",14,162000]
[12,"Jan","Paul","South",25,107600,null,null,null,null,null,null,null,null,null,null,null,null,null,null,null,null,null,null,null,null,null,12,"Mar","Robert","Zachodni",30,363000]
[13,"Feb","Paul","South",29,154200,null,null,null,null,null,null,null,null,null,null,null,null,null,null,null,null,null,null,null,null,null,13,"Mar","Adam","Wschodni",36,134000]
[14,"Mar","Paul","South",13,286000,null,null,null,null,null,null,null,null,null,null,null,null,null,null,null,null,null,null,null,null,null,14,"Mar","Zbigniew","Wschodni",44,532000]
[15,"Jan","Randy","South",47,391600,null,null,null,null,null,null,null,null,null,null,null,null,null,null,null,null,null,null,null,null,null,15,"Mar","Wiesław","Wschodni",57,258000]
[16,"Feb","Randy","South",45,258000,null,null,null,null,null,null,null,null,null,null,null,null,null,null,null,null,null,null,null,null,null,16,"Mar","Iwona","Zachodni",14,162200]
[17,"Mar","Randy","South",14,162200,null,null,null,null,null,null,null,null,null,null,null,null,null,null,null,null,null,null,null,null,null,17,"Mar","Katarzyna","Wschodni",36,134300]

{"sheet":"Task02","index":7,"n_rows":40,"n_cols":34,"rows_kept":40,"cut":false,"hidden":false,"merged":[]}
[]
[]
[]
["For each  effectiveness show number of cases \"won\" and \"lost\" for each company separately",null,null,null,null,null,null,null,null,null,null,null,null,null,null,null,null,null,null,null,null,null,null,null,null,null,"For each  effectiveness show number of cases \"won\" and \"lost\" for each company separately"]
["Build a pivot table here",null,null,null,null,null,null,null,null,null,null,null,null,null,null,null,null,null,null,null,null,null,null,null,null,null,"Build a pivot table here"]
[]
[null,"In the table below:",null,null,null,null,null,null,null,null,null,null,null,null,null,null,null,null,null,null,null,null,null,null,null,"W tabeli poniżej: "]
[null,"how many dimensions do you see?",null,null,null,null,null,null,null,null,null,null,null,null,null,null,null,null,null,null,null,null,null,null,null,"ile widzisz wymiarów"]
[]
[null,"how many metrics do you see?",null,null,null,null,null,null,null,null,null,null,null,null,null,null,null,null,null,null,null,null,null,null,null,"ile widzisz miar"]
[]
[null,"how many the less important fields for pivot tables do you see?",null,null,null,null,null,null,null,null,null,null,null,null,null,null,null,null,null,null,null,null,null,null,null,"ile widzisz mniej istotnych pól dla tabel przestawnych"]
[]
["ID","chambers","address","experience","kind of case","effectiveness","fare for service","days spent","dayly fare",null,null,null,null,null,null,null,null,null,null,null,null,null,null,null,null,"ID","zaspół adwokacki","adres","doświadczenie","rodzaj","wynik","opłata","liczba dni ","dniówka"]
[1,"Lukas Company","Żabia 14","6 years","merchant","won",42000,21,{"$f":"G15/H15","v":2000},null,null,null,null,null,null,null,null,null,null,null,null,null,null,null,null,1,"M&R Company","Piotrkowska 25","11 lat","nieruchomości","przegrana",7500,5,{"$f":"AF15/AG15","v":1500}]
[2,"M&R Company","Piotrkowska 25","11 years","merchant","lost",13000,7,1857.1428571428571,null,null,null,null,null,null,null,null,null,null,null,null,null,null,null,null,2,"Lukas Company","Żabia 14","6 lat","nieruchomości","przegrana",5000,3,1666.6666666666667]
[3,"Lukas Company","Żabia 14","6 years","families","lost",1800,1,1800,null,null,null,null,null,null,null,null,null,null,null,null,null,null,null,null,3,"Lukas Company","Żabia 14","6 lat","nieruchomości","przegrana",4300,3,1433.3333333333333]
[4,"M&R Company","Piotrkowska 25","11 years","families","won",1800,1,1800,null,null,null,null,null,null,null,null,null,null,null,null,null,null,null,null,4,"Lukas Company","Żabia 14","6 lat","rodzinna","przegrana",1800,1,1800]
[5,"M&R Company","Piotrkowska 25","11 years","merchant","won",25000,14,1785.7142857142858,null,null,null,null,null,null,null,null,null,null,null,null,null,null,null,null,5,"Lukas Company","Żabia 14","6 lat","rodzinna","przegrana",1500,1,1500]
[6,"Lukas Company","Żabia 14","6 years","estate ","won",3500,2,1750,null,null,null,null,null,null,null,null,null,null,null,null,null,null,null,null,6,"Lukas Company","Żabia 14","6 lat","rodzinna","przegrana",2700,2,1350]
[7,"Lukas Company","Żabia 14","6 years","merchant","won",36000,21,1714.2857142857142,null,null,null,null,null,null,null,null,null,null,null,null,null,null,null,null,7,"M&R Company","Piotrkowska 25","11 lat","gospodarcza","przegrana",13000,7,1857.1428571428571]
[8,"Lukas Company","Żabia 14","6 years","estate ","lost",5000,3,1666.6666666666667,null,null,null,null,null,null,null,null,null,null,null,null,null,null,null,null,8,"M&R Company","Piotrkowska 25","11 lat","gospodarcza","przegrana",22000,14,1571.4285714285713]
[9,"M&R Company","Piotrkowska 25","11 years","estate ","won",5000,3,1666.6666666666667,null,null,null,null,null,null,null,null,null,null,null,null,null,null,null,null,9,"M&R Company","Piotrkowska 25","11 lat","gospodarcza","przegrana",15000,10,1500]
[10,"Lukas Company","Żabia 14","6 years","estate ","won",4800,3,1600,null,null,null,null,null,null,null,null,null,null,null,null,null,null,null,null,10,"M&R Company","Piotrkowska 25","11 lat","nieruchomości","wygrana",5000,3,1666.6666666666667]
[11,"M&R Company","Piotrkowska 25","11 years","merchant","lost",22000,14,1571.4285714285713,null,null,null,null,null,null,null,null,null,null,null,null,null,null,null,null,11,"M&R Company","Piotrkowska 25","11 lat","nieruchomości","wygrana",3000,2,1500]
[12,"Lukas Company","Żabia 14","6 years","families","lost",1500,1,1500,null,null,null,null,null,null,null,null,null,null,null,null,null,null,null,null,12,"M&R Company","Piotrkowska 25","11 lat","nieruchomości","wygrana",6000,5,1200]
[13,"Lukas Company","Żabia 14","6 years","merchant","won",21000,14,1500,null,null,null,null,null,null,null,null,null,null,null,null,null,null,null,null,13,"Lukas Company","Żabia 14","6 lat","nieruchomości","wygrana",3500,2,1750]
[14,"M&R Company","Piotrkowska 25","11 years","estate ","lost",7500,5,1500,null,null,null,null,null,null,null,null,null,null,null,null,null,null,null,null,14,"Lukas Company","Żabia 14","6 lat","nieruchomości","wygrana",4800,3,1600]
[15,"M&R Company","Piotrkowska 25","11 years","estate ","won",3000,2,1500,null,null,null,null,null,null,null,null,null,null,null,null,null,null,null,null,15,"M&R Company","Piotrkowska 25","11 lat","rodzinna","wygrana",1800,1,1800]
[16,"M&R Company","Piotrkowska 25","11 years","families","won",1500,1,1500,null,null,null,null,null,null,null,null,null,null,null,null,null,null,null,null,16,"M&R Company","Piotrkowska 25","11 lat","rodzinna","wygrana",1500,1,1500]
[17,"M&R Company","Piotrkowska 25","11 years","families","won",1500,1,1500,null,null,null,null,null,null,null,null,null,null,null,null,null,null,null,null,17,"M&R Company","Piotrkowska 25","11 lat","rodzinna","wygrana",1500,1,1500]
[18,"M&R Company","Piotrkowska 25","11 years","merchant","lost",15000,10,1500,null,null,null,null,null,null,null,null,null,null,null,null,null,null,null,null,18,"M&R Company","Piotrkowska 25","11 lat","rodzinna","wygrana",2500,2,1250]
[19,"Lukas Company","Żabia 14","6 years","estate ","lost",4300,3,1433.3333333333333,null,null,null,null,null,null,null,null,null,null,null,null,null,null,null,null,19,"M&R Company","Piotrkowska 25","11 lat","rodzinna","wygrana",2000,2,1000]
[20,"Lukas Company","Żabia 14","6 years","families","lost",2700,2,1350,null,null,null,null,null,null,null,null,null,null,null,null,null,null,null,null,20,"Lukas Company","Żabia 14","6 lat","rodzinna","wygrana",2500,2,1250]
[21,"Lukas Company","Żabia 14","6 years","families","won",2500,2,1250,null,null,null,null,null,null,null,null,null,null,null,null,null,null,null,null,21,"Lukas Company","Żabia 14","6 lat","rodzinna","wygrana",1200,1,1200]
[22,"M&R Company","Piotrkowska 25","11 years","families","won",2500,2,1250,null,null,null,null,null,null,null,null,null,null,null,null,null,null,null,null,22,"M&R Company","Piotrkowska 25","11 lat","gospodarcza","wygrana",25000,14,1785.7142857142858]
[23,"Lukas Company","Żabia 14","6 years","families","won",1200,1,1200,null,null,null,null,null,null,null,null,null,null,null,null,null,null,null,null,23,"Lukas Company","Żabia 14","6 lat","gospodarcza","wygrana",42000,21,2000]
[24,"M&R Company","Piotrkowska 25","11 years","estate ","won",6000,5,1200,null,null,null,null,null,null,null,null,null,null,null,null,null,null,null,null,24,"Lukas Company","Żabia 14","6 lat","gospodarcza","wygrana",36000,21,1714.2857142857142]
[25,"Lukas Company","Żabia 14","6 years","merchant","won",15000,14,1071.4285714285713,null,null,null,null,null,null,null,null,null,null,null,null,null,null,null,null,25,"Lukas Company","Żabia 14","6 lat","gospodarcza","wygrana",21000,14,1500]
[26,"M&R Company","Piotrkowska 25","11 years","families","won",2000,2,1000,null,null,null,null,null,null,null,null,null,null,null,null,null,null,null,null,26,"Lukas Company","Żabia 14","6 lat","gospodarcza","wygrana",15000,14,1071.4285714285713]

{"sheet":"Task03","index":8,"n_rows":848,"n_cols":32,"rows_kept":848,"cut":false,"hidden":false,"merged":[]}
[]
[]
[]
["1. for each country count orders",null,null,null,null,null,null,null,null,null,null,null,null,null,null,null,null,null,null,null,null,null,null,null,null,null,"1. for each country count orders"]
["2. for each customer sum freight",null,null,null,null,null,null,null,null,null,null,null,null,null,null,null,null,null,null,null,null,null,null,null,null,null,"2. for each customer sum freight"]
["3. for each ship via calculate average freight",null,null,null,null,null,null,null,null,null,null,null,null,null,null,null,null,null,null,null,null,null,null,null,null,null,"3. for each ship via calculate average freight"]
["4. for each month in 2014 count orders",null,null,null,null,null,null,null,null,null,null,null,null,null,null,null,null,null,null,null,null,null,null,null,null,null,"4. for each month in 2014 count orders"]
["Build three separete pivot tables ",null,null,null,null,null,null,null,null,null,null,null,null,null,null,null,null,null,null,null,null,null,null,null,null,null,"Build 4 separete pivot tables "]
[]
[null,null,"In the table below:",null,null,null,null,null,null,null,null,null,null,null,null,null,null,null,null,null,null,null,null,null,null,null,"W tabeli poniżej: "]
[null,null,"how many dimensions do you see?",null,null,null,null,null,null,null,null,null,null,null,null,null,null,null,null,null,null,null,null,null,null,null,"ile widzisz wymiarów"]
[]
[null,null,"how many metrics do you see?",null,null,null,null,null,null,null,null,null,null,null,null,null,null,null,null,null,null,null,null,null,null,null,"ile widzisz miar"]
[]
[null,null,"how many the less important fields for pivot tables do you see?",null,null,null,null,null,null,null,null,null,null,null,null,null,null,null,null,null,null,null,null,null,null,null,"ile widzisz mniej istotnych pól dla tabel przestawnych"]
[]
[]
["OrderID","CustomerID","EmployeeID","OrderDate","ShipVia","Freight",null,null,null,null,null,null,null,null,null,null,null,null,null,null,null,null,null,null,null,null,"ID zamówienia","Klient","Pracownik","Data zamówienia","ID spedytora","Fracht"]
[10248,"VINET",5,"2013-07-04",3,32.380000000000003,null,null,null,null,null,null,null,null,null,null,null,null,null,null,null,null,null,null,null,null,10248,"VINET",5,"2013-07-04","3",32.380000000000003]
[10249,"TOMSP",6,"2013-07-05",1,11.61,null,null,null,null,null,null,null,null,null,null,null,null,null,null,null,null,null,null,null,null,10249,"TOMSP",6,"2013-07-05","1",11.61]
[10250,"HANAR",4,"2013-07-08",2,65.83,null,null,null,null,null,null,null,null,null,null,null,null,null,null,null,null,null,null,null,null,10250,"HANAR",4,"2013-07-08","2",65.83]
[10251,"VICTE",3,"2013-07-08",1,41.34,null,null,null,null,null,null,null,null,null,null,null,null,null,null,null,null,null,null,null,null,10251,"VICTE",3,"2013-07-08","1",41.34]
[10252,"SUPRD",4,"2013-07-09",2,51.3,null,null,null,null,null,null,null,null,null,null,null,null,null,null,null,null,null,null,null,null,10252,"SUPRD",4,"2013-07-09","2",51.3]
[10253,"HANAR",3,"2013-07-10",2,58.17,null,null,null,null,null,null,null,null,null,null,null,null,null,null,null,null,null,null,null,null,10253,"HANAR",3,"2013-07-10","2",58.17]
[10254,"CHOPS",5,"2013-07-11",2,22.98,null,null,null,null,null,null,null,null,null,null,null,null,null,null,null,null,null,null,null,null,10254,"CHOPS",5,"2013-07-11","2",22.98]
[10255,"RICSU",9,"2013-07-12",3,148.33000000000001,null,null,null,null,null,null,null,null,null,null,null,null,null,null,null,null,null,null,null,null,10255,"RICSU",9,"2013-07-12","3",148.33000000000001]
[10256,"WELLI",3,"2013-07-15",2,13.97,null,null,null,null,null,null,null,null,null,null,null,null,null,null,null,null,null,null,null,null,10256,"WELLI",3,"2013-07-15","2",13.97]
[10257,"HILAA",4,"2013-07-16",3,81.91,null,null,null,null,null,null,null,null,null,null,null,null,null,null,null,null,null,null,null,null,10257,"HILAA",4,"2013-07-16","3",81.91]
[10258,"ERNSH",1,"2013-07-17",1,140.51,null,null,null,null,null,null,null,null,null,null,null,null,null,null,null,null,null,null,null,null,10258,"ERNSH",1,"2013-07-17","1",140.51]
[10259,"CENTC",4,"2013-07-18",3,3.25,null,null,null,null,null,null,null,null,null,null,null,null,null,null,null,null,null,null,null,null,10259,"CENTC",4,"2013-07-18","3",3.25]
[10260,"OTTIK",4,"2013-07-19",1,55.09,null,null,null,null,null,null,null,null,null,null,null,null,null,null,null,null,null,null,null,null,10260,"OTTIK",4,"2013-07-19","1",55.09]
[10261,"QUEDE",4,"2013-07-19",2,3.05,null,null,null,null,null,null,null,null,null,null,null,null,null,null,null,null,null,null,null,null,10261,"QUEDE",4,"2013-07-19","2",3.05]
[10262,"RATTC",8,"2013-07-22",3,48.29,null,null,null,null,null,null,null,null,null,null,null,null,null,null,null,null,null,null,null,null,10262,"RATTC",8,"2013-07-22","3",48.29]
[10263,"ERNSH",9,"2013-07-23",3,146.06,null,null,null,null,null,null,null,null,null,null,null,null,null,null,null,null,null,null,null,null,10263,"ERNSH",9,"2013-07-23","3",146.06]
[10264,"FOLKO",6,"2013-07-24",3,3.67,null,null,null,null,null,null,null,null,null,null,null,null,null,null,null,null,null,null,null,null,10264,"FOLKO",6,"2013-07-24","3",3.67]
[10265,"BLONP",2,"2013-07-25",1,55.28,null,null,null,null,null,null,null,null,null,null,null,null,null,null,null,null,null,null,null,null,10265,"BLONP",2,"2013-07-25","1",55.28]
[10266,"WARTH",3,"2013-07-26",3,25.73,null,null,null,null,null,null,null,null,null,null,null,null,null,null,null,null,null,null,null,null,10266,"WARTH",3,"2013-07-26","3",25.73]
[10267,"FRANK",4,"2013-07-29",1,208.58,null,null,null,null,null,null,null,null,null,null,null,null,null,null,null,null,null,null,null,null,10267,"FRANK",4,"2013-07-29","1",208.58]
[10268,"GROSR",8,"2013-07-30",3,66.290000000000006,null,null,null,null,null,null,null,null,null,null,null,null,null,null,null,null,null,null,null,null,10268,"GROSR",8,"2013-07-30","3",66.290000000000006]
[10269,"WHITC",5,"2013-07-31",1,4.5599999999999996,null,null,null,null,null,null,null,null,null,null,null,null,null,null,null,null,null,null,null,null,10269,"WHITC",5,"2013-07-31","1",4.5599999999999996]
[10270,"WARTH",1,"2013-08-01",1,136.54,null,null,null,null,null,null,null,null,null,null,null,null,null,null,null,null,null,null,null,null,10270,"WARTH",1,"2013-08-01","1",136.54]
[10271,"SPLIR",6,"2013-08-01",2,4.54,null,null,null,null,null,null,null,null,null,null,null,null,null,null,null,null,null,null,null,null,10271,"SPLIR",6,"2013-08-01","2",4.54]
[10272,"RATTC",6,"2013-08-02",2,98.03,null,null,null,null,null,null,null,null,null,null,null,null,null,null,null,null,null,null,null,null,10272,"RATTC",6,"2013-08-02","2",98.03]
[10273,"QUICK",3,"2013-08-05",3,76.069999999999993,null,null,null,null,null,null,null,null,null,null,null,null,null,null,null,null,null,null,null,null,10273,"QUICK",3,"2013-08-05","3",76.069999999999993]
[10274,"VINET",6,"2013-08-06",1,6.01,null,null,null,null,null,null,null,null,null,null,null,null,null,null,null,null,null,null,null,null,10274,"VINET",6,"2013-08-06","1",6.01]
[10275,"MAGAA",1,"2013-08-07",1,26.93,null,null,null,null,null,null,null,null,null,null,null,null,null,null,null,null,null,null,null,null,10275,"MAGAA",1,"2013-08-07","1",26.93]
[10276,"TORTU",8,"2013-08-08",3,13.84,null,null,null,null,null,null,null,null,null,null,null,null,null,null,null,null,null,null,null,null,10276,"TORTU",8,"2013-08-08","3",13.84]
[10277,"MORGK",2,"2013-08-09",3,125.77,null,null,null,null,null,null,null,null,null,null,null,null,null,null,null,null,null,null,null,null,10277,"MORGK",2,"2013-08-09","3",125.77]
[10278,"BERGS",8,"2013-08-12",2,92.69,null,null,null,null,null,null,null,null,null,null,null,null,null,null,null,null,null,null,null,null,10278,"BERGS",8,"2013-08-12","2",92.69]
[10279,"LEHMS",8,"2013-08-13",2,25.83,null,null,null,null,null,null,null,null,null,null,null,null,null,null,null,null,null,null,null,null,10279,"LEHMS",8,"2013-08-13","2",25.83]
[10280,"BERGS",2,"2013-08-14",1,8.98,null,null,null,null,null,null,null,null,null,null,null,null,null,null,null,null,null,null,null,null,10280,"BERGS",2,"2013-08-14","1",8.98]
[10281,"ROMEY",4,"2013-08-14",1,2.94,null,null,null,null,null,null,null,null,null,null,null,null,null,null,null,null,null,null,null,null,10281,"ROMEY",4,"2013-08-14","1",2.94]
[10282,"ROMEY",4,"2013-08-15",1,12.69,null,null,null,null,null,null,null,null,null,null,null,null,null,null,null,null,null,null,null,null,10282,"ROMEY",4,"2013-08-15","1",12.69]
[10283,"LILAS",3,"2013-08-16",3,84.81,null,null,null,null,null,null,null,null,null,null,null,null,null,null,null,null,null,null,null,null,10283,"LILAS",3,"2013-08-16","3",84.81]
[10284,"LEHMS",4,"2013-08-19",1,76.56,null,null,null,null,null,null,null,null,null,null,null,null,null,null,null,null,null,null,null,null,10284,"LEHMS",4,"2013-08-19","1",76.56]
[10285,"QUICK",1,"2013-08-20",2,76.83,null,null,null,null,null,null,null,null,null,null,null,null,null,null,null,null,null,null,null,null,10285,"QUICK",1,"2013-08-20","2",76.83]
[10286,"QUICK",8,"2013-08-21",3,229.24,null,null,null,null,null,null,null,null,null,null,null,null,null,null,null,null,null,null,null,null,10286,"QUICK",8,"2013-08-21","3",229.24]
[10287,"RICAR",8,"2013-08-22",3,12.76,null,null,null,null,null,null,null,null,null,null,null,null,null,null,null,null,null,null,null,null,10287,"RICAR",8,"2013-08-22","3",12.76]
[10288,"REGGC",4,"2013-08-23",1,7.45,null,null,null,null,null,null,null,null,null,null,null,null,null,null,null,null,null,null,null,null,10288,"REGGC",4,"2013-08-23","1",7.45]
[10289,"BSBEV",7,"2013-08-26",3,22.77,null,null,null,null,null,null,null,null,null,null,null,null,null,null,null,null,null,null,null,null,10289,"BSBEV",7,"2013-08-26","3",22.77]
[10290,"COMMI",8,"2013-08-27",1,79.7,null,null,null,null,null,null,null,null,null,null,null,null,null,null,null,null,null,null,null,null,10290,"COMMI",8,"2013-08-27","1",79.7]
[10291,"QUEDE",6,"2013-08-27",2,6.4,null,null,null,null,null,null,null,null,null,null,null,null,null,null,null,null,null,null,null,null,10291,"QUEDE",6,"2013-08-27","2",6.4]
[10292,"TRADH",1,"2013-08-28",2,1.35,null,null,null,null,null,null,null,null,null,null,null,null,null,null,null,null,null,null,null,null,10292,"TRADH",1,"2013-08-28","2",1.35]
[10293,"TORTU",1,"2013-08-29",3,21.18,null,null,null,null,null,null,null,null,null,null,null,null,null,null,null,null,null,null,null,null,10293,"TORTU",1,"2013-08-29","3",21.18]
[10294,"RATTC",4,"2013-08-30",2,147.26,null,null,null,null,null,null,null,null,null,null,null,null,null,null,null,null,null,null,null,null,10294,"RATTC",4,"2013-08-30","2",147.26]
[10295,"VINET",2,"2013-09-02",2,1.1499999999999999,null,null,null,null,null,null,null,null,null,null,null,null,null,null,null,null,null,null,null,null,10295,"VINET",2,"2013-09-02","2",1.1499999999999999]
[10296,"LILAS",6,"2013-09-03",1,0.12,null,null,null,null,null,null,null,null,null,null,null,null,null,null,null,null,null,null,null,null,10296,"LILAS",6,"2013-09-03","1",0.12]
[10297,"BLONP",5,"2013-09-04",2,5.74,null,null,null,null,null,null,null,null,null,null,null,null,null,null,null,null,null,null,null,null,10297,"BLONP",5,"2013-09-04","2",5.74]
[10298,"HUNGO",6,"2013-09-05",2,168.22,null,null,null,null,null,null,null,null,null,null,null,null,null,null,null,null,null,null,null,null,10298,"HUNGO",6,"2013-09-05","2",168.22]
[10299,"RICAR",4,"2013-09-06",2,29.76,null,null,null,null,null,null,null,null,null,null,null,null,null,null,null,null,null,null,null,null,10299,"RICAR",4,"2013-09-06","2",29.76]
[10300,"MAGAA",2,"2013-09-09",2,17.68,null,null,null,null,null,null,null,null,null,null,null,null,null,null,null,null,null,null,null,null,10300,"MAGAA",2,"2013-09-09","2",17.68]
[10301,"WANDK",8,"2013-09-09",2,45.08,null,null,null,null,null,null,null,null,null,null,null,null,null,null,null,null,null,null,null,null,10301,"WANDK",8,"2013-09-09","2",45.08]
[10302,"SUPRD",4,"2013-09-10",2,6.27,null,null,null,null,null,null,null,null,null,null,null,null,null,null,null,null,null,null,null,null,10302,"SUPRD",4,"2013-09-10","2",6.27]
[10303,"GODOS",7,"2013-09-11",2,107.83,null,null,null,null,null,null,null,null,null,null,null,null,null,null,null,null,null,null,null,null,10303,"GODOS",7,"2013-09-11","2",107.83]
[10304,"TORTU",1,"2013-09-12",2,63.79,null,null,null,null,null,null,null,null,null,null,null,null,null,null,null,null,null,null,null,null,10304,"TORTU",1,"2013-09-12","2",63.79]
[10305,"OLDWO",8,"2013-09-13",3,257.62,null,null,null,null,null,null,null,null,null,null,null,null,null,null,null,null,null,null,null,null,10305,"OLDWO",8,"2013-09-13","3",257.62]
[10306,"ROMEY",1,"2013-09-16",3,7.56,null,null,null,null,null,null,null,null,null,null,null,null,null,null,null,null,null,null,null,null,10306,"ROMEY",1,"2013-09-16","3",7.56]
[10307,"LONEP",2,"2013-09-17",2,0.56000000000000005,null,null,null,null,null,null,null,null,null,null,null,null,null,null,null,null,null,null,null,null,10307,"LONEP",2,"2013-09-17","2",0.56000000000000005]
[10308,"ANATR",7,"2013-09-18",3,1.61,null,null,null,null,null,null,null,null,null,null,null,null,null,null,null,null,null,null,null,null,10308,"ANATR",7,"2013-09-18","3",1.61]
[10309,"HUNGO",3,"2013-09-19",1,47.3,null,null,null,null,null,null,null,null,null,null,null,null,null,null,null,null,null,null,null,null,10309,"HUNGO",3,"2013-09-19","1",47.3]
[10310,"THEBI",8,"2013-09-20",2,17.52,null,null,null,null,null,null,null,null,null,null,null,null,null,null,null,null,null,null,null,null,10310,"THEBI",8,"2013-09-20","2",17.52]
[10311,"DUMON",1,"2013-09-20",3,24.69,null,null,null,null,null,null,null,null,null,null,null,null,null,null,null,null,null,null,null,null,10311,"DUMON",1,"2013-09-20","3",24.69]
[10312,"WANDK",2,"2013-09-23",2,40.26,null,null,null,null,null,null,null,null,null,null,null,null,null,null,null,null,null,null,null,null,10312,"WANDK",2,"2013-09-23","2",40.26]
[10313,"QUICK",2,"2013-09-24",2,1.96,null,null,null,null,null,null,null,null,null,null,null,null,null,null,null,null,null,null,null,null,10313,"QUICK",2,"2013-09-24","2",1.96]
[10314,"RATTC",1,"2013-09-25",2,74.16,null,null,null,null,null,null,null,null,null,null,null,null,null,null,null,null,null,null,null,null,10314,"RATTC",1,"2013-09-25","2",74.16]
[10315,"ISLAT",4,"2013-09-26",2,41.76,null,null,null,null,null,null,null,null,null,null,null,null,null,null,null,null,null,null,null,null,10315,"ISLAT",4,"2013-09-26","2",41.76]
[10316,"RATTC",1,"2013-09-27",3,150.15,null,null,null,null,null,null,null,null,null,null,null,null,null,null,null,null,null,null,null,null,10316,"RATTC",1,"2013-09-27","3",150.15]
[10317,"LONEP",6,"2013-09-30",1,12.69,null,null,null,null,null,null,null,null,null,null,null,null,null,null,null,null,null,null,null,null,10317,"LONEP",6,"2013-09-30","1",12.69]
[10318,"ISLAT",8,"2013-10-01",2,4.7300000000000004,null,null,null,null,null,null,null,null,null,null,null,null,null,null,null,null,null,null,null,null,10318,"ISLAT",8,"2013-10-01","2",4.7300000000000004]
[10319,"TORTU",7,"2013-10-02",3,64.5,null,null,null,null,null,null,null,null,null,null,null,null,null,null,null,null,null,null,null,null,10319,"TORTU",7,"2013-10-02","3",64.5]
[10320,"WARTH",5,"2013-10-03",3,34.57,null,null,null,null,null,null,null,null,null,null,null,null,null,null,null,null,null,null,null,null,10320,"WARTH",5,"2013-10-03","3",34.57]
[10321,"ISLAT",3,"2013-10-03",2,3.43,null,null,null,null,null,null,null,null,null,null,null,null,null,null,null,null,null,null,null,null,10321,"ISLAT",3,"2013-10-03","2",3.43]
[10322,"PERIC",7,"2013-10-04",3,0.4,null,null,null,null,null,null,null,null,null,null,null,null,null,null,null,null,null,null,null,null,10322,"PERIC",7,"2013-10-04","3",0.4]
[10323,"KOENE",4,"2013-10-07",1,4.88,null,null,null,null,null,null,null,null,null,null,null,null,null,null,null,null,null,null,null,null,10323,"KOENE",4,"2013-10-07","1",4.88]
[10324,"SAVEA",9,"2013-10-08",1,214.27,null,null,null,null,null,null,null,null,null,null,null,null,null,null,null,null,null,null,null,null,10324,"SAVEA",9,"2013-10-08","1",214.27]
[10325,"KOENE",1,"2013-10-09",3,64.86,null,null,null,null,null,null,null,null,null,null,null,null,null,null,null,null,null,null,null,null,10325,"KOENE",1,"2013-10-09","3",64.86]
[10326,"BOLID",4,"2013-10-10",2,77.92,null,null,null,null,null,null,null,null,null,null,null,null,null,null,null,null,null,null,null,null,10326,"BOLID",4,"2013-10-10","2",77.92]
[10327,"FOLKO",2,"2013-10-11",1,63.36,null,null,null,null,null,null,null,null,null,null,null,null,null,null,null,null,null,null,null,null,10327,"FOLKO",2,"2013-10-11","1",63.36]
[10328,"FURIB",4,"2013-10-14",3,87.03,null,null,null,null,null,null,null,null,null,null,null,null,null,null,null,null,null,null,null,null,10328,"FURIB",4,"2013-10-14","3",87.03]
[10329,"SPLIR",4,"2013-10-15",2,191.67,null,null,null,null,null,null,null,null,null,null,null,null,null,null,null,null,null,null,null,null,10329,"SPLIR",4,"2013-10-15","2",191.67]
[10330,"LILAS",3,"2013-10-16",1,12.75,null,null,null,null,null,null,null,null,null,null,null,null,null,null,null,null,null,null,null,null,10330,"LILAS",3,"2013-10-16","1",12.75]
[10331,"BONAP",9,"2013-10-16",1,10.19,null,null,null,null,null,null,null,null,null,null,null,null,null,null,null,null,null,null,null,null,10331,"BONAP",9,"2013-10-16","1",10.19]
[10332,"MEREP",3,"2013-10-17",2,52.84,null,null,null,null,null,null,null,null,null,null,null,null,null,null,null,null,null,null,null,null,10332,"MEREP",3,"2013-10-17","2",52.84]
[10333,"WARTH",5,"2013-10-18",3,0.59,null,null,null,null,null,null,null,null,null,null,null,null,null,null,null,null,null,null,null,null,10333,"WARTH",5,"2013-10-18","3",0.59]
[10334,"VICTE",8,"2013-10-21",2,8.56,null,null,null,null,null,null,null,null,null,null,null,null,null,null,null,null,null,null,null,null,10334,"VICTE",8,"2013-10-21","2",8.56]
[10335,"HUNGO",7,"2013-10-22",2,42.11,null,null,null,null,null,null,null,null,null,null,null,null,null,null,null,null,null,null,null,null,10335,"HUNGO",7,"2013-10-22","2",42.11]
[10336,"PRINI",7,"2013-10-23",2,15.51,null,null,null,null,null,null,null,null,null,null,null,null,null,null,null,null,null,null,null,null,10336,"PRINI",7,"2013-10-23","2",15.51]
[10337,"FRANK",4,"2013-10-24",3,108.26,null,null,null,null,null,null,null,null,null,null,null,null,null,null,null,null,null,null,null,null,10337,"FRANK",4,"2013-10-24","3",108.26]
[10338,"OLDWO",4,"2013-10-25",3,84.21,null,null,null,null,null,null,null,null,null,null,null,null,null,null,null,null,null,null,null,null,10338,"OLDWO",4,"2013-10-25","3",84.21]
[10339,"MEREP",2,"2013-10-28",2,15.66,null,null,null,null,null,null,null,null,null,null,null,null,null,null,null,null,null,null,null,null,10339,"MEREP",2,"2013-10-28","2",15.66]
[10340,"BONAP",1,"2013-10-29",3,166.31,null,null,null,null,null,null,null,null,null,null,null,null,null,null,null,null,null,null,null,null,10340,"BONAP",1,"2013-10-29","3",166.31]
[10341,"SIMOB",7,"2013-10-29",3,26.78,null,null,null,null,null,null,null,null,null,null,null,null,null,null,null,null,null,null,null,null,10341,"SIMOB",7,"2013-10-29","3",26.78]
[10342,"FRANK",4,"2013-10-30",2,54.83,null,null,null,null,null,null,null,null,null,null,null,null,null,null,null,null,null,null,null,null,10342,"FRANK",4,"2013-10-30","2",54.83]
[10343,"LEHMS",4,"2013-10-31",1,110.37,null,null,null,null,null,null,null,null,null,null,null,null,null,null,null,null,null,null,null,null,10343,"LEHMS",4,"2013-10-31","1",110.37]
[10344,"WHITC",4,"2013-11-01",2,23.29,null,null,null,null,null,null,null,null,null,null,null,null,null,null,null,null,null,null,null,null,10344,"WHITC",4,"2013-11-01","2",23.29]
[10345,"QUICK",2,"2013-11-04",2,249.06,null,null,null,null,null,null,null,null,null,null,null,null,null,null,null,null,null,null,null,null,10345,"QUICK",2,"2013-11-04","2",249.06]
[10346,"RATTC",3,"2013-11-05",3,142.08000000000001,null,null,null,null,null,null,null,null,null,null,null,null,null,null,null,null,null,null,null,null,10346,"RATTC",3,"2013-11-05","3",142.08000000000001]
[10347,"FAMIA",4,"2013-11-06",3,3.1,null,null,null,null,null,null,null,null,null,null,null,null,null,null,null,null,null,null,null,null,10347,"FAMIA",4,"2013-11-06","3",3.1]
[10348,"WANDK",4,"2013-11-07",2,0.78,null,null,null,null,null,null,null,null,null,null,null,null,null,null,null,null,null,null,null,null,10348,"WANDK",4,"2013-11-07","2",0.78]
[10349,"SPLIR",7,"2013-11-08",1,8.6300000000000008,null,null,null,null,null,null,null,null,null,null,null,null,null,null,null,null,null,null,null,null,10349,"SPLIR",7,"2013-11-08","1",8.6300000000000008]
[10350,"LAMAI",6,"2013-11-11",2,64.19,null,null,null,null,null,null,null,null,null,null,null,null,null,null,null,null,null,null,null,null,10350,"LAMAI",6,"2013-11-11","2",64.19]
[10351,"ERNSH",1,"2013-11-11",1,162.33000000000001,null,null,null,null,null,null,null,null,null,null,null,null,null,null,null,null,null,null,null,null,10351,"ERNSH",1,"2013-11-11","1",162.33000000000001]
[10352,"FURIB",3,"2013-11-12",3,1.3,null,null,null,null,null,null,null,null,null,null,null,null,null,null,null,null,null,null,null,null,10352,"FURIB",3,"2013-11-12","3",1.3]
[10353,"PICCO",7,"2013-11-13",3,360.63,null,null,null,null,null,null,null,null,null,null,null,null,null,null,null,null,null,null,null,null,10353,"PICCO",7,"2013-11-13","3",360.63]
[10354,"PERIC",8,"2013-11-14",3,53.8,null,null,null,null,null,null,null,null,null,null,null,null,null,null,null,null,null,null,null,null,10354,"PERIC",8,"2013-11-14","3",53.8]
[10355,"AROUT",6,"2013-11-15",1,41.95,null,null,null,null,null,null,null,null,null,null,null,null,null,null,null,null,null,null,null,null,10355,"AROUT",6,"2013-11-15","1",41.95]
[10356,"WANDK",6,"2013-11-18",2,36.71,null,null,null,null,null,null,null,null,null,null,null,null,null,null,null,null,null,null,null,null,10356,"WANDK",6,"2013-11-18","2",36.71]
[10357,"LILAS",1,"2013-11-19",3,34.880000000000003,null,null,null,null,null,null,null,null,null,null,null,null,null,null,null,null,null,null,null,null,10357,"LILAS",1,"2013-11-19","3",34.880000000000003]
[10358,"LAMAI",5,"2013-11-20",1,19.64,null,null,null,null,null,null,null,null,null,null,null,null,null,null,null,null,null,null,null,null,10358,"LAMAI",5,"2013-11-20","1",19.64]
[10359,"SEVES",5,"2013-11-21",3,288.43,null,null,null,null,null,null,null,null,null,null,null,null,null,null,null,null,null,null,null,null,10359,"SEVES",5,"2013-11-21","3",288.43]
[10360,"BLONP",4,"2013-11-22",3,131.69999999999999,null,null,null,null,null,null,null,null,null,null,null,null,null,null,null,null,null,null,null,null,10360,"BLONP",4,"2013-11-22","3",131.69999999999999]
[10361,"QUICK",1,"2013-11-22",2,183.17,null,null,null,null,null,null,null,null,null,null,null,null,null,null,null,null,null,null,null,null,10361,"QUICK",1,"2013-11-22","2",183.17]
[10362,"BONAP",3,"2013-11-25",1,96.04,null,null,null,null,null,null,null,null,null,null,null,null,null,null,null,null,null,null,null,null,10362,"BONAP",3,"2013-11-25","1",96.04]
[10363,"DRACD",4,"2013-11-26",3,30.54,null,null,null,null,null,null,null,null,null,null,null,null,null,null,null,null,null,null,null,null,10363,"DRACD",4,"2013-11-26","3",30.54]
[10364,"EASTC",1,"2013-11-26",1,71.97,null,null,null,null,null,null,null,null,null,null,null,null,null,null,null,null,null,null,null,null,10364,"EASTC",1,"2013-11-26","1",71.97]
[10365,"ANTON",3,"2013-11-27",2,22,null,null,null,null,null,null,null,null,null,null,null,null,null,null,null,null,null,null,null,null,10365,"ANTON",3,"2013-11-27","2",22]
[10366,"GALED",8,"2013-11-28",2,10.14,null,null,null,null,null,null,null,null,null,null,null,null,null,null,null,null,null,null,null,null,10366,"GALED",8,"2013-11-28","2",10.14]
[10367,"VAFFE",7,"2013-11-28",3,13.55,null,null,null,null,null,null,null,null,null,null,null,null,null,null,null,null,null,null,null,null,10367,"VAFFE",7,"2013-11-28","3",13.55]
[10368,"ERNSH",2,"2013-11-29",2,101.95,null,null,null,null,null,null,null,null,null,null,null,null,null,null,null,null,null,null,null,null,10368,"ERNSH",2,"2013-11-29","2",101.95]
[10369,"SPLIR",8,"2013-12-02",2,195.68,null,null,null,null,null,null,null,null,null,null,null,null,null,null,null,null,null,null,null,null,10369,"SPLIR",8,"2013-12-02","2",195.68]
[10370,"CHOPS",6,"2013-12-03",2,1.17,null,null,null,null,null,null,null,null,null,null,null,null,null,null,null,null,null,null,null,null,10370,"CHOPS",6,"2013-12-03","2",1.17]
[10371,"LAMAI",1,"2013-12-03",1,1,null,null,null,null,null,null,null,null,null,null,null,null,null,null,null,null,null,null,null,null,10371,"LAMAI",1,"2013-12-03","1",0.45]
[10372,"QUEEN",5,"2013-12-04",2,890.78,null,null,null,null,null,null,null,null,null,null,null,null,null,null,null,null,null,null,null,null,10372,"QUEEN",5,"2013-12-04","2",890.78]
[10373,"HUNGO",4,"2013-12-05",3,124.12,null,null,null,null,null,null,null,null,null,null,null,null,null,null,null,null,null,null,null,null,10373,"HUNGO",4,"2013-12-05","3",124.12]
[10374,"WOLZA",1,"2013-12-05",3,3.94,null,null,null,null,null,null,null,null,null,null,null,null,null,null,null,null,null,null,null,null,10374,"WOLZA",1,"2013-12-05","3",3.94]
[10375,"HUNGC",3,"2013-12-06",2,20.12,null,null,null,null,null,null,null,null,null,null,null,null,null,null,null,null,null,null,null,null,10375,"HUNGC",3,"2013-12-06","2",20.12]
[10376,"MEREP",1,"2013-12-09",2,20.39,null,null,null,null,null,null,null,null,null,null,null,null,null,null,null,null,null,null,null,null,10376,"MEREP",1,"2013-12-09","2",20.39]
[10377,"SEVES",1,"2013-12-09",3,22.21,null,null,null,null,null,null,null,null,null,null,null,null,null,null,null,null,null,null,null,null,10377,"SEVES",1,"2013-12-09","3",22.21]
[10378,"FOLKO",5,"2013-12-10",3,5.44,null,null,null,null,null,null,null,null,null,null,null,null,null,null,null,null,null,null,null,null,10378,"FOLKO",5,"2013-12-10","3",5.44]
[10379,"QUEDE",2,"2013-12-11",1,45.03,null,null,null,null,null,null,null,null,null,null,null,null,null,null,null,null,null,null,null,null,10379,"QUEDE",2,"2013-12-11","1",45.03]
[10380,"HUNGO",8,"2013-12-12",3,35.03,null,null,null,null,null,null,null,null,null,null,null,null,null,null,null,null,null,null,null,null,10380,"HUNGO",8,"2013-12-12","3",35.03]
[10381,"LILAS",3,"2013-12-12",3,7.99,null,null,null,null,null,null,null,null,null,null,null,null,null,null,null,null,null,null,null,null,10381,"LILAS",3,"2013-12-12","3",7.99]
[10382,"ERNSH",4,"2013-12-13",1,94.77,null,null,null,null,null,null,null,null,null,null,null,null,null,null,null,null,null,null,null,null,10382,"ERNSH",4,"2013-12-13","1",94.77]
[10383,"AROUT",8,"2013-12-16",3,34.24,null,null,null,null,null,null,null,null,null,null,null,null,null,null,null,null,null,null,null,null,10383,"AROUT",8,"2013-12-16","3",34.24]
[10384,"BERGS",3,"2013-12-16",3,168.64,null,null,null,null,null,null,null,null,null,null,null,null,null,null,null,null,null,null,null,null,10384,"BERGS",3,"2013-12-16","3",168.64]
[10385,"SPLIR",1,"2013-12-17",2,30.96,null,null,null,null,null,null,null,null,null,null,null,null,null,null,null,null,null,null,null,null,10385,"SPLIR",1,"2013-12-17","2",30.96]
[10386,"FAMIA",9,"2013-12-18",3,13.99,null,null,null,null,null,null,null,null,null,null,null,null,null,null,null,null,null,null,null,null,10386,"FAMIA",9,"2013-12-18","3",13.99]
[10387,"SANTG",1,"2013-12-18",2,93.63,null,null,null,null,null,null,null,null,null,null,null,null,null,null,null,null,null,null,null,null,10387,"SANTG",1,"2013-12-18","2",93.63]
[10388,"SEVES",2,"2013-12-19",1,34.86,null,null,null,null,null,null,null,null,null,null,null,null,null,null,null,null,null,null,null,null,10388,"SEVES",2,"2013-12-19","1",34.86]
[10389,"BOTTM",4,"2013-12-20",2,47.42,null,null,null,null,null,null,null,null,null,null,null,null,null,null,null,null,null,null,null,null,10389,"BOTTM",4,"2013-12-20","2",47.42]
[10390,"ERNSH",6,"2013-12-23",1,126.38,null,null,null,null,null,null,null,null,null,null,null,null,null,null,null,null,null,null,null,null,10390,"ERNSH",6,"2013-12-23","1",126.38]
[10391,"DRACD",3,"2013-12-23",3,5.45,null,null,null,null,null,null,null,null,null,null,null,null,null,null,null,null,null,null,null,null,10391,"DRACD",3,"2013-12-23","3",5.45]
[10392,"PICCO",2,"2013-12-24",3,122.46,null,null,null,null,null,null,null,null,null,null,null,null,null,null,null,null,null,null,null,null,10392,"PICCO",2,"2013-12-24","3",122.46]
[10393,"SAVEA",1,"2013-12-25",3,126.56,null,null,null,null,null,null,null,null,null,null,null,null,null,null,null,null,null,null,null,null,10393,"SAVEA",1,"2013-12-25","3",126.56]
[10394,"HUNGC",1,"2013-12-25",3,30.34,null,null,null,null,null,null,null,null,null,null,null,null,null,null,null,null,null,null,null,null,10394,"HUNGC",1,"2013-12-25","3",30.34]
[10395,"HILAA",6,"2013-12-26",1,184.41,null,null,null,null,null,null,null,null,null,null,null,null,null,null,null,null,null,null,null,null,10395,"HILAA",6,"2013-12-26","1",184.41]
[10396,"FRANK",1,"2013-12-27",3,135.35,null,null,null,null,null,null,null,null,null,null,null,null,null,null,null,null,null,null,null,null,10396,"FRANK",1,"2013-12-27","3",135.35]
[10397,"PRINI",5,"2013-12-27",1,60.26,null,null,null,null,null,null,null,null,null,null,null,null,null,null,null,null,null,null,null,null,10397,"PRINI",5,"2013-12-27","1",60.26]
[10398,"SAVEA",2,"2013-12-30",3,89.16,null,null,null,null,null,null,null,null,null,null,null,null,null,null,null,null,null,null,null,null,10398,"SAVEA",2,"2013-12-30","3",89.16]
[10399,"VAFFE",8,"2013-12-31",3,27.36,null,null,null,null,null,null,null,null,null,null,null,null,null,null,null,null,null,null,null,null,10399,"VAFFE",8,"2013-12-31","3",27.36]
[10400,"EASTC",1,"2014-01-01",3,83.93,null,null,null,null,null,null,null,null,null,null,null,null,null,null,null,null,null,null,null,null,10400,"EASTC",1,"2014-01-01","3",83.93]
[10401,"RATTC",1,"2014-01-01",1,12.51,null,null,null,null,null,null,null,null,null,null,null,null,null,null,null,null,null,null,null,null,10401,"RATTC",1,"2014-01-01","1",12.51]
[10402,"ERNSH",8,"2014-01-02",2,67.88,null,null,null,null,null,null,null,null,null,null,null,null,null,null,null,null,null,null,null,null,10402,"ERNSH",8,"2014-01-02","2",67.88]
[10403,"ERNSH",4,"2014-01-03",3,73.790000000000006,null,null,null,null,null,null,null,null,null,null,null,null,null,null,null,null,null,null,null,null,10403,"ERNSH",4,"2014-01-03","3",73.790000000000006]
[10404,"MAGAA",2,"2014-01-03",1,155.97,null,null,null,null,null,null,null,null,null,null,null,null,null,null,null,null,null,null,null,null,10404,"MAGAA",2,"2014-01-03","1",155.97]
[10405,"LINOD",1,"2014-01-06",1,34.82,null,null,null,null,null,null,null,null,null,null,null,null,null,null,null,null,null,null,null,null,10405,"LINOD",1,"2014-01-06","1",34.82]
[10406,"QUEEN",7,"2014-01-07",1,108.04,null,null,null,null,null,null,null,null,null,null,null,null,null,null,null,null,null,null,null,null,10406,"QUEEN",7,"2014-01-07","1",108.04]
[10407,"OTTIK",2,"2014-01-07",2,91.48,null,null,null,null,null,null,null,null,null,null,null,null,null,null,null,null,null,null,null,null,10407,"OTTIK",2,"2014-01-07","2",91.48]
[10408,"FOLIG",8,"2014-01-08",1,11.26,null,null,null,null,null,null,null,null,null,null,null,null,null,null,null,null,null,null,null,null,10408,"FOLIG",8,"2014-01-08","1",11.26]
[10409,"OCEAN",3,"2014-01-09",1,29.83,null,null,null,null,null,null,null,null,null,null,null,null,null,null,null,null,null,null,null,null,10409,"OCEAN",3,"2014-01-09","1",29.83]
[10410,"BOTTM",3,"2014-01-10",3,2.4,null,null,null,null,null,null,null,null,null,null,null,null,null,null,null,null,null,null,null,null,10410,"BOTTM",3,"2014-01-10","3",2.4]
[10411,"BOTTM",9,"2014-01-10",3,23.65,null,null,null,null,null,null,null,null,null,null,null,null,null,null,null,null,null,null,null,null,10411,"BOTTM",9,"2014-01-10","3",23.65]
[10412,"WARTH",8,"2014-01-13",2,3.77,null,null,null,null,null,null,null,null,null,null,null,null,null,null,null,null,null,null,null,null,10412,"WARTH",8,"2014-01-13","2",3.77]
[10413,"LAMAI",3,"2014-01-14",2,95.66,null,null,null,null,null,null,null,null,null,null,null,null,null,null,null,null,null,null,null,null,10413,"LAMAI",3,"2014-01-14","2",95.66]
[10414,"FAMIA",2,"2014-01-14",3,21.48,null,null,null,null,null,null,null,null,null,null,null,null,null,null,null,null,null,null,null,null,10414,"FAMIA",2,"2014-01-14","3",21.48]
[10415,"HUNGC",3,"2014-01-15",1,0.2,null,null,null,null,null,null,null,null,null,null,null,null,null,null,null,null,null,null,null,null,10415,"HUNGC",3,"2014-01-15","1",0.2]
[10416,"WARTH",8,"2014-01-16",3,22.72,null,null,null,null,null,null,null,null,null,null,null,null,null,null,null,null,null,null,null,null,10416,"WARTH",8,"2014-01-16","3",22.72]
[10417,"SIMOB",4,"2014-01-16",3,70.290000000000006,null,null,null,null,null,null,null,null,null,null,null,null,null,null,null,null,null,null,null,null,10417,"SIMOB",4,"2014-01-16","3",70.290000000000006]
[10418,"QUICK",4,"2014-01-17",1,17.55,null,null,null,null,null,null,null,null,null,null,null,null,null,null,null,null,null,null,null,null,10418,"QUICK",4,"2014-01-17","1",17.55]
[10419,"RICSU",4,"2014-01-20",2,137.35,null,null,null,null,null,null,null,null,null,null,null,null,null,null,null,null,null,null,null,null,10419,"RICSU",4,"2014-01-20","2",137.35]
[10420,"WELLI",3,"2014-01-21",1,44.12,null,null,null,null,null,null,null,null,null,null,null,null,null,null,null,null,null,null,null,null,10420,"WELLI",3,"2014-01-21","1",44.12]
[10421,"QUEDE",8,"2014-01-21",1,99.23,null,null,null,null,null,null,null,null,null,null,null,null,null,null,null,null,null,null,null,null,10421,"QUEDE",8,"2014-01-21","1",99.23]
[10422,"FRANS",2,"2014-01-22",1,3.02,null,null,null,null,null,null,null,null,null,null,null,null,null,null,null,null,null,null,null,null,10422,"FRANS",2,"2014-01-22","1",3.02]
[10423,"GOURL",6,"2014-01-23",3,24.5,null,null,null,null,null,null,null,null,null,null,null,null,null,null,null,null,null,null,null,null,10423,"GOURL",6,"2014-01-23","3",24.5]
[10424,"MEREP",7,"2014-01-23",2,370.61,null,null,null,null,null,null,null,null,null,null,null,null,null,null,null,null,null,null,null,null,10424,"MEREP",7,"2014-01-23","2",370.61]
[10425,"LAMAI",6,"2014-01-24",2,7.93,null,null,null,null,null,null,null,null,null,null,null,null,null,null,null,null,null,null,null,null,10425,"LAMAI",6,"2014-01-24","2",7.93]
[10426,"GALED",4,"2014-01-27",1,18.690000000000001,null,null,null,null,null,null,null,null,null,null,null,null,null,null,null,null,null,null,null,null,10426,"GALED",4,"2014-01-27","1",18.690000000000001]
[10427,"PICCO",4,"2014-01-27",2,31.29,null,null,null,null,null,null,null,null,null,null,null,null,null,null,null,null,null,null,null,null,10427,"PICCO",4,"2014-01-27","2",31.29]
[10428,"REGGC",7,"2014-01-28",1,11.09,null,null,null,null,null,null,null,null,null,null,null,null,null,null,null,null,null,null,null,null,10428,"REGGC",7,"2014-01-28","1",11.09]
[10429,"HUNGO",3,"2014-01-29",2,56.63,null,null,null,null,null,null,null,null,null,null,null,null,null,null,null,null,null,null,null,null,10429,"HUNGO",3,"2014-01-29","2",56.63]
[10430,"ERNSH",4,"2014-01-30",1,458.78,null,null,null,null,null,null,null,null,null,null,null,null,null,null,null,null,null,null,null,null,10430,"ERNSH",4,"2014-01-30","1",458.78]
[10431,"BOTTM",4,"2014-01-30",2,44.17,null,null,null,null,null,null,null,null,null,null,null,null,null,null,null,null,null,null,null,null,10431,"BOTTM",4,"2014-01-30","2",44.17]
[10432,"SPLIR",3,"2014-01-31",2,4.34,null,null,null,null,null,null,null,null,null,null,null,null,null,null,null,null,null,null,null,null,10432,"SPLIR",3,"2014-01-31","2",4.34]
[10433,"PRINI",3,"2014-02-03",3,73.83,null,null,null,null,null,null,null,null,null,null,null,null,null,null,null,null,null,null,null,null,10433,"PRINI",3,"2014-02-03","3",73.83]
[10434,"FOLKO",3,"2014-02-03",2,17.920000000000002,null,null,null,null,null,null,null,null,null,null,null,null,null,null,null,null,null,null,null,null,10434,"FOLKO",3,"2014-02-03","2",17.920000000000002]
[10435,"CONSH",8,"2014-02-04",2,9.2100000000000009,null,null,null,null,null,null,null,null,null,null,null,null,null,null,null,null,null,null,null,null,10435,"CONSH",8,"2014-02-04","2",9.2100000000000009]
[10436,"BLONP",3,"2014-02-05",2,156.66,null,null,null,null,null,null,null,null,null,null,null,null,null,null,null,null,null,null,null,null,10436,"BLONP",3,"2014-02-05","2",156.66]
[10437,"WARTH",8,"2014-02-05",1,19.97,null,null,null,null,null,null,null,null,null,null,null,null,null,null,null,null,null,null,null,null,10437,"WARTH",8,"2014-02-05","1",19.97]
[10438,"TOMSP",3,"2014-02-06",2,8.24,null,null,null,null,null,null,null,null,null,null,null,null,null,null,null,null,null,null,null,null,10438,"TOMSP",3,"2014-02-06","2",8.24]
[10439,"MEREP",6,"2014-02-07",3,4.07,null,null,null,null,null,null,null,null,null,null,null,null,null,null,null,null,null,null,null,null,10439,"MEREP",6,"2014-02-07","3",4.07]
[10440,"SAVEA",4,"2014-02-10",2,86.53,null,null,null,null,null,null,null,null,null,null,null,null,null,null,null,null,null,null,null,null,10440,"SAVEA",4,"2014-02-10","2",86.53]
[10441,"OLDWO",3,"2014-02-10",2,73.02,null,null,null,null,null,null,null,null,null,null,null,null,null,null,null,null,null,null,null,null,10441,"OLDWO",3,"2014-02-10","2",73.02]
[10442,"ERNSH",3,"2014-02-11",2,47.94,null,null,null,null,null,null,null,null,null,null,null,null,null,null,null,null,null,null,null,null,10442,"ERNSH",3,"2014-02-11","2",47.94]
[10443,"REGGC",8,"2014-02-12",1,13.95,null,null,null,null,null,null,null,null,null,null,null,null,null,null,null,null,null,null,null,null,10443,"REGGC",8,"2014-02-12","1",13.95]
[10444,"BERGS",3,"2014-02-12",3,3.5,null,null,null,null,null,null,null,null,null,null,null,null,null,null,null,null,null,null,null,null,10444,"BERGS",3,"2014-02-12","3",3.5]
[10445,"BERGS",3,"2014-02-13",1,9.3000000000000007,null,null,null,null,null,null,null,null,null,null,null,null,null,null,null,null,null,null,null,null,10445,"BERGS",3,"2014-02-13","1",9.3000000000000007]
[10446,"TOMSP",6,"2014-02-14",1,14.68,null,null,null,null,null,null,null,null,null,null,null,null,null,null,null,null,null,null,null,null,10446,"TOMSP",6,"2014-02-14","1",14.68]
[10447,"RICAR",4,"2014-02-14",2,68.66,null,null,null,null,null,null,null,null,null,null,null,null,null,null,null,null,null,null,null,null,10447,"RICAR",4,"2014-02-14","2",68.66]
[10448,"RANCH",4,"2014-02-17",2,38.82,null,null,null,null,null,null,null,null,null,null,null,null,null,null,null,null,null,null,null,null,10448,"RANCH",4,"2014-02-17","2",38.82]
[10449,"BLONP",3,"2014-02-18",2,53.3,null,null,null,null,null,null,null,null,null,null,null,null,null,null,null,null,null,null,null,null,10449,"BLONP",3,"2014-02-18","2",53.3]
[10450,"VICTE",8,"2014-02-19",2,7.23,null,null,null,null,null,null,null,null,null,null,null,null,null,null,null,null,null,null,null,null,10450,"VICTE",8,"2014-02-19","2",7.23]
[10451,"QUICK",4,"2014-02-19",3,189.09,null,null,null,null,null,null,null,null,null,null,null,null,null,null,null,null,null,null,null,null,10451,"QUICK",4,"2014-02-19","3",189.09]
[10452,"SAVEA",8,"2014-02-20",1,140.26,null,null,null,null,null,null,null,null,null,null,null,null,null,null,null,null,null,null,null,null,10452,"SAVEA",8,"2014-02-20","1",140.26]
[10453,"AROUT",1,"2014-02-21",2,25.36,null,null,null,null,null,null,null,null,null,null,null,null,null,null,null,null,null,null,null,null,10453,"AROUT",1,"2014-02-21","2",25.36]
[10454,"LAMAI",4,"2014-02-21",3,2.74,null,null,null,null,null,null,null,null,null,null,null,null,null,null,null,null,null,null,null,null,10454,"LAMAI",4,"2014-02-21","3",2.74]
[10455,"WARTH",8,"2014-02-24",2,180.45,null,null,null,null,null,null,null,null,null,null,null,null,null,null,null,null,null,null,null,null,10455,"WARTH",8,"2014-02-24","2",180.45]
[10456,"KOENE",8,"2014-02-25",2,8.1199999999999992,null,null,null,null,null,null,null,null,null,null,null,null,null,null,null,null,null,null,null,null,10456,"KOENE",8,"2014-02-25","2",8.1199999999999992]
[10457,"KOENE",2,"2014-02-25",1,11.57,null,null,null,null,null,null,null,null,null,null,null,null,null,null,null,null,null,null,null,null,10457,"KOENE",2,"2014-02-25","1",11.57]
[10458,"SUPRD",7,"2014-02-26",3,147.06,null,null,null,null,null,null,null,null,null,null,null,null,null,null,null,null,null,null,null,null,10458,"SUPRD",7,"2014-02-26","3",147.06]
[10459,"VICTE",4,"2014-02-27",2,25.09,null,null,null,null,null,null,null,null,null,null,null,null,null,null,null,null,null,null,null,null,10459,"VICTE",4,"2014-02-27","2",25.09]
[10460,"FOLKO",8,"2014-02-28",1,16.27,null,null,null,null,null,null,null,null,null,null,null,null,null,null,null,null,null,null,null,null,10460,"FOLKO",8,"2014-02-28","1",16.27]
[10461,"LILAS",1,"2014-02-28",3,148.61000000000001,null,null,null,null,null,null,null,null,null,null,null,null,null,null,null,null,null,null,null,null,10461,"LILAS",1,"2014-02-28","3",148.61000000000001]
[10462,"CONSH",2,"2014-03-03",1,6.17,null,null,null,null,null,null,null,null,null,null,null,null,null,null,null,null,null,null,null,null,10462,"CONSH",2,"2014-03-03","1",6.17]
[10463,"SUPRD",5,"2014-03-04",3,14.78,null,null,null,null,null,null,null,null,null,null,null,null,null,null,null,null,null,null,null,null,10463,"SUPRD",5,"2014-03-04","3",14.78]
[10464,"FURIB",4,"2014-03-04",2,89,null,null,null,null,null,null,null,null,null,null,null,null,null,null,null,null,null,null,null,null,10464,"FURIB",4,"2014-03-04","2",89]
[10465,"VAFFE",1,"2014-03-05",3,145.04,null,null,null,null,null,null,null,null,null,null,null,null,null,null,null,null,null,null,null,null,10465,"VAFFE",1,"2014-03-05","3",145.04]
[10466,"COMMI",4,"2014-03-06",1,11.93,null,null,null,null,null,null,null,null,null,null,null,null,null,null,null,null,null,null,null,null,10466,"COMMI",4,"2014-03-06","1",11.93]
[10467,"MAGAA",8,"2014-03-06",2,4.93,null,null,null,null,null,null,null,null,null,null,null,null,null,null,null,null,null,null,null,null,10467,"MAGAA",8,"2014-03-06","2",4.93]
[10468,"KOENE",3,"2014-03-07",3,44.12,null,null,null,null,null,null,null,null,null,null,null,null,null,null,null,null,null,null,null,null,10468,"KOENE",3,"2014-03-07","3",44.12]
[10469,"WHITC",1,"2014-03-10",1,60.18,null,null,null,null,null,null,null,null,null,null,null,null,null,null,null,null,null,null,null,null,10469,"WHITC",1,"2014-03-10","1",60.18]
[10470,"BONAP",4,"2014-03-11",2,64.56,null,null,null,null,null,null,null,null,null,null,null,null,null,null,null,null,null,null,null,null,10470,"BONAP",4,"2014-03-11","2",64.56]
[10471,"BSBEV",2,"2014-03-11",3,45.59,null,null,null,null,null,null,null,null,null,null,null,null,null,null,null,null,null,null,null,null,10471,"BSBEV",2,"2014-03-11","3",45.59]
[10472,"SEVES",8,"2014-03-12",1,4.2,null,null,null,null,null,null,null,null,null,null,null,null,null,null,null,null,null,null,null,null,10472,"SEVES",8,"2014-03-12","1",4.2]
[10473,"ISLAT",1,"2014-03-13",3,16.37,null,null,null,null,null,null,null,null,null,null,null,null,null,null,null,null,null,null,null,null,10473,"ISLAT",1,"2014-03-13","3",16.37]
[10474,"PERIC",5,"2014-03-13",2,83.49,null,null,null,null,null,null,null,null,null,null,null,null,null,null,null,null,null,null,null,null,10474,"PERIC",5,"2014-03-13","2",83.49]
[10475,"SUPRD",9,"2014-03-14",1,68.52,null,null,null,null,null,null,null,null,null,null,null,null,null,null,null,null,null,null,null,null,10475,"SUPRD",9,"2014-03-14","1",68.52]
[10476,"HILAA",8,"2014-03-17",3,4.41,null,null,null,null,null,null,null,null,null,null,null,null,null,null,null,null,null,null,null,null,10476,"HILAA",8,"2014-03-17","3",4.41]
[10477,"PRINI",5,"2014-03-17",2,13.02,null,null,null,null,null,null,null,null,null,null,null,null,null,null,null,null,null,null,null,null,10477,"PRINI",5,"2014-03-17","2",13.02]
[10478,"VICTE",2,"2014-03-18",3,4.8099999999999996,null,null,null,null,null,null,null,null,null,null,null,null,null,null,null,null,null,null,null,null,10478,"VICTE",2,"2014-03-18","3",4.8099999999999996]
[10479,"RATTC",3,"2014-03-19",3,708.95,null,null,null,null,null,null,null,null,null,null,null,null,null,null,null,null,null,null,null,null,10479,"RATTC",3,"2014-03-19","3",708.95]
[10480,"FOLIG",6,"2014-03-20",2,1.35,null,null,null,null,null,null,null,null,null,null,null,null,null,null,null,null,null,null,null,null,10480,"FOLIG",6,"2014-03-20","2",1.35]
[10481,"RICAR",8,"2014-03-20",2,64.33,null,null,null,null,null,null,null,null,null,null,null,null,null,null,null,null,null,null,null,null,10481,"RICAR",8,"2014-03-20","2",64.33]
[10482,"LAZYK",1,"2014-03-21",3,7.48,null,null,null,null,null,null,null,null,null,null,null,null,null,null,null,null,null,null,null,null,10482,"LAZYK",1,"2014-03-21","3",7.48]
[10483,"WHITC",7,"2014-03-24",2,15.28,null,null,null,null,null,null,null,null,null,null,null,null,null,null,null,null,null,null,null,null,10483,"WHITC",7,"2014-03-24","2",15.28]
[10484,"BSBEV",3,"2014-03-24",3,6.88,null,null,null,null,null,null,null,null,null,null,null,null,null,null,null,null,null,null,null,null,10484,"BSBEV",3,"2014-03-24","3",6.88]
[10485,"LINOD",4,"2014-03-25",2,64.45,null,null,null,null,null,null,null,null,null,null,null,null,null,null,null,null,null,null,null,null,10485,"LINOD",4,"2014-03-25","2",64.45]
[10486,"HILAA",1,"2014-03-26",2,30.53,null,null,null,null,null,null,null,null,null,null,null,null,null,null,null,null,null,null,null,null,10486,"HILAA",1,"2014-03-26","2",30.53]
[10487,"QUEEN",2,"2014-03-26",2,71.069999999999993,null,null,null,null,null,null,null,null,null,null,null,null,null,null,null,null,null,null,null,null,10487,"QUEEN",2,"2014-03-26","2",71.069999999999993]
[10488,"FRANK",8,"2014-03-27",2,4.93,null,null,null,null,null,null,null,null,null,null,null,null,null,null,null,null,null,null,null,null,10488,"FRANK",8,"2014-03-27","2",4.93]
[10489,"PICCO",6,"2014-03-28",2,5.29,null,null,null,null,null,null,null,null,null,null,null,null,null,null,null,null,null,null,null,null,10489,"PICCO",6,"2014-03-28","2",5.29]
[10490,"HILAA",7,"2014-03-31",2,210.19,null,null,null,null,null,null,null,null,null,null,null,null,null,null,null,null,null,null,null,null,10490,"HILAA",7,"2014-03-31","2",210.19]
[10491,"FURIB",8,"2014-03-31",3,16.96,null,null,null,null,null,null,null,null,null,null,null,null,null,null,null,null,null,null,null,null,10491,"FURIB",8,"2014-03-31","3",16.96]
[10492,"BOTTM",3,"2014-04-01",1,62.89,null,null,null,null,null,null,null,null,null,null,null,null,null,null,null,null,null,null,null,null,10492,"BOTTM",3,"2014-04-01","1",62.89]
[10493,"LAMAI",4,"2014-04-02",3,10.64,null,null,null,null,null,null,null,null,null,null,null,null,null,null,null,null,null,null,null,null,10493,"LAMAI",4,"2014-04-02","3",10.64]
[10494,"COMMI",4,"2014-04-02",2,65.989999999999995,null,null,null,null,null,null,null,null,null,null,null,null,null,null,null,null,null,null,null,null,10494,"COMMI",4,"2014-04-02","2",65.989999999999995]
[10495,"LAUGB",3,"2014-04-03",3,4.6500000000000004,null,null,null,null,null,null,null,null,null,null,null,null,null,null,null,null,null,null,null,null,10495,"LAUGB",3,"2014-04-03","3",4.6500000000000004]
[10496,"TRADH",7,"2014-04-04",2,46.77,null,null,null,null,null,null,null,null,null,null,null,null,null,null,null,null,null,null,null,null,10496,"TRADH",7,"2014-04-04","2",46.77]
[10497,"LEHMS",7,"2014-04-04",1,36.21,null,null,null,null,null,null,null,null,null,null,null,null,null,null,null,null,null,null,null,null,10497,"LEHMS",7,"2014-04-04","1",36.21]
[10498,"HILAA",8,"2014-04-07",2,29.75,null,null,null,null,null,null,null,null,null,null,null,null,null,null,null,null,null,null,null,null,10498,"HILAA",8,"2014-04-07","2",29.75]
[10499,"LILAS",4,"2014-04-08",2,102.02,null,null,null,null,null,null,null,null,null,null,null,null,null,null,null,null,null,null,null,null,10499,"LILAS",4,"2014-04-08","2",102.02]
[10500,"LAMAI",6,"2014-04-09",1,42.68,null,null,null,null,null,null,null,null,null,null,null,null,null,null,null,null,null,null,null,null,10500,"LAMAI",6,"2014-04-09","1",42.68]
[10501,"BLAUS",9,"2014-04-09",3,8.85,null,null,null,null,null,null,null,null,null,null,null,null,null,null,null,null,null,null,null,null,10501,"BLAUS",9,"2014-04-09","3",8.85]
[10502,"PERIC",2,"2014-04-10",1,69.319999999999993,null,null,null,null,null,null,null,null,null,null,null,null,null,null,null,null,null,null,null,null,10502,"PERIC",2,"2014-04-10","1",69.319999999999993]
[10503,"HUNGO",6,"2014-04-11",2,16.739999999999998,null,null,null,null,null,null,null,null,null,null,null,null,null,null,null,null,null,null,null,null,10503,"HUNGO",6,"2014-04-11","2",16.739999999999998]
[10504,"WHITC",4,"2014-04-11",3,59.13,null,null,null,null,null,null,null,null,null,null,null,null,null,null,null,null,null,null,null,null,10504,"WHITC",4,"2014-04-11","3",59.13]
[10505,"MEREP",3,"2014-04-14",3,7.13,null,null,null,null,null,null,null,null,null,null,null,null,null,null,null,null,null,null,null,null,10505,"MEREP",3,"2014-04-14","3",7.13]
[10506,"KOENE",9,"2014-04-15",2,21.19,null,null,null,null,null,null,null,null,null,null,null,null,null,null,null,null,null,null,null,null,10506,"KOENE",9,"2014-04-15","2",21.19]
[10507,"ANTON",7,"2014-04-15",1,47.45,null,null,null,null,null,null,null,null,null,null,null,null,null,null,null,null,null,null,null,null,10507,"ANTON",7,"2014-04-15","1",47.45]
[10508,"OTTIK",1,"2014-04-16",2,4.99,null,null,null,null,null,null,null,null,null,null,null,null,null,null,null,null,null,null,null,null,10508,"OTTIK",1,"2014-04-16","2",4.99]
[10509,"BLAUS",4,"2014-04-17",1,1,null,null,null,null,null,null,null,null,null,null,null,null,null,null,null,null,null,null,null,null,10509,"BLAUS",4,"2014-04-17","1",1]
[10510,"SAVEA",6,"2014-04-18",3,367.63,null,null,null,null,null,null,null,null,null,null,null,null,null,null,null,null,null,null,null,null,10510,"SAVEA",6,"2014-04-18","3",367.63]
[10511,"BONAP",4,"2014-04-18",3,350.64,null,null,null,null,null,null,null,null,null,null,null,null,null,null,null,null,null,null,null,null,10511,"BONAP",4,"2014-04-18","3",350.64]
[10512,"FAMIA",7,"2014-04-21",2,3.53,null,null,null,null,null,null,null,null,null,null,null,null,null,null,null,null,null,null,null,null,10512,"FAMIA",7,"2014-04-21","2",3.53]
[10513,"WANDK",7,"2014-04-22",1,105.65,null,null,null,null,null,null,null,null,null,null,null,null,null,null,null,null,null,null,null,null,10513,"WANDK",7,"2014-04-22","1",105.65]
[10514,"ERNSH",3,"2014-04-22",2,789.95,null,null,null,null,null,null,null,null,null,null,null,null,null,null,null,null,null,null,null,null,10514,"ERNSH",3,"2014-04-22","2",789.95]
[10515,"QUICK",2,"2014-04-23",1,204.47,null,null,null,null,null,null,null,null,null,null,null,null,null,null,null,null,null,null,null,null,10515,"QUICK",2,"2014-04-23","1",204.47]
[10516,"HUNGO",2,"2014-04-24",3,62.78,null,null,null,null,null,null,null,null,null,null,null,null,null,null,null,null,null,null,null,null,10516,"HUNGO",2,"2014-04-24","3",62.78]
[10517,"NORTS",3,"2014-04-24",3,32.07,null,null,null,null,null,null,null,null,null,null,null,null,null,null,null,null,null,null,null,null,10517,"NORTS",3,"2014-04-24","3",32.07]
[10518,"TORTU",4,"2014-04-25",2,218.15,null,null,null,null,null,null,null,null,null,null,null,null,null,null,null,null,null,null,null,null,10518,"TORTU",4,"2014-04-25","2",218.15]
[10519,"CHOPS",6,"2014-04-28",3,91.76,null,null,null,null,null,null,null,null,null,null,null,null,null,null,null,null,null,null,null,null,10519,"CHOPS",6,"2014-04-28","3",91.76]
[10520,"SANTG",7,"2014-04-29",1,13.37,null,null,null,null,null,null,null,null,null,null,null,null,null,null,null,null,null,null,null,null,10520,"SANTG",7,"2014-04-29","1",13.37]
[10521,"CACTU",8,"2014-04-29",2,17.22,null,null,null,null,null,null,null,null,null,null,null,null,null,null,null,null,null,null,null,null,10521,"CACTU",8,"2014-04-29","2",17.22]
[10522,"LEHMS",4,"2014-04-30",1,45.33,null,null,null,null,null,null,null,null,null,null,null,null,null,null,null,null,null,null,null,null,10522,"LEHMS",4,"2014-04-30","1",45.33]
[10523,"SEVES",7,"2014-05-01",2,77.63,null,null,null,null,null,null,null,null,null,null,null,null,null,null,null,null,null,null,null,null,10523,"SEVES",7,"2014-05-01","2",77.63]
[10524,"BERGS",1,"2014-05-01",2,244.79,null,null,null,null,null,null,null,null,null,null,null,null,null,null,null,null,null,null,null,null,10524,"BERGS",1,"2014-05-01","2",244.79]
[10525,"BONAP",1,"2014-05-02",2,11.06,null,null,null,null,null,null,null,null,null,null,null,null,null,null,null,null,null,null,null,null,10525,"BONAP",1,"2014-05-02","2",11.06]
[10526,"WARTH",4,"2014-05-05",2,58.59,null,null,null,null,null,null,null,null,null,null,null,null,null,null,null,null,null,null,null,null,10526,"WARTH",4,"2014-05-05","2",58.59]
[10527,"QUICK",7,"2014-05-05",1,41.9,null,null,null,null,null,null,null,null,null,null,null,null,null,null,null,null,null,null,null,null,10527,"QUICK",7,"2014-05-05","1",41.9]
[10528,"GREAL",6,"2014-05-06",2,3.35,null,null,null,null,null,null,null,null,null,null,null,null,null,null,null,null,null,null,null,null,10528,"GREAL",6,"2014-05-06","2",3.35]
[10529,"MAISD",5,"2014-05-07",2,66.69,null,null,null,null,null,null,null,null,null,null,null,null,null,null,null,null,null,null,null,null,10529,"MAISD",5,"2014-05-07","2",66.69]
[10530,"PICCO",3,"2014-05-08",2,339.22,null,null,null,null,null,null,null,null,null,null,null,null,null,null,null,null,null,null,null,null,10530,"PICCO",3,"2014-05-08","2",339.22]
[10531,"OCEAN",7,"2014-05-08",1,8.1199999999999992,null,null,null,null,null,null,null,null,null,null,null,null,null,null,null,null,null,null,null,null,10531,"OCEAN",7,"2014-05-08","1",8.1199999999999992]
[10532,"EASTC",7,"2014-05-09",3,74.459999999999994,null,null,null,null,null,null,null,null,null,null,null,null,null,null,null,null,null,null,null,null,10532,"EASTC",7,"2014-05-09","3",74.459999999999994]
[10533,"FOLKO",8,"2014-05-12",1,188.04,null,null,null,null,null,null,null,null,null,null,null,null,null,null,null,null,null,null,null,null,10533,"FOLKO",8,"2014-05-12","1",188.04]
[10534,"LEHMS",8,"2014-05-12",2,27.94,null,null,null,null,null,null,null,null,null,null,null,null,null,null,null,null,null,null,null,null,10534,"LEHMS",8,"2014-05-12","2",27.94]
[10535,"ANTON",4,"2014-05-13",1,15.64,null,null,null,null,null,null,null,null,null,null,null,null,null,null,null,null,null,null,null,null,10535,"ANTON",4,"2014-05-13","1",15.64]
[10536,"LEHMS",3,"2014-05-14",2,58.88,null,null,null,null,null,null,null,null,null,null,null,null,null,null,null,null,null,null,null,null,10536,"LEHMS",3,"2014-05-14","2",58.88]
[10537,"RICSU",1,"2014-05-14",1,78.849999999999994,null,null,null,null,null,null,null,null,null,null,null,null,null,null,null,null,null,null,null,null,10537,"RICSU",1,"2014-05-14","1",78.849999999999994]
[10538,"BSBEV",9,"2014-05-15",3,4.87,null,null,null,null,null,null,null,null,null,null,null,null,null,null,null,null,null,null,null,null,10538,"BSBEV",9,"2014-05-15","3",4.87]
[10539,"BSBEV",6,"2014-05-16",3,12.36,null,null,null,null,null,null,null,null,null,null,null,null,null,null,null,null,null,null,null,null,10539,"BSBEV",6,"2014-05-16","3",12.36]
[10540,"QUICK",3,"2014-05-19",3,780,null,null,null,null,null,null,null,null,null,null,null,null,null,null,null,null,null,null,null,null,10540,"QUICK",3,"2014-05-19","3",780]
[10541,"HANAR",2,"2014-05-19",1,68.650000000000006,null,null,null,null,null,null,null,null,null,null,null,null,null,null,null,null,null,null,null,null,10541,"HANAR",2,"2014-05-19","1",68.650000000000006]
[10542,"KOENE",1,"2014-05-20",3,10.95,null,null,null,null,null,null,null,null,null,null,null,null,null,null,null,null,null,null,null,null,10542,"KOENE",1,"2014-05-20","3",10.95]
[10543,"LILAS",8,"2014-05-21",2,48.17,null,null,null,null,null,null,null,null,null,null,null,null,null,null,null,null,null,null,null,null,10543,"LILAS",8,"2014-05-21","2",48.17]
[10544,"LONEP",4,"2014-05-21",1,24.91,null,null,null,null,null,null,null,null,null,null,null,null,null,null,null,null,null,null,null,null,10544,"LONEP",4,"2014-05-21","1",24.91]
[10545,"LAZYK",8,"2014-05-22",2,11.92,null,null,null,null,null,null,null,null,null,null,null,null,null,null,null,null,null,null,null,null,10545,"LAZYK",8,"2014-05-22","2",11.92]
[10546,"VICTE",1,"2014-05-23",3,194.72,null,null,null,null,null,null,null,null,null,null,null,null,null,null,null,null,null,null,null,null,10546,"VICTE",1,"2014-05-23","3",194.72]
[10547,"SEVES",3,"2014-05-23",2,178.43,null,null,null,null,null,null,null,null,null,null,null,null,null,null,null,null,null,null,null,null,10547,"SEVES",3,"2014-05-23","2",178.43]
[10548,"TOMSP",3,"2014-05-26",2,1.43,null,null,null,null,null,null,null,null,null,null,null,null,null,null,null,null,null,null,null,null,10548,"TOMSP",3,"2014-05-26","2",1.43]
[10549,"QUICK",5,"2014-05-27",1,171.24,null,null,null,null,null,null,null,null,null,null,null,null,null,null,null,null,null,null,null,null,10549,"QUICK",5,"2014-05-27","1",171.24]
[10550,"GODOS",7,"2014-05-28",3,4.32,null,null,null,null,null,null,null,null,null,null,null,null,null,null,null,null,null,null,null,null,10550,"GODOS",7,"2014-05-28","3",4.32]
[10551,"FURIB",4,"2014-05-28",3,72.95,null,null,null,null,null,null,null,null,null,null,null,null,null,null,null,null,null,null,null,null,10551,"FURIB",4,"2014-05-28","3",72.95]
[10552,"HILAA",2,"2014-05-29",1,83.22,null,null,null,null,null,null,null,null,null,null,null,null,null,null,null,null,null,null,null,null,10552,"HILAA",2,"2014-05-29","1",83.22]
[10553,"WARTH",2,"2014-05-30",2,149.49,null,null,null,null,null,null,null,null,null,null,null,null,null,null,null,null,null,null,null,null,10553,"WARTH",2,"2014-05-30","2",149.49]
[10554,"OTTIK",4,"2014-05-30",3,120.97,null,null,null,null,null,null,null,null,null,null,null,null,null,null,null,null,null,null,null,null,10554,"OTTIK",4,"2014-05-30","3",120.97]
[10555,"SAVEA",6,"2014-06-02",3,252.49,null,null,null,null,null,null,null,null,null,null,null,null,null,null,null,null,null,null,null,null,10555,"SAVEA",6,"2014-06-02","3",252.49]
[10556,"SIMOB",2,"2014-06-03",1,9.8000000000000007,null,null,null,null,null,null,null,null,null,null,null,null,null,null,null,null,null,null,null,null,10556,"SIMOB",2,"2014-06-03","1",9.8000000000000007]
[10557,"LEHMS",9,"2014-06-03",2,96.72,null,null,null,null,null,null,null,null,null,null,null,null,null,null,null,null,null,null,null,null,10557,"LEHMS",9,"2014-06-03","2",96.72]
[10558,"AROUT",1,"2014-06-04",2,72.97,null,null,null,null,null,null,null,null,null,null,null,null,null,null,null,null,null,null,null,null,10558,"AROUT",1,"2014-06-04","2",72.97]
[10559,"BLONP",6,"2014-06-05",1,8.0500000000000007,null,null,null,null,null,null,null,null,null,null,null,null,null,null,null,null,null,null,null,null,10559,"BLONP",6,"2014-06-05","1",8.0500000000000007]
[10560,"FRANK",8,"2014-06-06",1,36.65,null,null,null,null,null,null,null,null,null,null,null,null,null,null,null,null,null,null,null,null,10560,"FRANK",8,"2014-06-06","1",36.65]
[10561,"FOLKO",2,"2014-06-06",2,242.21,null,null,null,null,null,null,null,null,null,null,null,null,null,null,null,null,null,null,null,null,10561,"FOLKO",2,"2014-06-06","2",242.21]
[10562,"REGGC",1,"2014-06-09",1,22.95,null,null,null,null,null,null,null,null,null,null,null,null,null,null,null,null,null,null,null,null,10562,"REGGC",1,"2014-06-09","1",22.95]
[10563,"RICAR",2,"2014-06-10",2,60.43,null,null,null,null,null,null,null,null,null,null,null,null,null,null,null,null,null,null,null,null,10563,"RICAR",2,"2014-06-10","2",60.43]
[10564,"RATTC",4,"2014-06-10",3,13.75,null,null,null,null,null,null,null,null,null,null,null,null,null,null,null,null,null,null,null,null,10564,"RATTC",4,"2014-06-10","3",13.75]
[10565,"MEREP",8,"2014-06-11",2,7.15,null,null,null,null,null,null,null,null,null,null,null,null,null,null,null,null,null,null,null,null,10565,"MEREP",8,"2014-06-11","2",7.15]
[10566,"BLONP",9,"2014-06-12",1,88.4,null,null,null,null,null,null,null,null,null,null,null,null,null,null,null,null,null,null,null,null,10566,"BLONP",9,"2014-06-12","1",88.4]
[10567,"HUNGO",1,"2014-06-12",1,33.97,null,null,null,null,null,null,null,null,null,null,null,null,null,null,null,null,null,null,null,null,10567,"HUNGO",1,"2014-06-12","1",33.97]
[10568,"GALED",3,"2014-06-13",3,6.54,null,null,null,null,null,null,null,null,null,null,null,null,null,null,null,null,null,null,null,null,10568,"GALED",3,"2014-06-13","3",6.54]
[10569,"RATTC",5,"2014-06-16",1,58.98,null,null,null,null,null,null,null,null,null,null,null,null,null,null,null,null,null,null,null,null,10569,"RATTC",5,"2014-06-16","1",58.98]
[10570,"MEREP",3,"2014-06-17",3,188.99,null,null,null,null,null,null,null,null,null,null,null,null,null,null,null,null,null,null,null,null,10570,"MEREP",3,"2014-06-17","3",188.99]
[10571,"ERNSH",8,"2014-06-17",3,26.06,null,null,null,null,null,null,null,null,null,null,null,null,null,null,null,null,null,null,null,null,10571,"ERNSH",8,"2014-06-17","3",26.06]
[10572,"BERGS",3,"2014-06-18",2,116.43,null,null,null,null,null,null,null,null,null,null,null,null,null,null,null,null,null,null,null,null,10572,"BERGS",3,"2014-06-18","2",116.43]
[10573,"ANTON",7,"2014-06-19",3,84.84,null,null,null,null,null,null,null,null,null,null,null,null,null,null,null,null,null,null,null,null,10573,"ANTON",7,"2014-06-19","3",84.84]
[10574,"TRAIH",4,"2014-06-19",2,37.6,null,null,null,null,null,null,null,null,null,null,null,null,null,null,null,null,null,null,null,null,10574,"TRAIH",4,"2014-06-19","2",37.6]
[10575,"MORGK",5,"2014-06-20",1,127.34,null,null,null,null,null,null,null,null,null,null,null,null,null,null,null,null,null,null,null,null,10575,"MORGK",5,"2014-06-20","1",127.34]
[10576,"TORTU",3,"2014-06-23",3,18.559999999999999,null,null,null,null,null,null,null,null,null,null,null,null,null,null,null,null,null,null,null,null,10576,"TORTU",3,"2014-06-23","3",18.559999999999999]
[10577,"TRAIH",9,"2014-06-23",2,25.41,null,null,null,null,null,null,null,null,null,null,null,null,null,null,null,null,null,null,null,null,10577,"TRAIH",9,"2014-06-23","2",25.41]
[10578,"BSBEV",4,"2014-06-24",3,29.6,null,null,null,null,null,null,null,null,null,null,null,null,null,null,null,null,null,null,null,null,10578,"BSBEV",4,"2014-06-24","3",29.6]
[10579,"LETSS",1,"2014-06-25",2,13.73,null,null,null,null,null,null,null,null,null,null,null,null,null,null,null,null,null,null,null,null,10579,"LETSS",1,"2014-06-25","2",13.73]
[10580,"OTTIK",4,"2014-06-26",3,75.89,null,null,null,null,null,null,null,null,null,null,null,null,null,null,null,null,null,null,null,null,10580,"OTTIK",4,"2014-06-26","3",75.89]
[10581,"FAMIA",3,"2014-06-26",1,3.01,null,null,null,null,null,null,null,null,null,null,null,null,null,null,null,null,null,null,null,null,10581,"FAMIA",3,"2014-06-26","1",3.01]
[10582,"BLAUS",3,"2014-06-27",2,27.71,null,null,null,null,null,null,null,null,null,null,null,null,null,null,null,null,null,null,null,null,10582,"BLAUS",3,"2014-06-27","2",27.71]
[10583,"WARTH",2,"2014-06-30",2,7.28,null,null,null,null,null,null,null,null,null,null,null,null,null,null,null,null,null,null,null,null,10583,"WARTH",2,"2014-06-30","2",7.28]
[10584,"BLONP",4,"2014-06-30",1,59.14,null,null,null,null,null,null,null,null,null,null,null,null,null,null,null,null,null,null,null,null,10584,"BLONP",4,"2014-06-30","1",59.14]
[10585,"WELLI",7,"2014-07-01",1,13.41,null,null,null,null,null,null,null,null,null,null,null,null,null,null,null,null,null,null,null,null,10585,"WELLI",7,"2014-07-01","1",13.41]
[10586,"REGGC",9,"2014-07-02",1,1,null,null,null,null,null,null,null,null,null,null,null,null,null,null,null,null,null,null,null,null,10586,"REGGC",9,"2014-07-02","1",0.48]
[10587,"QUEDE",1,"2014-07-02",1,62.52,null,null,null,null,null,null,null,null,null,null,null,null,null,null,null,null,null,null,null,null,10587,"QUEDE",1,"2014-07-02","1",62.52]
[10588,"QUICK",2,"2014-07-03",3,194.67,null,null,null,null,null,null,null,null,null,null,null,null,null,null,null,null,null,null,null,null,10588,"QUICK",2,"2014-07-03","3",194.67]
[10589,"GREAL",8,"2014-07-04",2,4.42,null,null,null,null,null,null,null,null,null,null,null,null,null,null,null,null,null,null,null,null,10589,"GREAL",8,"2014-07-04","2",4.42]
[10590,"MEREP",4,"2014-07-07",3,44.77,null,null,null,null,null,null,null,null,null,null,null,null,null,null,null,null,null,null,null,null,10590,"MEREP",4,"2014-07-07","3",44.77]
[10591,"VAFFE",1,"2014-07-07",1,55.92,null,null,null,null,null,null,null,null,null,null,null,null,null,null,null,null,null,null,null,null,10591,"VAFFE",1,"2014-07-07","1",55.92]
[10592,"LEHMS",3,"2014-07-08",1,32.1,null,null,null,null,null,null,null,null,null,null,null,null,null,null,null,null,null,null,null,null,10592,"LEHMS",3,"2014-07-08","1",32.1]
[10593,"LEHMS",7,"2014-07-09",2,174.2,null,null,null,null,null,null,null,null,null,null,null,null,null,null,null,null,null,null,null,null,10593,"LEHMS",7,"2014-07-09","2",174.2]
[10594,"OLDWO",3,"2014-07-09",2,5.24,null,null,null,null,null,null,null,null,null,null,null,null,null,null,null,null,null,null,null,null,10594,"OLDWO",3,"2014-07-09","2",5.24]
[10595,"ERNSH",2,"2014-07-10",1,96.78,null,null,null,null,null,null,null,null,null,null,null,null,null,null,null,null,null,null,null,null,10595,"ERNSH",2,"2014-07-10","1",96.78]
[10596,"WHITC",8,"2014-07-11",1,16.34,null,null,null,null,null,null,null,null,null,null,null,null,null,null,null,null,null,null,null,null,10596,"WHITC",8,"2014-07-11","1",16.34]
[10597,"PICCO",7,"2014-07-11",3,35.119999999999997,null,null,null,null,null,null,null,null,null,null,null,null,null,null,null,null,null,null,null,null,10597,"PICCO",7,"2014-07-11","3",35.119999999999997]
[10598,"RATTC",1,"2014-07-14",3,44.42,null,null,null,null,null,null,null,null,null,null,null,null,null,null,null,null,null,null,null,null,10598,"RATTC",1,"2014-07-14","3",44.42]
[10599,"BSBEV",6,"2014-07-15",3,29.98,null,null,null,null,null,null,null,null,null,null,null,null,null,null,null,null,null,null,null,null,10599,"BSBEV",6,"2014-07-15","3",29.98]
[10600,"HUNGC",4,"2014-07-16",1,45.13,null,null,null,null,null,null,null,null,null,null,null,null,null,null,null,null,null,null,null,null,10600,"HUNGC",4,"2014-07-16","1",45.13]
[10601,"HILAA",7,"2014-07-16",1,58.3,null,null,null,null,null,null,null,null,null,null,null,null,null,null,null,null,null,null,null,null,10601,"HILAA",7,"2014-07-16","1",58.3]
[10602,"VAFFE",8,"2014-07-17",2,2.92,null,null,null,null,null,null,null,null,null,null,null,null,null,null,null,null,null,null,null,null,10602,"VAFFE",8,"2014-07-17","2",2.92]
[10603,"SAVEA",8,"2014-07-18",2,48.77,null,null,null,null,null,null,null,null,null,null,null,null,null,null,null,null,null,null,null,null,10603,"SAVEA",8,"2014-07-18","2",48.77]
[10604,"FURIB",1,"2014-07-18",1,7.46,null,null,null,null,null,null,null,null,null,null,null,null,null,null,null,null,null,null,null,null,10604,"FURIB",1,"2014-07-18","1",7.46]
[10605,"MEREP",1,"2014-07-21",2,379.13,null,null,null,null,null,null,null,null,null,null,null,null,null,null,null,null,null,null,null,null,10605,"MEREP",1,"2014-07-21","2",379.13]
[10606,"TRADH",4,"2014-07-22",3,79.400000000000006,null,null,null,null,null,null,null,null,null,null,null,null,null,null,null,null,null,null,null,null,10606,"TRADH",4,"2014-07-22","3",79.400000000000006]
[10607,"SAVEA",5,"2014-07-22",1,200.24,null,null,null,null,null,null,null,null,null,null,null,null,null,null,null,null,null,null,null,null,10607,"SAVEA",5,"2014-07-22","1",200.24]
[10608,"TOMSP",4,"2014-07-23",2,27.79,null,null,null,null,null,null,null,null,null,null,null,null,null,null,null,null,null,null,null,null,10608,"TOMSP",4,"2014-07-23","2",27.79]
[10609,"DUMON",7,"2014-07-24",2,1.85,null,null,null,null,null,null,null,null,null,null,null,null,null,null,null,null,null,null,null,null,10609,"DUMON",7,"2014-07-24","2",1.85]
[10610,"LAMAI",8,"2014-07-25",1,26.78,null,null,null,null,null,null,null,null,null,null,null,null,null,null,null,null,null,null,null,null,10610,"LAMAI",8,"2014-07-25","1",26.78]
[10611,"WOLZA",6,"2014-07-25",2,80.650000000000006,null,null,null,null,null,null,null,null,null,null,null,null,null,null,null,null,null,null,null,null,10611,"WOLZA",6,"2014-07-25","2",80.650000000000006]
[10612,"SAVEA",1,"2014-07-28",2,544.08000000000004,null,null,null,null,null,null,null,null,null,null,null,null,null,null,null,null,null,null,null,null,10612,"SAVEA",1,"2014-07-28","2",544.08000000000004]
[10613,"HILAA",4,"2014-07-29",2,8.11,null,null,null,null,null,null,null,null,null,null,null,null,null,null,null,null,null,null,null,null,10613,"HILAA",4,"2014-07-29","2",8.11]
[10614,"BLAUS",8,"2014-07-29",3,1.93,null,null,null,null,null,null,null,null,null,null,null,null,null,null,null,null,null,null,null,null,10614,"BLAUS",8,"2014-07-29","3",1.93]
[10615,"WILMK",2,"2014-07-30",3,0.75,null,null,null,null,null,null,null,null,null,null,null,null,null,null,null,null,null,null,null,null,10615,"WILMK",2,"2014-07-30","3",0.75]
[10616,"GREAL",1,"2014-07-31",2,116.53,null,null,null,null,null,null,null,null,null,null,null,null,null,null,null,null,null,null,null,null,10616,"GREAL",1,"2014-07-31","2",116.53]
[10617,"GREAL",4,"2014-07-31",2,18.53,null,null,null,null,null,null,null,null,null,null,null,null,null,null,null,null,null,null,null,null,10617,"GREAL",4,"2014-07-31","2",18.53]
[10618,"MEREP",1,"2014-08-01",1,154.68,null,null,null,null,null,null,null,null,null,null,null,null,null,null,null,null,null,null,null,null,10618,"MEREP",1,"2014-08-01","1",154.68]
[10619,"MEREP",3,"2014-08-04",3,91.05,null,null,null,null,null,null,null,null,null,null,null,null,null,null,null,null,null,null,null,null,10619,"MEREP",3,"2014-08-04","3",91.05]
[10620,"LAUGB",2,"2014-08-05",3,0.94,null,null,null,null,null,null,null,null,null,null,null,null,null,null,null,null,null,null,null,null,10620,"LAUGB",2,"2014-08-05","3",0.94]
[10621,"ISLAT",4,"2014-08-05",2,23.73,null,null,null,null,null,null,null,null,null,null,null,null,null,null,null,null,null,null,null,null,10621,"ISLAT",4,"2014-08-05","2",23.73]
[10622,"RICAR",4,"2014-08-06",3,50.97,null,null,null,null,null,null,null,null,null,null,null,null,null,null,null,null,null,null,null,null,10622,"RICAR",4,"2014-08-06","3",50.97]
[10623,"FRANK",8,"2014-08-07",2,97.18,null,null,null,null,null,null,null,null,null,null,null,null,null,null,null,null,null,null,null,null,10623,"FRANK",8,"2014-08-07","2",97.18]
[10624,"THECR",4,"2014-08-07",2,94.8,null,null,null,null,null,null,null,null,null,null,null,null,null,null,null,null,null,null,null,null,10624,"THECR",4,"2014-08-07","2",94.8]
[10625,"ANATR",3,"2014-08-08",1,43.9,null,null,null,null,null,null,null,null,null,null,null,null,null,null,null,null,null,null,null,null,10625,"ANATR",3,"2014-08-08","1",43.9]
[10626,"BERGS",1,"2014-08-11",2,138.69,null,null,null,null,null,null,null,null,null,null,null,null,null,null,null,null,null,null,null,null,10626,"BERGS",1,"2014-08-11","2",138.69]
[10627,"SAVEA",8,"2014-08-11",3,107.46,null,null,null,null,null,null,null,null,null,null,null,null,null,null,null,null,null,null,null,null,10627,"SAVEA",8,"2014-08-11","3",107.46]
[10628,"BLONP",4,"2014-08-12",3,30.36,null,null,null,null,null,null,null,null,null,null,null,null,null,null,null,null,null,null,null,null,10628,"BLONP",4,"2014-08-12","3",30.36]
[10629,"GODOS",4,"2014-08-12",3,85.46,null,null,null,null,null,null,null,null,null,null,null,null,null,null,null,null,null,null,null,null,10629,"GODOS",4,"2014-08-12","3",85.46]
[10630,"KOENE",1,"2014-08-13",2,32.35,null,null,null,null,null,null,null,null,null,null,null,null,null,null,null,null,null,null,null,null,10630,"KOENE",1,"2014-08-13","2",32.35]
[10631,"LAMAI",8,"2014-08-14",1,0.87,null,null,null,null,null,null,null,null,null,null,null,null,null,null,null,null,null,null,null,null,10631,"LAMAI",8,"2014-08-14","1",0.87]
[10632,"WANDK",8,"2014-08-14",1,41.38,null,null,null,null,null,null,null,null,null,null,null,null,null,null,null,null,null,null,null,null,10632,"WANDK",8,"2014-08-14","1",41.38]
[10633,"ERNSH",7,"2014-08-15",3,477.9,null,null,null,null,null,null,null,null,null,null,null,null,null,null,null,null,null,null,null,null,10633,"ERNSH",7,"2014-08-15","3",477.9]
[10634,"FOLIG",4,"2014-08-15",3,487.38,null,null,null,null,null,null,null,null,null,null,null,null,null,null,null,null,null,null,null,null,10634,"FOLIG",4,"2014-08-15","3",487.38]
[10635,"MAGAA",8,"2014-08-18",3,47.46,null,null,null,null,null,null,null,null,null,null,null,null,null,null,null,null,null,null,null,null,10635,"MAGAA",8,"2014-08-18","3",47.46]
[10636,"WARTH",4,"2014-08-19",1,1.1499999999999999,null,null,null,null,null,null,null,null,null,null,null,null,null,null,null,null,null,null,null,null,10636,"WARTH",4,"2014-08-19","1",1.1499999999999999]
[10637,"QUEEN",6,"2014-08-19",1,201.29,null,null,null,null,null,null,null,null,null,null,null,null,null,null,null,null,null,null,null,null,10637,"QUEEN",6,"2014-08-19","1",201.29]
[10638,"LINOD",3,"2014-08-20",1,158.44,null,null,null,null,null,null,null,null,null,null,null,null,null,null,null,null,null,null,null,null,10638,"LINOD",3,"2014-08-20","1",158.44]
[10639,"SANTG",7,"2014-08-20",3,38.64,null,null,null,null,null,null,null,null,null,null,null,null,null,null,null,null,null,null,null,null,10639,"SANTG",7,"2014-08-20","3",38.64]
[10640,"WANDK",4,"2014-08-21",1,23.55,null,null,null,null,null,null,null,null,null,null,null,null,null,null,null,null,null,null,null,null,10640,"WANDK",4,"2014-08-21","1",23.55]
[10641,"HILAA",4,"2014-08-22",2,179.61,null,null,null,null,null,null,null,null,null,null,null,null,null,null,null,null,null,null,null,null,10641,"HILAA",4,"2014-08-22","2",179.61]
[10642,"SIMOB",7,"2014-08-22",3,41.89,null,null,null,null,null,null,null,null,null,null,null,null,null,null,null,null,null,null,null,null,10642,"SIMOB",7,"2014-08-22","3",41.89]
[10643,"ALFKI",6,"2014-08-25",1,29.46,null,null,null,null,null,null,null,null,null,null,null,null,null,null,null,null,null,null,null,null,10643,"AROUT",6,"2014-08-25","1",29.46]
[10644,"WELLI",3,"2014-08-25",2,0.14000000000000001,null,null,null,null,null,null,null,null,null,null,null,null,null,null,null,null,null,null,null,null,10644,"WELLI",3,"2014-08-25","2",0.14000000000000001]
[10645,"HANAR",4,"2014-08-26",1,12.41,null,null,null,null,null,null,null,null,null,null,null,null,null,null,null,null,null,null,null,null,10645,"HANAR",4,"2014-08-26","1",12.41]
[10646,"HUNGO",9,"2014-08-27",3,142.33000000000001,null,null,null,null,null,null,null,null,null,null,null,null,null,null,null,null,null,null,null,null,10646,"HUNGO",9,"2014-08-27","3",142.33000000000001]
[10647,"QUEDE",4,"2014-08-27",2,45.54,null,null,null,null,null,null,null,null,null,null,null,null,null,null,null,null,null,null,null,null,10647,"QUEDE",4,"2014-08-27","2",45.54]
[10648,"RICAR",5,"2014-08-28",2,14.25,null,null,null,null,null,null,null,null,null,null,null,null,null,null,null,null,null,null,null,null,10648,"RICAR",5,"2014-08-28","2",14.25]
[10649,"MAISD",5,"2014-08-28",3,6.2,null,null,null,null,null,null,null,null,null,null,null,null,null,null,null,null,null,null,null,null,10649,"MAISD",5,"2014-08-28","3",6.2]
[10650,"FAMIA",5,"2014-08-29",3,176.81,null,null,null,null,null,null,null,null,null,null,null,null,null,null,null,null,null,null,null,null,10650,"FAMIA",5,"2014-08-29","3",176.81]
[10651,"WANDK",8,"2014-09-01",2,20.6,null,null,null,null,null,null,null,null,null,null,null,null,null,null,null,null,null,null,null,null,10651,"WANDK",8,"2014-09-01","2",20.6]
[10652,"GOURL",4,"2014-09-01",2,7.14,null,null,null,null,null,null,null,null,null,null,null,null,null,null,null,null,null,null,null,null,10652,"GOURL",4,"2014-09-01","2",7.14]
[10653,"FRANK",1,"2014-09-02",1,93.25,null,null,null,null,null,null,null,null,null,null,null,null,null,null,null,null,null,null,null,null,10653,"FRANK",1,"2014-09-02","1",93.25]
[10654,"BERGS",5,"2014-09-02",1,55.26,null,null,null,null,null,null,null,null,null,null,null,null,null,null,null,null,null,null,null,null,10654,"BERGS",5,"2014-09-02","1",55.26]
[10655,"REGGC",1,"2014-09-03",2,4.41,null,null,null,null,null,null,null,null,null,null,null,null,null,null,null,null,null,null,null,null,10655,"REGGC",1,"2014-09-03","2",4.41]
[10656,"GREAL",6,"2014-09-04",1,57.15,null,null,null,null,null,null,null,null,null,null,null,null,null,null,null,null,null,null,null,null,10656,"GREAL",6,"2014-09-04","1",57.15]
[10657,"SAVEA",2,"2014-09-04",2,352.69,null,null,null,null,null,null,null,null,null,null,null,null,null,null,null,null,null,null,null,null,10657,"SAVEA",2,"2014-09-04","2",352.69]
[10658,"QUICK",4,"2014-09-05",1,364.15,null,null,null,null,null,null,null,null,null,null,null,null,null,null,null,null,null,null,null,null,10658,"QUICK",4,"2014-09-05","1",364.15]
[10659,"QUEEN",7,"2014-09-05",2,105.81,null,null,null,null,null,null,null,null,null,null,null,null,null,null,null,null,null,null,null,null,10659,"QUEEN",7,"2014-09-05","2",105.81]
[10660,"HUNGC",8,"2014-09-08",1,111.29,null,null,null,null,null,null,null,null,null,null,null,null,null,null,null,null,null,null,null,null,10660,"HUNGC",8,"2014-09-08","1",111.29]
[10661,"HUNGO",7,"2014-09-09",3,17.55,null,null,null,null,null,null,null,null,null,null,null,null,null,null,null,null,null,null,null,null,10661,"HUNGO",7,"2014-09-09","3",17.55]
[10662,"LONEP",3,"2014-09-09",2,1.28,null,null,null,null,null,null,null,null,null,null,null,null,null,null,null,null,null,null,null,null,10662,"LONEP",3,"2014-09-09","2",1.28]
[10663,"BONAP",2,"2014-09-10",2,113.15,null,null,null,null,null,null,null,null,null,null,null,null,null,null,null,null,null,null,null,null,10663,"BONAP",2,"2014-09-10","2",113.15]
[10664,"FURIB",1,"2014-09-10",3,1.27,null,null,null,null,null,null,null,null,null,null,null,null,null,null,null,null,null,null,null,null,10664,"FURIB",1,"2014-09-10","3",1.27]
[10665,"LONEP",1,"2014-09-11",2,26.31,null,null,null,null,null,null,null,null,null,null,null,null,null,null,null,null,null,null,null,null,10665,"LONEP",1,"2014-09-11","2",26.31]
[10666,"RICSU",7,"2014-09-12",2,232.42,null,null,null,null,null,null,null,null,null,null,null,null,null,null,null,null,null,null,null,null,10666,"RICSU",7,"2014-09-12","2",232.42]
[10667,"ERNSH",7,"2014-09-12",1,78.09,null,null,null,null,null,null,null,null,null,null,null,null,null,null,null,null,null,null,null,null,10667,"ERNSH",7,"2014-09-12","1",78.09]
[10668,"WANDK",1,"2014-09-15",2,47.22,null,null,null,null,null,null,null,null,null,null,null,null,null,null,null,null,null,null,null,null,10668,"WANDK",1,"2014-09-15","2",47.22]
[10669,"SIMOB",2,"2014-09-15",1,24.39,null,null,null,null,null,null,null,null,null,null,null,null,null,null,null,null,null,null,null,null,10669,"SIMOB",2,"2014-09-15","1",24.39]
[10670,"FRANK",4,"2014-09-16",1,203.48,null,null,null,null,null,null,null,null,null,null,null,null,null,null,null,null,null,null,null,null,10670,"FRANK",4,"2014-09-16","1",203.48]
[10671,"FRANR",1,"2014-09-17",1,30.34,null,null,null,null,null,null,null,null,null,null,null,null,null,null,null,null,null,null,null,null,10671,"FRANR",1,"2014-09-17","1",30.34]
[10672,"BERGS",9,"2014-09-17",2,95.75,null,null,null,null,null,null,null,null,null,null,null,null,null,null,null,null,null,null,null,null,10672,"BERGS",9,"2014-09-17","2",95.75]
[10673,"WILMK",2,"2014-09-18",1,22.76,null,null,null,null,null,null,null,null,null,null,null,null,null,null,null,null,null,null,null,null,10673,"WILMK",2,"2014-09-18","1",22.76]
[10674,"ISLAT",4,"2014-09-18",2,0.9,null,null,null,null,null,null,null,null,null,null,null,null,null,null,null,null,null,null,null,null,10674,"ISLAT",4,"2014-09-18","2",0.9]
[10675,"FRANK",5,"2014-09-19",2,31.85,null,null,null,null,null,null,null,null,null,null,null,null,null,null,null,null,null,null,null,null,10675,"FRANK",5,"2014-09-19","2",31.85]
[10676,"TORTU",2,"2014-09-22",2,2.0099999999999998,null,null,null,null,null,null,null,null,null,null,null,null,null,null,null,null,null,null,null,null,10676,"TORTU",2,"2014-09-22","2",2.0099999999999998]
[10677,"ANTON",1,"2014-09-22",3,4.03,null,null,null,null,null,null,null,null,null,null,null,null,null,null,null,null,null,null,null,null,10677,"ANTON",1,"2014-09-22","3",4.03]
[10678,"SAVEA",7,"2014-09-23",3,388.98,null,null,null,null,null,null,null,null,null,null,null,null,null,null,null,null,null,null,null,null,10678,"SAVEA",7,"2014-09-23","3",388.98]
[10679,"BLONP",8,"2014-09-23",3,27.94,null,null,null,null,null,null,null,null,null,null,null,null,null,null,null,null,null,null,null,null,10679,"BLONP",8,"2014-09-23","3",27.94]
[10680,"OLDWO",1,"2014-09-24",1,26.61,null,null,null,null,null,null,null,null,null,null,null,null,null,null,null,null,null,null,null,null,10680,"OLDWO",1,"2014-09-24","1",26.61]
[10681,"GREAL",3,"2014-09-25",3,76.13,null,null,null,null,null,null,null,null,null,null,null,null,null,null,null,null,null,null,null,null,10681,"GREAL",3,"2014-09-25","3",76.13]
[10682,"ANTON",3,"2014-09-25",2,36.130000000000003,null,null,null,null,null,null,null,null,null,null,null,null,null,null,null,null,null,null,null,null,10682,"ANTON",3,"2014-09-25","2",36.130000000000003]
[10683,"DUMON",2,"2014-09-26",1,4.4000000000000004,null,null,null,null,null,null,null,null,null,null,null,null,null,null,null,null,null,null,null,null,10683,"DUMON",2,"2014-09-26","1",4.4000000000000004]
[10684,"OTTIK",3,"2014-09-26",1,145.63,null,null,null,null,null,null,null,null,null,null,null,null,null,null,null,null,null,null,null,null,10684,"OTTIK",3,"2014-09-26","1",145.63]
[10685,"GOURL",4,"2014-09-29",2,33.75,null,null,null,null,null,null,null,null,null,null,null,null,null,null,null,null,null,null,null,null,10685,"GOURL",4,"2014-09-29","2",33.75]
[10686,"PICCO",2,"2014-09-30",1,96.5,null,null,null,null,null,null,null,null,null,null,null,null,null,null,null,null,null,null,null,null,10686,"PICCO",2,"2014-09-30","1",96.5]
[10687,"HUNGO",9,"2014-09-30",2,296.43,null,null,null,null,null,null,null,null,null,null,null,null,null,null,null,null,null,null,null,null,10687,"HUNGO",9,"2014-09-30","2",296.43]
[10688,"VAFFE",4,"2014-10-01",2,299.08999999999997,null,null,null,null,null,null,null,null,null,null,null,null,null,null,null,null,null,null,null,null,10688,"VAFFE",4,"2014-10-01","2",299.08999999999997]
[10689,"BERGS",1,"2014-10-01",2,13.42,null,null,null,null,null,null,null,null,null,null,null,null,null,null,null,null,null,null,null,null,10689,"BERGS",1,"2014-10-01","2",13.42]
[10690,"HANAR",1,"2014-10-02",1,15.8,null,null,null,null,null,null,null,null,null,null,null,null,null,null,null,null,null,null,null,null,10690,"HANAR",1,"2014-10-02","1",15.8]
[10691,"QUICK",2,"2014-10-03",2,810.05,null,null,null,null,null,null,null,null,null,null,null,null,null,null,null,null,null,null,null,null,10691,"QUICK",2,"2014-10-03","2",810.05]
[10692,"ALFKI",4,"2014-10-03",2,61.02,null,null,null,null,null,null,null,null,null,null,null,null,null,null,null,null,null,null,null,null,10692,"ALFKI",4,"2014-10-03","2",61.02]
[10693,"WHITC",3,"2014-10-06",3,139.34,null,null,null,null,null,null,null,null,null,null,null,null,null,null,null,null,null,null,null,null,10693,"WHITC",3,"2014-10-06","3",139.34]
[10694,"QUICK",8,"2014-10-06",3,398.36,null,null,null,null,null,null,null,null,null,null,null,null,null,null,null,null,null,null,null,null,10694,"QUICK",8,"2014-10-06","3",398.36]
[10695,"WILMK",7,"2014-10-07",1,16.72,null,null,null,null,null,null,null,null,null,null,null,null,null,null,null,null,null,null,null,null,10695,"WILMK",7,"2014-10-07","1",16.72]
[10696,"WHITC",8,"2014-10-08",3,102.55,null,null,null,null,null,null,null,null,null,null,null,null,null,null,null,null,null,null,null,null,10696,"WHITC",8,"2014-10-08","3",102.55]
[10697,"LINOD",3,"2014-10-08",1,45.52,null,null,null,null,null,null,null,null,null,null,null,null,null,null,null,null,null,null,null,null,10697,"LINOD",3,"2014-10-08","1",45.52]
[10698,"ERNSH",4,"2014-10-09",1,272.47000000000003,null,null,null,null,null,null,null,null,null,null,null,null,null,null,null,null,null,null,null,null,10698,"ERNSH",4,"2014-10-09","1",272.47000000000003]
[10699,"MORGK",3,"2014-10-09",3,0.57999999999999996,null,null,null,null,null,null,null,null,null,null,null,null,null,null,null,null,null,null,null,null,10699,"MORGK",3,"2014-10-09","3",1]
[10700,"SAVEA",3,"2014-10-10",1,65.099999999999994,null,null,null,null,null,null,null,null,null,null,null,null,null,null,null,null,null,null,null,null,10700,"SAVEA",3,"2014-10-10","1",65.099999999999994]
[10701,"HUNGO",6,"2014-10-13",3,220.31,null,null,null,null,null,null,null,null,null,null,null,null,null,null,null,null,null,null,null,null,10701,"HUNGO",6,"2014-10-13","3",220.31]
[10702,"ALFKI",4,"2014-10-13",1,23.94,null,null,null,null,null,null,null,null,null,null,null,null,null,null,null,null,null,null,null,null,10702,"ALFKI",4,"2014-10-13","1",23.94]
[10703,"FOLKO",6,"2014-10-14",2,152.30000000000001,null,null,null,null,null,null,null,null,null,null,null,null,null,null,null,null,null,null,null,null,10703,"FOLKO",6,"2014-10-14","2",152.30000000000001]
[10704,"QUEEN",6,"2014-10-14",1,4.78,null,null,null,null,null,null,null,null,null,null,null,null,null,null,null,null,null,null,null,null,10704,"QUEEN",6,"2014-10-14","1",4.78]
[10705,"HILAA",9,"2014-10-15",2,3.52,null,null,null,null,null,null,null,null,null,null,null,null,null,null,null,null,null,null,null,null,10705,"HILAA",9,"2014-10-15","2",3.52]
[10706,"OLDWO",8,"2014-10-16",3,135.63,null,null,null,null,null,null,null,null,null,null,null,null,null,null,null,null,null,null,null,null,10706,"OLDWO",8,"2014-10-16","3",135.63]
[10707,"AROUT",4,"2014-10-16",3,21.74,null,null,null,null,null,null,null,null,null,null,null,null,null,null,null,null,null,null,null,null,10707,"AROUT",4,"2014-10-16","3",21.74]
[10708,"THEBI",6,"2014-10-17",2,2.96,null,null,null,null,null,null,null,null,null,null,null,null,null,null,null,null,null,null,null,null,10708,"THEBI",6,"2014-10-17","2",2.96]
[10709,"GOURL",1,"2014-10-17",3,210.8,null,null,null,null,null,null,null,null,null,null,null,null,null,null,null,null,null,null,null,null,10709,"GOURL",1,"2014-10-17","3",210.8]
[10710,"FRANS",1,"2014-10-20",1,4.9800000000000004,null,null,null,null,null,null,null,null,null,null,null,null,null,null,null,null,null,null,null,null,10710,"FRANS",1,"2014-10-20","1",4.9800000000000004]
[10711,"SAVEA",5,"2014-10-21",2,52.41,null,null,null,null,null,null,null,null,null,null,null,null,null,null,null,null,null,null,null,null,10711,"SAVEA",5,"2014-10-21","2",52.41]
[10712,"HUNGO",3,"2014-10-21",1,89.93,null,null,null,null,null,null,null,null,null,null,null,null,null,null,null,null,null,null,null,null,10712,"HUNGO",3,"2014-10-21","1",89.93]
[10713,"SAVEA",1,"2014-10-22",1,167.05,null,null,null,null,null,null,null,null,null,null,null,null,null,null,null,null,null,null,null,null,10713,"SAVEA",1,"2014-10-22","1",167.05]
[10714,"SAVEA",5,"2014-10-22",3,24.49,null,null,null,null,null,null,null,null,null,null,null,null,null,null,null,null,null,null,null,null,10714,"SAVEA",5,"2014-10-22","3",24.49]
[10715,"BONAP",3,"2014-10-23",1,63.2,null,null,null,null,null,null,null,null,null,null,null,null,null,null,null,null,null,null,null,null,10715,"BONAP",3,"2014-10-23","1",63.2]
[10716,"RANCH",4,"2014-10-24",2,22.57,null,null,null,null,null,null,null,null,null,null,null,null,null,null,null,null,null,null,null,null,10716,"RANCH",4,"2014-10-24","2",22.57]
[10717,"FRANK",1,"2014-10-24",2,59.25,null,null,null,null,null,null,null,null,null,null,null,null,null,null,null,null,null,null,null,null,10717,"FRANK",1,"2014-10-24","2",59.25]
[10718,"KOENE",1,"2014-10-27",3,170.88,null,null,null,null,null,null,null,null,null,null,null,null,null,null,null,null,null,null,null,null,10718,"KOENE",1,"2014-10-27","3",170.88]
[10719,"LETSS",8,"2014-10-27",2,51.44,null,null,null,null,null,null,null,null,null,null,null,null,null,null,null,null,null,null,null,null,10719,"LETSS",8,"2014-10-27","2",51.44]
[10720,"QUEDE",8,"2014-10-28",2,9.5299999999999994,null,null,null,null,null,null,null,null,null,null,null,null,null,null,null,null,null,null,null,null,10720,"QUEDE",8,"2014-10-28","2",9.5299999999999994]
[10721,"QUICK",5,"2014-10-29",3,48.92,null,null,null,null,null,null,null,null,null,null,null,null,null,null,null,null,null,null,null,null,10721,"QUICK",5,"2014-10-29","3",48.92]
[10722,"SAVEA",8,"2014-10-29",1,74.58,null,null,null,null,null,null,null,null,null,null,null,null,null,null,null,null,null,null,null,null,10722,"SAVEA",8,"2014-10-29","1",74.58]
[10723,"WHITC",3,"2014-10-30",1,21.72,null,null,null,null,null,null,null,null,null,null,null,null,null,null,null,null,null,null,null,null,10723,"WHITC",3,"2014-10-30","1",21.72]
[10724,"MEREP",8,"2014-10-30",2,57.75,null,null,null,null,null,null,null,null,null,null,null,null,null,null,null,null,null,null,null,null,10724,"MEREP",8,"2014-10-30","2",57.75]
[10725,"FAMIA",4,"2014-10-31",3,10.83,null,null,null,null,null,null,null,null,null,null,null,null,null,null,null,null,null,null,null,null,10725,"FAMIA",4,"2014-10-31","3",10.83]
[10726,"EASTC",4,"2014-11-03",1,16.559999999999999,null,null,null,null,null,null,null,null,null,null,null,null,null,null,null,null,null,null,null,null,10726,"EASTC",4,"2014-11-03","1",16.559999999999999]
[10727,"REGGC",2,"2014-11-03",1,89.9,null,null,null,null,null,null,null,null,null,null,null,null,null,null,null,null,null,null,null,null,10727,"REGGC",2,"2014-11-03","1",89.9]
[10728,"QUEEN",4,"2014-11-04",2,58.33,null,null,null,null,null,null,null,null,null,null,null,null,null,null,null,null,null,null,null,null,10728,"QUEEN",4,"2014-11-04","2",58.33]
[10729,"LINOD",8,"2014-11-04",3,141.06,null,null,null,null,null,null,null,null,null,null,null,null,null,null,null,null,null,null,null,null,10729,"LINOD",8,"2014-11-04","3",141.06]
[10730,"BONAP",5,"2014-11-05",1,20.12,null,null,null,null,null,null,null,null,null,null,null,null,null,null,null,null,null,null,null,null,10730,"BONAP",5,"2014-11-05","1",20.12]
[10731,"CHOPS",7,"2014-11-06",1,96.65,null,null,null,null,null,null,null,null,null,null,null,null,null,null,null,null,null,null,null,null,10731,"CHOPS",7,"2014-11-06","1",96.65]
[10732,"BONAP",3,"2014-11-06",1,16.97,null,null,null,null,null,null,null,null,null,null,null,null,null,null,null,null,null,null,null,null,10732,"BONAP",3,"2014-11-06","1",16.97]
[10733,"BERGS",1,"2014-11-07",3,110.11,null,null,null,null,null,null,null,null,null,null,null,null,null,null,null,null,null,null,null,null,10733,"BERGS",1,"2014-11-07","3",110.11]
[10734,"GOURL",2,"2014-11-07",3,1.63,null,null,null,null,null,null,null,null,null,null,null,null,null,null,null,null,null,null,null,null,10734,"GOURL",2,"2014-11-07","3",1.63]
[10735,"LETSS",6,"2014-11-10",2,45.97,null,null,null,null,null,null,null,null,null,null,null,null,null,null,null,null,null,null,null,null,10735,"LETSS",6,"2014-11-10","2",45.97]
[10736,"HUNGO",9,"2014-11-11",2,44.1,null,null,null,null,null,null,null,null,null,null,null,null,null,null,null,null,null,null,null,null,10736,"HUNGO",9,"2014-11-11","2",44.1]
[10737,"VINET",2,"2014-11-11",2,7.79,null,null,null,null,null,null,null,null,null,null,null,null,null,null,null,null,null,null,null,null,10737,"VINET",2,"2014-11-11","2",7.79]
[10738,"SPECD",2,"2014-11-12",1,2.91,null,null,null,null,null,null,null,null,null,null,null,null,null,null,null,null,null,null,null,null,10738,"SPECD",2,"2014-11-12","1",2.91]
[10739,"VINET",3,"2014-11-12",3,11.08,null,null,null,null,null,null,null,null,null,null,null,null,null,null,null,null,null,null,null,null,10739,"VINET",3,"2014-11-12","3",11.08]
[10740,"WHITC",4,"2014-11-13",2,81.88,null,null,null,null,null,null,null,null,null,null,null,null,null,null,null,null,null,null,null,null,10740,"WHITC",4,"2014-11-13","2",81.88]
[10741,"AROUT",4,"2014-11-14",3,10.96,null,null,null,null,null,null,null,null,null,null,null,null,null,null,null,null,null,null,null,null,10741,"AROUT",4,"2014-11-14","3",10.96]
[10742,"BOTTM",3,"2014-11-14",3,243.73,null,null,null,null,null,null,null,null,null,null,null,null,null,null,null,null,null,null,null,null,10742,"BOTTM",3,"2014-11-14","3",243.73]
[10743,"AROUT",1,"2014-11-17",2,23.72,null,null,null,null,null,null,null,null,null,null,null,null,null,null,null,null,null,null,null,null,10743,"AROUT",1,"2014-11-17","2",23.72]
[10744,"VAFFE",6,"2014-11-17",1,69.19,null,null,null,null,null,null,null,null,null,null,null,null,null,null,null,null,null,null,null,null,10744,"VAFFE",6,"2014-11-17","1",69.19]
[10745,"QUICK",9,"2014-11-18",1,3.52,null,null,null,null,null,null,null,null,null,null,null,null,null,null,null,null,null,null,null,null,10745,"QUICK",9,"2014-11-18","1",3.52]
[10746,"CHOPS",1,"2014-11-19",3,31.43,null,null,null,null,null,null,null,null,null,null,null,null,null,null,null,null,null,null,null,null,10746,"CHOPS",1,"2014-11-19","3",31.43]
[10747,"PICCO",6,"2014-11-19",1,117.33,null,null,null,null,null,null,null,null,null,null,null,null,null,null,null,null,null,null,null,null,10747,"PICCO",6,"2014-11-19","1",117.33]
[10748,"SAVEA",3,"2014-11-20",1,232.55,null,null,null,null,null,null,null,null,null,null,null,null,null,null,null,null,null,null,null,null,10748,"SAVEA",3,"2014-11-20","1",232.55]
[10749,"ISLAT",4,"2014-11-20",2,61.53,null,null,null,null,null,null,null,null,null,null,null,null,null,null,null,null,null,null,null,null,10749,"ISLAT",4,"2014-11-20","2",61.53]
[10750,"WARTH",9,"2014-11-21",1,79.3,null,null,null,null,null,null,null,null,null,null,null,null,null,null,null,null,null,null,null,null,10750,"WARTH",9,"2014-11-21","1",79.3]
[10751,"RICSU",3,"2014-11-24",3,130.79,null,null,null,null,null,null,null,null,null,null,null,null,null,null,null,null,null,null,null,null,10751,"RICSU",3,"2014-11-24","3",130.79]
[10752,"NORTS",2,"2014-11-24",3,1.39,null,null,null,null,null,null,null,null,null,null,null,null,null,null,null,null,null,null,null,null,10752,"NORTS",2,"2014-11-24","3",1.39]
[10753,"FRANS",3,"2014-11-25",1,7.7,null,null,null,null,null,null,null,null,null,null,null,null,null,null,null,null,null,null,null,null,10753,"FRANS",3,"2014-11-25","1",7.7]
[10754,"MAGAA",6,"2014-11-25",3,2.38,null,null,null,null,null,null,null,null,null,null,null,null,null,null,null,null,null,null,null,null,10754,"MAGAA",6,"2014-11-25","3",2.38]
[10755,"BONAP",4,"2014-11-26",2,16.71,null,null,null,null,null,null,null,null,null,null,null,null,null,null,null,null,null,null,null,null,10755,"BONAP",4,"2014-11-26","2",16.71]
[10756,"SPLIR",8,"2014-11-27",2,73.209999999999994,null,null,null,null,null,null,null,null,null,null,null,null,null,null,null,null,null,null,null,null,10756,"SPLIR",8,"2014-11-27","2",73.209999999999994]
[10757,"SAVEA",6,"2014-11-27",1,8.19,null,null,null,null,null,null,null,null,null,null,null,null,null,null,null,null,null,null,null,null,10757,"SAVEA",6,"2014-11-27","1",8.19]
[10758,"RICSU",3,"2014-11-28",3,138.16999999999999,null,null,null,null,null,null,null,null,null,null,null,null,null,null,null,null,null,null,null,null,10758,"RICSU",3,"2014-11-28","3",138.16999999999999]
[10759,"ANATR",3,"2014-11-28",3,11.99,null,null,null,null,null,null,null,null,null,null,null,null,null,null,null,null,null,null,null,null,10759,"ANATR",3,"2014-11-28","3",11.99]
[10760,"MAISD",4,"2014-12-01",1,155.63999999999999,null,null,null,null,null,null,null,null,null,null,null,null,null,null,null,null,null,null,null,null,10760,"MAISD",4,"2014-12-01","1",155.63999999999999]
[10761,"RATTC",5,"2014-12-02",2,18.66,null,null,null,null,null,null,null,null,null,null,null,null,null,null,null,null,null,null,null,null,10761,"RATTC",5,"2014-12-02","2",18.66]
[10762,"FOLKO",3,"2014-12-02",1,328.74,null,null,null,null,null,null,null,null,null,null,null,null,null,null,null,null,null,null,null,null,10762,"FOLKO",3,"2014-12-02","1",328.74]
[10763,"FOLIG",3,"2014-12-03",3,37.35,null,null,null,null,null,null,null,null,null,null,null,null,null,null,null,null,null,null,null,null,10763,"FOLIG",3,"2014-12-03","3",37.35]
[10764,"ERNSH",6,"2014-12-03",3,145.44999999999999,null,null,null,null,null,null,null,null,null,null,null,null,null,null,null,null,null,null,null,null,10764,"ERNSH",6,"2014-12-03","3",145.44999999999999]
[10765,"QUICK",3,"2014-12-04",3,42.74,null,null,null,null,null,null,null,null,null,null,null,null,null,null,null,null,null,null,null,null,10765,"QUICK",3,"2014-12-04","3",42.74]
[10766,"OTTIK",4,"2014-12-05",1,157.55000000000001,null,null,null,null,null,null,null,null,null,null,null,null,null,null,null,null,null,null,null,null,10766,"OTTIK",4,"2014-12-05","1",157.55000000000001]
[10767,"SUPRD",4,"2014-12-05",3,1.59,null,null,null,null,null,null,null,null,null,null,null,null,null,null,null,null,null,null,null,null,10767,"SUPRD",4,"2014-12-05","3",1.59]
[10768,"AROUT",3,"2014-12-08",2,146.32,null,null,null,null,null,null,null,null,null,null,null,null,null,null,null,null,null,null,null,null,10768,"AROUT",3,"2014-12-08","2",146.32]
[10769,"VAFFE",3,"2014-12-08",1,65.06,null,null,null,null,null,null,null,null,null,null,null,null,null,null,null,null,null,null,null,null,10769,"VAFFE",3,"2014-12-08","1",65.06]
[10770,"HANAR",8,"2014-12-09",3,5.32,null,null,null,null,null,null,null,null,null,null,null,null,null,null,null,null,null,null,null,null,10770,"HANAR",8,"2014-12-09","3",5.32]
[10771,"ERNSH",9,"2014-12-10",2,11.19,null,null,null,null,null,null,null,null,null,null,null,null,null,null,null,null,null,null,null,null,10771,"ERNSH",9,"2014-12-10","2",11.19]
[10772,"LEHMS",3,"2014-12-10",2,91.28,null,null,null,null,null,null,null,null,null,null,null,null,null,null,null,null,null,null,null,null,10772,"LEHMS",3,"2014-12-10","2",91.28]
[10773,"ERNSH",1,"2014-12-11",3,96.43,null,null,null,null,null,null,null,null,null,null,null,null,null,null,null,null,null,null,null,null,10773,"ERNSH",1,"2014-12-11","3",96.43]
[10774,"FOLKO",4,"2014-12-11",1,48.2,null,null,null,null,null,null,null,null,null,null,null,null,null,null,null,null,null,null,null,null,10774,"FOLKO",4,"2014-12-11","1",48.2]
[10775,"THECR",7,"2014-12-12",1,20.25,null,null,null,null,null,null,null,null,null,null,null,null,null,null,null,null,null,null,null,null,10775,"THECR",7,"2014-12-12","1",20.25]
[10776,"ERNSH",1,"2014-12-15",3,351.53,null,null,null,null,null,null,null,null,null,null,null,null,null,null,null,null,null,null,null,null,10776,"ERNSH",1,"2014-12-15","3",351.53]
[10777,"GOURL",7,"2014-12-15",2,3.01,null,null,null,null,null,null,null,null,null,null,null,null,null,null,null,null,null,null,null,null,10777,"GOURL",7,"2014-12-15","2",3.01]
[10778,"BERGS",3,"2014-12-16",1,6.79,null,null,null,null,null,null,null,null,null,null,null,null,null,null,null,null,null,null,null,null,10778,"BERGS",3,"2014-12-16","1",6.79]
[10779,"MORGK",3,"2014-12-16",2,58.13,null,null,null,null,null,null,null,null,null,null,null,null,null,null,null,null,null,null,null,null,10779,"MORGK",3,"2014-12-16","2",58.13]
[10780,"LILAS",2,"2014-12-16",1,42.13,null,null,null,null,null,null,null,null,null,null,null,null,null,null,null,null,null,null,null,null,10780,"LILAS",2,"2014-12-16","1",42.13]
[10781,"WARTH",2,"2014-12-17",3,73.16,null,null,null,null,null,null,null,null,null,null,null,null,null,null,null,null,null,null,null,null,10781,"WARTH",2,"2014-12-17","3",73.16]
[10782,"CACTU",9,"2014-12-17",3,1.1000000000000001,null,null,null,null,null,null,null,null,null,null,null,null,null,null,null,null,null,null,null,null,10782,"CACTU",9,"2014-12-17","3",1.1000000000000001]
[10783,"HANAR",4,"2014-12-18",2,124.98,null,null,null,null,null,null,null,null,null,null,null,null,null,null,null,null,null,null,null,null,10783,"HANAR",4,"2014-12-18","2",124.98]
[10784,"MAGAA",4,"2014-12-18",3,70.09,null,null,null,null,null,null,null,null,null,null,null,null,null,null,null,null,null,null,null,null,10784,"MAGAA",4,"2014-12-18","3",70.09]
[10785,"GROSR",1,"2014-12-18",3,1.51,null,null,null,null,null,null,null,null,null,null,null,null,null,null,null,null,null,null,null,null,10785,"GROSR",1,"2014-12-18","3",1.51]
[10786,"QUEEN",8,"2014-12-19",1,110.87,null,null,null,null,null,null,null,null,null,null,null,null,null,null,null,null,null,null,null,null,10786,"QUEEN",8,"2014-12-19","1",110.87]
[10787,"LAMAI",2,"2014-12-19",1,249.93,null,null,null,null,null,null,null,null,null,null,null,null,null,null,null,null,null,null,null,null,10787,"LAMAI",2,"2014-12-19","1",249.93]
[10788,"QUICK",1,"2014-12-22",2,42.7,null,null,null,null,null,null,null,null,null,null,null,null,null,null,null,null,null,null,null,null,10788,"QUICK",1,"2014-12-22","2",42.7]
[10789,"FOLIG",1,"2014-12-22",2,100.6,null,null,null,null,null,null,null,null,null,null,null,null,null,null,null,null,null,null,null,null,10789,"FOLIG",1,"2014-12-22","2",100.6]
[10790,"GOURL",6,"2014-12-22",1,28.23,null,null,null,null,null,null,null,null,null,null,null,null,null,null,null,null,null,null,null,null,10790,"GOURL",6,"2014-12-22","1",28.23]
[10791,"FRANK",6,"2014-12-23",2,16.850000000000001,null,null,null,null,null,null,null,null,null,null,null,null,null,null,null,null,null,null,null,null,10791,"FRANK",6,"2014-12-23","2",16.850000000000001]
[10792,"WOLZA",1,"2014-12-23",3,23.79,null,null,null,null,null,null,null,null,null,null,null,null,null,null,null,null,null,null,null,null,10792,"WOLZA",1,"2014-12-23","3",23.79]
[10793,"AROUT",3,"2014-12-24",3,4.5199999999999996,null,null,null,null,null,null,null,null,null,null,null,null,null,null,null,null,null,null,null,null,10793,"AROUT",3,"2014-12-24","3",4.5199999999999996]
[10794,"QUEDE",6,"2014-12-24",1,21.49,null,null,null,null,null,null,null,null,null,null,null,null,null,null,null,null,null,null,null,null,10794,"QUEDE",6,"2014-12-24","1",21.49]
[10795,"ERNSH",8,"2014-12-24",2,126.66,null,null,null,null,null,null,null,null,null,null,null,null,null,null,null,null,null,null,null,null,10795,"ERNSH",8,"2014-12-24","2",126.66]
[10796,"HILAA",3,"2014-12-25",1,26.52,null,null,null,null,null,null,null,null,null,null,null,null,null,null,null,null,null,null,null,null,10796,"HILAA",3,"2014-12-25","1",26.52]
[10797,"DRACD",7,"2014-12-25",2,33.35,null,null,null,null,null,null,null,null,null,null,null,null,null,null,null,null,null,null,null,null,10797,"DRACD",7,"2014-12-25","2",33.35]
[10798,"ISLAT",2,"2014-12-26",1,2.33,null,null,null,null,null,null,null,null,null,null,null,null,null,null,null,null,null,null,null,null,10798,"ISLAT",2,"2014-12-26","1",2.33]
[10799,"KOENE",9,"2014-12-26",3,30.76,null,null,null,null,null,null,null,null,null,null,null,null,null,null,null,null,null,null,null,null,10799,"KOENE",9,"2014-12-26","3",30.76]
[10800,"SEVES",1,"2014-12-26",3,137.44,null,null,null,null,null,null,null,null,null,null,null,null,null,null,null,null,null,null,null,null,10800,"SEVES",1,"2014-12-26","3",137.44]
[10801,"BOLID",4,"2014-12-29",2,97.09,null,null,null,null,null,null,null,null,null,null,null,null,null,null,null,null,null,null,null,null,10801,"BOLID",4,"2014-12-29","2",97.09]
[10802,"SIMOB",4,"2014-12-29",2,257.26,null,null,null,null,null,null,null,null,null,null,null,null,null,null,null,null,null,null,null,null,10802,"SIMOB",4,"2014-12-29","2",257.26]
[10803,"WELLI",4,"2014-12-30",1,55.23,null,null,null,null,null,null,null,null,null,null,null,null,null,null,null,null,null,null,null,null,10803,"WELLI",4,"2014-12-30","1",55.23]
[10804,"SEVES",6,"2014-12-30",2,27.33,null,null,null,null,null,null,null,null,null,null,null,null,null,null,null,null,null,null,null,null,10804,"SEVES",6,"2014-12-30","2",27.33]
[10805,"THEBI",2,"2014-12-30",3,237.34,null,null,null,null,null,null,null,null,null,null,null,null,null,null,null,null,null,null,null,null,10805,"THEBI",2,"2014-12-30","3",237.34]
[10806,"VICTE",3,"2014-12-31",2,22.11,null,null,null,null,null,null,null,null,null,null,null,null,null,null,null,null,null,null,null,null,10806,"VICTE",3,"2014-12-31","2",22.11]
[10807,"FRANS",4,"2014-12-31",1,1.36,null,null,null,null,null,null,null,null,null,null,null,null,null,null,null,null,null,null,null,null,10807,"FRANS",4,"2014-12-31","1",1.36]
[10808,"OLDWO",2,"2015-01-01",3,45.53,null,null,null,null,null,null,null,null,null,null,null,null,null,null,null,null,null,null,null,null,10808,"OLDWO",2,"2015-01-01","3",45.53]
[10809,"WELLI",7,"2015-01-01",1,4.87,null,null,null,null,null,null,null,null,null,null,null,null,null,null,null,null,null,null,null,null,10809,"WELLI",7,"2015-01-01","1",4.87]
[10810,"LAUGB",2,"2015-01-01",3,4.33,null,null,null,null,null,null,null,null,null,null,null,null,null,null,null,null,null,null,null,null,10810,"LAUGB",2,"2015-01-01","3",4.33]
[10811,"LINOD",8,"2015-01-02",1,31.22,null,null,null,null,null,null,null,null,null,null,null,null,null,null,null,null,null,null,null,null,10811,"LINOD",8,"2015-01-02","1",31.22]
[10812,"REGGC",5,"2015-01-02",1,59.78,null,null,null,null,null,null,null,null,null,null,null,null,null,null,null,null,null,null,null,null,10812,"REGGC",5,"2015-01-02","1",59.78]
[10813,"RICAR",1,"2015-01-05",1,47.38,null,null,null,null,null,null,null,null,null,null,null,null,null,null,null,null,null,null,null,null,10813,"RICAR",1,"2015-01-05","1",47.38]
[10814,"VICTE",3,"2015-01-05",3,130.94,null,null,null,null,null,null,null,null,null,null,null,null,null,null,null,null,null,null,null,null,10814,"VICTE",3,"2015-01-05","3",130.94]
[10815,"SAVEA",2,"2015-01-05",3,14.62,null,null,null,null,null,null,null,null,null,null,null,null,null,null,null,null,null,null,null,null,10815,"SAVEA",2,"2015-01-05","3",14.62]
[10816,"GREAL",4,"2015-01-06",2,719.78,null,null,null,null,null,null,null,null,null,null,null,null,null,null,null,null,null,null,null,null,10816,"GREAL",4,"2015-01-06","2",719.78]
[10817,"KOENE",3,"2015-01-06",2,306.07,null,null,null,null,null,null,null,null,null,null,null,null,null,null,null,null,null,null,null,null,10817,"KOENE",3,"2015-01-06","2",306.07]
[10818,"MAGAA",7,"2015-01-07",3,65.48,null,null,null,null,null,null,null,null,null,null,null,null,null,null,null,null,null,null,null,null,10818,"MAGAA",7,"2015-01-07","3",65.48]
[10819,"CACTU",2,"2015-01-07",3,19.760000000000002,null,null,null,null,null,null,null,null,null,null,null,null,null,null,null,null,null,null,null,null,10819,"CACTU",2,"2015-01-07","3",19.760000000000002]
[10820,"RATTC",3,"2015-01-07",2,37.520000000000003,null,null,null,null,null,null,null,null,null,null,null,null,null,null,null,null,null,null,null,null,10820,"RATTC",3,"2015-01-07","2",37.520000000000003]
[10821,"SPLIR",1,"2015-01-08",1,36.68,null,null,null,null,null,null,null,null,null,null,null,null,null,null,null,null,null,null,null,null,10821,"SPLIR",1,"2015-01-08","1",36.68]
[10822,"TRAIH",6,"2015-01-08",3,7,null,null,null,null,null,null,null,null,null,null,null,null,null,null,null,null,null,null,null,null,10822,"TRAIH",6,"2015-01-08","3",7]
[10823,"LILAS",5,"2015-01-09",2,163.97,null,null,null,null,null,null,null,null,null,null,null,null,null,null,null,null,null,null,null,null,10823,"LILAS",5,"2015-01-09","2",163.97]
[10824,"FOLKO",8,"2015-01-09",1,1.23,null,null,null,null,null,null,null,null,null,null,null,null,null,null,null,null,null,null,null,null,10824,"FOLKO",8,"2015-01-09","1",1.23]
[10825,"DRACD",1,"2015-01-09",1,79.25,null,null,null,null,null,null,null,null,null,null,null,null,null,null,null,null,null,null,null,null,10825,"DRACD",1,"2015-01-09","1",79.25]
[10826,"BLONP",6,"2015-01-12",1,7.09,null,null,null,null,null,null,null,null,null,null,null,null,null,null,null,null,null,null,null,null,10826,"BLONP",6,"2015-01-12","1",7.09]
[10827,"BONAP",1,"2015-01-12",2,63.54,null,null,null,null,null,null,null,null,null,null,null,null,null,null,null,null,null,null,null,null,10827,"BONAP",1,"2015-01-12","2",63.54]
[10828,"RANCH",9,"2015-01-13",1,90.85,null,null,null,null,null,null,null,null,null,null,null,null,null,null,null,null,null,null,null,null,10828,"RANCH",9,"2015-01-13","1",90.85]
[10829,"ISLAT",9,"2015-01-13",1,154.72,null,null,null,null,null,null,null,null,null,null,null,null,null,null,null,null,null,null,null,null,10829,"ISLAT",9,"2015-01-13","1",154.72]
[10830,"TRADH",4,"2015-01-13",2,81.83,null,null,null,null,null,null,null,null,null,null,null,null,null,null,null,null,null,null,null,null,10830,"TRADH",4,"2015-01-13","2",81.83]
[10831,"SANTG",3,"2015-01-14",2,72.19,null,null,null,null,null,null,null,null,null,null,null,null,null,null,null,null,null,null,null,null,10831,"SANTG",3,"2015-01-14","2",72.19]
[10832,"LAMAI",2,"2015-01-14",2,43.26,null,null,null,null,null,null,null,null,null,null,null,null,null,null,null,null,null,null,null,null,10832,"LAMAI",2,"2015-01-14","2",43.26]
[10833,"OTTIK",6,"2015-01-15",2,71.489999999999995,null,null,null,null,null,null,null,null,null,null,null,null,null,null,null,null,null,null,null,null,10833,"OTTIK",6,"2015-01-15","2",71.489999999999995]
[10834,"TRADH",1,"2015-01-15",3,29.78,null,null,null,null,null,null,null,null,null,null,null,null,null,null,null,null,null,null,null,null,10834,"TRADH",1,"2015-01-15","3",29.78]
[10835,"ALFKI",1,"2015-01-15",3,69.53,null,null,null,null,null,null,null,null,null,null,null,null,null,null,null,null,null,null,null,null,10835,"ALFKI",1,"2015-01-15","3",69.53]
[10836,"ERNSH",7,"2015-01-16",1,411.88,null,null,null,null,null,null,null,null,null,null,null,null,null,null,null,null,null,null,null,null,10836,"ERNSH",7,"2015-01-16","1",411.88]
[10837,"BERGS",9,"2015-01-16",3,13.32,null,null,null,null,null,null,null,null,null,null,null,null,null,null,null,null,null,null,null,null,10837,"BERGS",9,"2015-01-16","3",13.32]
[10838,"LINOD",3,"2015-01-19",3,59.28,null,null,null,null,null,null,null,null,null,null,null,null,null,null,null,null,null,null,null,null,10838,"LINOD",3,"2015-01-19","3",59.28]
[10839,"TRADH",3,"2015-01-19",3,35.43,null,null,null,null,null,null,null,null,null,null,null,null,null,null,null,null,null,null,null,null,10839,"TRADH",3,"2015-01-19","3",35.43]
[10840,"LINOD",4,"2015-01-19",2,2.71,null,null,null,null,null,null,null,null,null,null,null,null,null,null,null,null,null,null,null,null,10840,"LINOD",4,"2015-01-19","2",2.71]
[10841,"SUPRD",5,"2015-01-20",2,424.3,null,null,null,null,null,null,null,null,null,null,null,null,null,null,null,null,null,null,null,null,10841,"SUPRD",5,"2015-01-20","2",424.3]
[10842,"TORTU",1,"2015-01-20",3,54.42,null,null,null,null,null,null,null,null,null,null,null,null,null,null,null,null,null,null,null,null,10842,"TORTU",1,"2015-01-20","3",54.42]
[10843,"VICTE",4,"2015-01-21",2,9.26,null,null,null,null,null,null,null,null,null,null,null,null,null,null,null,null,null,null,null,null,10843,"VICTE",4,"2015-01-21","2",9.26]
[10844,"PICCO",8,"2015-01-21",2,25.22,null,null,null,null,null,null,null,null,null,null,null,null,null,null,null,null,null,null,null,null,10844,"PICCO",8,"2015-01-21","2",25.22]
[10845,"QUICK",8,"2015-01-21",1,212.98,null,null,null,null,null,null,null,null,null,null,null,null,null,null,null,null,null,null,null,null,10845,"QUICK",8,"2015-01-21","1",212.98]
[10846,"SUPRD",2,"2015-01-22",3,56.46,null,null,null,null,null,null,null,null,null,null,null,null,null,null,null,null,null,null,null,null,10846,"SUPRD",2,"2015-01-22","3",56.46]
[10847,"SAVEA",4,"2015-01-22",3,487.57,null,null,null,null,null,null,null,null,null,null,null,null,null,null,null,null,null,null,null,null,10847,"SAVEA",4,"2015-01-22","3",487.57]
[10848,"CONSH",7,"2015-01-23",2,38.24,null,null,null,null,null,null,null,null,null,null,null,null,null,null,null,null,null,null,null,null,10848,"CONSH",7,"2015-01-23","2",38.24]
[10849,"KOENE",9,"2015-01-23",2,0.56000000000000005,null,null,null,null,null,null,null,null,null,null,null,null,null,null,null,null,null,null,null,null,10849,"KOENE",9,"2015-01-23","2",1]
[10850,"VICTE",1,"2015-01-23",1,49.19,null,null,null,null,null,null,null,null,null,null,null,null,null,null,null,null,null,null,null,null,10850,"VICTE",1,"2015-01-23","1",49.19]
[10851,"RICAR",5,"2015-01-26",1,160.55000000000001,null,null,null,null,null,null,null,null,null,null,null,null,null,null,null,null,null,null,null,null,10851,"RICAR",5,"2015-01-26","1",160.55000000000001]
[10852,"RATTC",8,"2015-01-26",1,174.05,null,null,null,null,null,null,null,null,null,null,null,null,null,null,null,null,null,null,null,null,10852,"RATTC",8,"2015-01-26","1",174.05]
[10853,"BLAUS",9,"2015-01-27",2,53.83,null,null,null,null,null,null,null,null,null,null,null,null,null,null,null,null,null,null,null,null,10853,"BLAUS",9,"2015-01-27","2",53.83]
[10854,"ERNSH",3,"2015-01-27",2,100.22,null,null,null,null,null,null,null,null,null,null,null,null,null,null,null,null,null,null,null,null,10854,"ERNSH",3,"2015-01-27","2",100.22]
[10855,"OLDWO",3,"2015-01-27",1,170.97,null,null,null,null,null,null,null,null,null,null,null,null,null,null,null,null,null,null,null,null,10855,"OLDWO",3,"2015-01-27","1",170.97]
[10856,"ANTON",3,"2015-01-28",2,58.43,null,null,null,null,null,null,null,null,null,null,null,null,null,null,null,null,null,null,null,null,10856,"ANTON",3,"2015-01-28","2",58.43]
[10857,"BERGS",8,"2015-01-28",2,188.85,null,null,null,null,null,null,null,null,null,null,null,null,null,null,null,null,null,null,null,null,10857,"BERGS",8,"2015-01-28","2",188.85]
[10858,"LACOR",2,"2015-01-29",1,52.51,null,null,null,null,null,null,null,null,null,null,null,null,null,null,null,null,null,null,null,null,10858,"LACOR",2,"2015-01-29","1",52.51]
[10859,"FRANK",1,"2015-01-29",2,76.099999999999994,null,null,null,null,null,null,null,null,null,null,null,null,null,null,null,null,null,null,null,null,10859,"FRANK",1,"2015-01-29","2",76.099999999999994]
[10860,"FRANR",3,"2015-01-29",3,19.260000000000002,null,null,null,null,null,null,null,null,null,null,null,null,null,null,null,null,null,null,null,null,10860,"FRANR",3,"2015-01-29","3",19.260000000000002]
[10861,"WHITC",4,"2015-01-30",2,14.93,null,null,null,null,null,null,null,null,null,null,null,null,null,null,null,null,null,null,null,null,10861,"WHITC",4,"2015-01-30","2",14.93]
[10862,"LEHMS",8,"2015-01-30",2,53.23,null,null,null,null,null,null,null,null,null,null,null,null,null,null,null,null,null,null,null,null,10862,"LEHMS",8,"2015-01-30","2",53.23]
[10863,"HILAA",4,"2015-02-02",2,30.26,null,null,null,null,null,null,null,null,null,null,null,null,null,null,null,null,null,null,null,null,10863,"HILAA",4,"2015-02-02","2",30.26]
[10864,"AROUT",4,"2015-02-02",2,3.04,null,null,null,null,null,null,null,null,null,null,null,null,null,null,null,null,null,null,null,null,10864,"AROUT",4,"2015-02-02","2",3.04]
[10865,"QUICK",2,"2015-02-02",1,348.14,null,null,null,null,null,null,null,null,null,null,null,null,null,null,null,null,null,null,null,null,10865,"QUICK",2,"2015-02-02","1",348.14]
[10866,"BERGS",5,"2015-02-03",1,109.11,null,null,null,null,null,null,null,null,null,null,null,null,null,null,null,null,null,null,null,null,10866,"BERGS",5,"2015-02-03","1",109.11]
[10867,"LONEP",6,"2015-02-03",1,1.93,null,null,null,null,null,null,null,null,null,null,null,null,null,null,null,null,null,null,null,null,10867,"LONEP",6,"2015-02-03","1",1.93]
[10868,"QUEEN",7,"2015-02-04",2,191.27,null,null,null,null,null,null,null,null,null,null,null,null,null,null,null,null,null,null,null,null,10868,"QUEEN",7,"2015-02-04","2",191.27]
[10869,"SEVES",5,"2015-02-04",1,143.28,null,null,null,null,null,null,null,null,null,null,null,null,null,null,null,null,null,null,null,null,10869,"SEVES",5,"2015-02-04","1",143.28]
[10870,"WOLZA",5,"2015-02-04",3,12.04,null,null,null,null,null,null,null,null,null,null,null,null,null,null,null,null,null,null,null,null,10870,"WOLZA",5,"2015-02-04","3",12.04]
[10871,"BONAP",9,"2015-02-05",2,112.27,null,null,null,null,null,null,null,null,null,null,null,null,null,null,null,null,null,null,null,null,10871,"BONAP",9,"2015-02-05","2",112.27]
[10872,"GODOS",5,"2015-02-05",2,175.32,null,null,null,null,null,null,null,null,null,null,null,null,null,null,null,null,null,null,null,null,10872,"GODOS",5,"2015-02-05","2",175.32]
[10873,"WILMK",4,"2015-02-06",1,0.82,null,null,null,null,null,null,null,null,null,null,null,null,null,null,null,null,null,null,null,null,10873,"WILMK",4,"2015-02-06","1",0.82]
[10874,"GODOS",5,"2015-02-06",2,19.579999999999998,null,null,null,null,null,null,null,null,null,null,null,null,null,null,null,null,null,null,null,null,10874,"GODOS",5,"2015-02-06","2",19.579999999999998]
[10875,"BERGS",4,"2015-02-06",2,32.369999999999997,null,null,null,null,null,null,null,null,null,null,null,null,null,null,null,null,null,null,null,null,10875,"BERGS",4,"2015-02-06","2",32.369999999999997]
[10876,"BONAP",7,"2015-02-09",3,60.42,null,null,null,null,null,null,null,null,null,null,null,null,null,null,null,null,null,null,null,null,10876,"BONAP",7,"2015-02-09","3",60.42]
[10877,"RICAR",1,"2015-02-09",1,38.06,null,null,null,null,null,null,null,null,null,null,null,null,null,null,null,null,null,null,null,null,10877,"RICAR",1,"2015-02-09","1",38.06]
[10878,"QUICK",4,"2015-02-10",1,46.69,null,null,null,null,null,null,null,null,null,null,null,null,null,null,null,null,null,null,null,null,10878,"QUICK",4,"2015-02-10","1",46.69]
[10879,"WILMK",3,"2015-02-10",3,8.5,null,null,null,null,null,null,null,null,null,null,null,null,null,null,null,null,null,null,null,null,10879,"WILMK",3,"2015-02-10","3",8.5]
[10880,"FOLKO",7,"2015-02-10",1,88.01,null,null,null,null,null,null,null,null,null,null,null,null,null,null,null,null,null,null,null,null,10880,"FOLKO",7,"2015-02-10","1",88.01]
[10881,"CACTU",4,"2015-02-11",1,2.84,null,null,null,null,null,null,null,null,null,null,null,null,null,null,null,null,null,null,null,null,10881,"CACTU",4,"2015-02-11","1",2.84]
[10882,"SAVEA",4,"2015-02-11",3,23.1,null,null,null,null,null,null,null,null,null,null,null,null,null,null,null,null,null,null,null,null,10882,"SAVEA",4,"2015-02-11","3",23.1]
[10883,"LONEP",8,"2015-02-12",3,0.53,null,null,null,null,null,null,null,null,null,null,null,null,null,null,null,null,null,null,null,null,10883,"LONEP",8,"2015-02-12","3",0.53]
[10884,"LETSS",4,"2015-02-12",2,90.97,null,null,null,null,null,null,null,null,null,null,null,null,null,null,null,null,null,null,null,null,10884,"LETSS",4,"2015-02-12","2",90.97]
[10885,"SUPRD",6,"2015-02-12",3,5.64,null,null,null,null,null,null,null,null,null,null,null,null,null,null,null,null,null,null,null,null,10885,"SUPRD",6,"2015-02-12","3",5.64]
[10886,"HANAR",1,"2015-02-13",1,4.99,null,null,null,null,null,null,null,null,null,null,null,null,null,null,null,null,null,null,null,null,10886,"HANAR",1,"2015-02-13","1",4.99]
[10887,"GALED",8,"2015-02-13",3,1.25,null,null,null,null,null,null,null,null,null,null,null,null,null,null,null,null,null,null,null,null,10887,"GALED",8,"2015-02-13","3",1.25]
[10888,"GODOS",1,"2015-02-16",2,51.87,null,null,null,null,null,null,null,null,null,null,null,null,null,null,null,null,null,null,null,null,10888,"GODOS",1,"2015-02-16","2",51.87]
[10889,"RATTC",9,"2015-02-16",3,280.61,null,null,null,null,null,null,null,null,null,null,null,null,null,null,null,null,null,null,null,null,10889,"RATTC",9,"2015-02-16","3",280.61]
[10890,"DUMON",7,"2015-02-16",1,32.76,null,null,null,null,null,null,null,null,null,null,null,null,null,null,null,null,null,null,null,null,10890,"DUMON",7,"2015-02-16","1",32.76]
[10891,"LEHMS",7,"2015-02-17",2,20.37,null,null,null,null,null,null,null,null,null,null,null,null,null,null,null,null,null,null,null,null,10891,"LEHMS",7,"2015-02-17","2",20.37]
[10892,"MAISD",4,"2015-02-17",2,120.27,null,null,null,null,null,null,null,null,null,null,null,null,null,null,null,null,null,null,null,null,10892,"MAISD",4,"2015-02-17","2",120.27]
[10893,"KOENE",9,"2015-02-18",2,77.78,null,null,null,null,null,null,null,null,null,null,null,null,null,null,null,null,null,null,null,null,10893,"KOENE",9,"2015-02-18","2",77.78]
[10894,"SAVEA",1,"2015-02-18",1,116.13,null,null,null,null,null,null,null,null,null,null,null,null,null,null,null,null,null,null,null,null,10894,"SAVEA",1,"2015-02-18","1",116.13]
[10895,"ERNSH",3,"2015-02-18",1,162.75,null,null,null,null,null,null,null,null,null,null,null,null,null,null,null,null,null,null,null,null,10895,"ERNSH",3,"2015-02-18","1",162.75]
[10896,"MAISD",7,"2015-02-19",3,32.450000000000003,null,null,null,null,null,null,null,null,null,null,null,null,null,null,null,null,null,null,null,null,10896,"MAISD",7,"2015-02-19","3",32.450000000000003]
[10897,"HUNGO",3,"2015-02-19",2,603.54,null,null,null,null,null,null,null,null,null,null,null,null,null,null,null,null,null,null,null,null,10897,"HUNGO",3,"2015-02-19","2",603.54]
[10898,"OCEAN",4,"2015-02-20",2,1.27,null,null,null,null,null,null,null,null,null,null,null,null,null,null,null,null,null,null,null,null,10898,"OCEAN",4,"2015-02-20","2",1.27]
[10899,"LILAS",5,"2015-02-20",3,1.21,null,null,null,null,null,null,null,null,null,null,null,null,null,null,null,null,null,null,null,null,10899,"LILAS",5,"2015-02-20","3",1.21]
[10900,"WELLI",1,"2015-02-20",2,1.66,null,null,null,null,null,null,null,null,null,null,null,null,null,null,null,null,null,null,null,null,10900,"WELLI",1,"2015-02-20","2",1.66]
[10901,"HILAA",4,"2015-02-23",1,62.09,null,null,null,null,null,null,null,null,null,null,null,null,null,null,null,null,null,null,null,null,10901,"HILAA",4,"2015-02-23","1",62.09]
[10902,"FOLKO",1,"2015-02-23",1,44.15,null,null,null,null,null,null,null,null,null,null,null,null,null,null,null,null,null,null,null,null,10902,"FOLKO",1,"2015-02-23","1",44.15]
[10903,"HANAR",3,"2015-02-24",3,36.71,null,null,null,null,null,null,null,null,null,null,null,null,null,null,null,null,null,null,null,null,10903,"HANAR",3,"2015-02-24","3",36.71]
[10904,"WHITC",3,"2015-02-24",3,162.94999999999999,null,null,null,null,null,null,null,null,null,null,null,null,null,null,null,null,null,null,null,null,10904,"WHITC",3,"2015-02-24","3",162.94999999999999]
[10905,"WELLI",9,"2015-02-24",2,13.72,null,null,null,null,null,null,null,null,null,null,null,null,null,null,null,null,null,null,null,null,10905,"WELLI",9,"2015-02-24","2",13.72]
[10906,"WOLZA",4,"2015-02-25",3,26.29,null,null,null,null,null,null,null,null,null,null,null,null,null,null,null,null,null,null,null,null,10906,"WOLZA",4,"2015-02-25","3",26.29]
[10907,"SPECD",6,"2015-02-25",3,9.19,null,null,null,null,null,null,null,null,null,null,null,null,null,null,null,null,null,null,null,null,10907,"SPECD",6,"2015-02-25","3",9.19]
[10908,"REGGC",4,"2015-02-26",2,32.96,null,null,null,null,null,null,null,null,null,null,null,null,null,null,null,null,null,null,null,null,10908,"REGGC",4,"2015-02-26","2",32.96]
[10909,"SANTG",1,"2015-02-26",2,53.05,null,null,null,null,null,null,null,null,null,null,null,null,null,null,null,null,null,null,null,null,10909,"SANTG",1,"2015-02-26","2",53.05]
[10910,"WILMK",1,"2015-02-26",3,38.11,null,null,null,null,null,null,null,null,null,null,null,null,null,null,null,null,null,null,null,null,10910,"WILMK",1,"2015-02-26","3",38.11]
[10911,"GODOS",3,"2015-02-26",1,38.19,null,null,null,null,null,null,null,null,null,null,null,null,null,null,null,null,null,null,null,null,10911,"GODOS",3,"2015-02-26","1",38.19]
[10912,"HUNGO",2,"2015-02-26",2,580.91,null,null,null,null,null,null,null,null,null,null,null,null,null,null,null,null,null,null,null,null,10912,"HUNGO",2,"2015-02-26","2",580.91]
[10913,"QUEEN",4,"2015-02-26",1,33.049999999999997,null,null,null,null,null,null,null,null,null,null,null,null,null,null,null,null,null,null,null,null,10913,"QUEEN",4,"2015-02-26","1",33.049999999999997]
[10914,"QUEEN",6,"2015-02-27",1,21.19,null,null,null,null,null,null,null,null,null,null,null,null,null,null,null,null,null,null,null,null,10914,"QUEEN",6,"2015-02-27","1",21.19]
[10915,"TORTU",2,"2015-02-27",2,3.51,null,null,null,null,null,null,null,null,null,null,null,null,null,null,null,null,null,null,null,null,10915,"TORTU",2,"2015-02-27","2",3.51]
[10916,"RANCH",1,"2015-02-27",2,63.77,null,null,null,null,null,null,null,null,null,null,null,null,null,null,null,null,null,null,null,null,10916,"RANCH",1,"2015-02-27","2",63.77]
[10917,"ROMEY",4,"2015-03-02",2,8.2899999999999991,null,null,null,null,null,null,null,null,null,null,null,null,null,null,null,null,null,null,null,null,10917,"ROMEY",4,"2015-03-02","2",8.2899999999999991]
[10918,"BOTTM",3,"2015-03-02",3,48.83,null,null,null,null,null,null,null,null,null,null,null,null,null,null,null,null,null,null,null,null,10918,"BOTTM",3,"2015-03-02","3",48.83]
[10919,"LINOD",2,"2015-03-02",2,19.8,null,null,null,null,null,null,null,null,null,null,null,null,null,null,null,null,null,null,null,null,10919,"LINOD",2,"2015-03-02","2",19.8]
[10920,"AROUT",4,"2015-03-03",2,29.61,null,null,null,null,null,null,null,null,null,null,null,null,null,null,null,null,null,null,null,null,10920,"AROUT",4,"2015-03-03","2",29.61]
[10921,"VAFFE",1,"2015-03-03",1,176.48,null,null,null,null,null,null,null,null,null,null,null,null,null,null,null,null,null,null,null,null,10921,"VAFFE",1,"2015-03-03","1",176.48]
[10922,"HANAR",5,"2015-03-03",3,62.74,null,null,null,null,null,null,null,null,null,null,null,null,null,null,null,null,null,null,null,null,10922,"HANAR",5,"2015-03-03","3",62.74]
[10923,"LAMAI",7,"2015-03-03",3,68.260000000000005,null,null,null,null,null,null,null,null,null,null,null,null,null,null,null,null,null,null,null,null,10923,"LAMAI",7,"2015-03-03","3",68.260000000000005]
[10924,"BERGS",3,"2015-03-04",2,151.52000000000001,null,null,null,null,null,null,null,null,null,null,null,null,null,null,null,null,null,null,null,null,10924,"BERGS",3,"2015-03-04","2",151.52000000000001]
[10925,"HANAR",3,"2015-03-04",1,2.27,null,null,null,null,null,null,null,null,null,null,null,null,null,null,null,null,null,null,null,null,10925,"HANAR",3,"2015-03-04","1",2.27]
[10926,"ANATR",4,"2015-03-04",3,39.92,null,null,null,null,null,null,null,null,null,null,null,null,null,null,null,null,null,null,null,null,10926,"ANATR",4,"2015-03-04","3",39.92]
[10927,"LACOR",4,"2015-03-05",1,19.79,null,null,null,null,null,null,null,null,null,null,null,null,null,null,null,null,null,null,null,null,10927,"LACOR",4,"2015-03-05","1",19.79]
[10928,"GALED",1,"2015-03-05",1,1.36,null,null,null,null,null,null,null,null,null,null,null,null,null,null,null,null,null,null,null,null,10928,"GALED",1,"2015-03-05","1",1.36]
[10929,"FRANK",6,"2015-03-05",1,33.93,null,null,null,null,null,null,null,null,null,null,null,null,null,null,null,null,null,null,null,null,10929,"FRANK",6,"2015-03-05","1",33.93]
[10930,"SUPRD",4,"2015-03-06",3,15.55,null,null,null,null,null,null,null,null,null,null,null,null,null,null,null,null,null,null,null,null,10930,"SUPRD",4,"2015-03-06","3",15.55]
[10931,"RICSU",4,"2015-03-06",2,13.6,null,null,null,null,null,null,null,null,null,null,null,null,null,null,null,null,null,null,null,null,10931,"RICSU",4,"2015-03-06","2",13.6]
[10932,"BONAP",8,"2015-03-06",1,134.63999999999999,null,null,null,null,null,null,null,null,null,null,null,null,null,null,null,null,null,null,null,null,10932,"BONAP",8,"2015-03-06","1",134.63999999999999]
[10933,"ISLAT",6,"2015-03-06",3,54.15,null,null,null,null,null,null,null,null,null,null,null,null,null,null,null,null,null,null,null,null,10933,"ISLAT",6,"2015-03-06","3",54.15]
[10934,"LEHMS",3,"2015-03-09",3,32.01,null,null,null,null,null,null,null,null,null,null,null,null,null,null,null,null,null,null,null,null,10934,"LEHMS",3,"2015-03-09","3",32.01]
[10935,"WELLI",4,"2015-03-09",3,47.59,null,null,null,null,null,null,null,null,null,null,null,null,null,null,null,null,null,null,null,null,10935,"WELLI",4,"2015-03-09","3",47.59]
[10936,"GREAL",3,"2015-03-09",2,33.68,null,null,null,null,null,null,null,null,null,null,null,null,null,null,null,null,null,null,null,null,10936,"GREAL",3,"2015-03-09","2",33.68]
[10937,"CACTU",7,"2015-03-10",3,31.51,null,null,null,null,null,null,null,null,null,null,null,null,null,null,null,null,null,null,null,null,10937,"CACTU",7,"2015-03-10","3",31.51]
[10938,"QUICK",3,"2015-03-10",2,31.89,null,null,null,null,null,null,null,null,null,null,null,null,null,null,null,null,null,null,null,null,10938,"QUICK",3,"2015-03-10","2",31.89]
[10939,"MAGAA",2,"2015-03-10",2,76.33,null,null,null,null,null,null,null,null,null,null,null,null,null,null,null,null,null,null,null,null,10939,"MAGAA",2,"2015-03-10","2",76.33]
[10940,"BONAP",8,"2015-03-11",3,19.77,null,null,null,null,null,null,null,null,null,null,null,null,null,null,null,null,null,null,null,null,10940,"BONAP",8,"2015-03-11","3",19.77]
[10941,"SAVEA",7,"2015-03-11",2,400.81,null,null,null,null,null,null,null,null,null,null,null,null,null,null,null,null,null,null,null,null,10941,"SAVEA",7,"2015-03-11","2",400.81]
[10942,"REGGC",9,"2015-03-11",3,17.95,null,null,null,null,null,null,null,null,null,null,null,null,null,null,null,null,null,null,null,null,10942,"REGGC",9,"2015-03-11","3",17.95]
[10943,"BSBEV",4,"2015-03-11",2,2.17,null,null,null,null,null,null,null,null,null,null,null,null,null,null,null,null,null,null,null,null,10943,"BSBEV",4,"2015-03-11","2",2.17]
[10944,"BOTTM",6,"2015-03-12",3,52.92,null,null,null,null,null,null,null,null,null,null,null,null,null,null,null,null,null,null,null,null,10944,"BOTTM",6,"2015-03-12","3",52.92]
[10945,"MORGK",4,"2015-03-12",1,10.220000000000001,null,null,null,null,null,null,null,null,null,null,null,null,null,null,null,null,null,null,null,null,10945,"MORGK",4,"2015-03-12","1",10.220000000000001]
[10946,"VAFFE",1,"2015-03-12",2,27.2,null,null,null,null,null,null,null,null,null,null,null,null,null,null,null,null,null,null,null,null,10946,"VAFFE",1,"2015-03-12","2",27.2]
[10947,"BSBEV",3,"2015-03-13",2,3.26,null,null,null,null,null,null,null,null,null,null,null,null,null,null,null,null,null,null,null,null,10947,"BSBEV",3,"2015-03-13","2",3.26]
[10948,"GODOS",3,"2015-03-13",3,23.39,null,null,null,null,null,null,null,null,null,null,null,null,null,null,null,null,null,null,null,null,10948,"GODOS",3,"2015-03-13","3",23.39]
[10949,"BOTTM",2,"2015-03-13",3,74.44,null,null,null,null,null,null,null,null,null,null,null,null,null,null,null,null,null,null,null,null,10949,"BOTTM",2,"2015-03-13","3",74.44]
[10950,"MAGAA",1,"2015-03-16",2,2.5,null,null,null,null,null,null,null,null,null,null,null,null,null,null,null,null,null,null,null,null,10950,"MAGAA",1,"2015-03-16","2",2.5]
[10951,"RICSU",9,"2015-03-16",2,30.85,null,null,null,null,null,null,null,null,null,null,null,null,null,null,null,null,null,null,null,null,10951,"RICSU",9,"2015-03-16","2",30.85]
[10952,"ALFKI",1,"2015-03-16",1,40.42,null,null,null,null,null,null,null,null,null,null,null,null,null,null,null,null,null,null,null,null,10952,"ALFKI",1,"2015-03-16","1",40.42]
[10953,"AROUT",9,"2015-03-16",2,23.72,null,null,null,null,null,null,null,null,null,null,null,null,null,null,null,null,null,null,null,null,10953,"AROUT",9,"2015-03-16","2",23.72]
[10954,"LINOD",5,"2015-03-17",1,27.91,null,null,null,null,null,null,null,null,null,null,null,null,null,null,null,null,null,null,null,null,10954,"LINOD",5,"2015-03-17","1",27.91]
[10955,"FOLKO",8,"2015-03-17",2,3.26,null,null,null,null,null,null,null,null,null,null,null,null,null,null,null,null,null,null,null,null,10955,"FOLKO",8,"2015-03-17","2",3.26]
[10956,"BLAUS",6,"2015-03-17",2,44.65,null,null,null,null,null,null,null,null,null,null,null,null,null,null,null,null,null,null,null,null,10956,"BLAUS",6,"2015-03-17","2",44.65]
[10957,"HILAA",8,"2015-03-18",3,105.36,null,null,null,null,null,null,null,null,null,null,null,null,null,null,null,null,null,null,null,null,10957,"HILAA",8,"2015-03-18","3",105.36]
[10958,"OCEAN",7,"2015-03-18",2,49.56,null,null,null,null,null,null,null,null,null,null,null,null,null,null,null,null,null,null,null,null,10958,"OCEAN",7,"2015-03-18","2",49.56]
[10959,"GOURL",6,"2015-03-18",2,4.9800000000000004,null,null,null,null,null,null,null,null,null,null,null,null,null,null,null,null,null,null,null,null,10959,"GOURL",6,"2015-03-18","2",4.9800000000000004]
[10960,"HILAA",3,"2015-03-19",1,2.08,null,null,null,null,null,null,null,null,null,null,null,null,null,null,null,null,null,null,null,null,10960,"HILAA",3,"2015-03-19","1",2.08]
[10961,"QUEEN",8,"2015-03-19",1,104.47,null,null,null,null,null,null,null,null,null,null,null,null,null,null,null,null,null,null,null,null,10961,"QUEEN",8,"2015-03-19","1",104.47]
[10962,"QUICK",8,"2015-03-19",2,275.79000000000002,null,null,null,null,null,null,null,null,null,null,null,null,null,null,null,null,null,null,null,null,10962,"QUICK",8,"2015-03-19","2",275.79000000000002]
[10963,"FURIB",9,"2015-03-19",3,2.7,null,null,null,null,null,null,null,null,null,null,null,null,null,null,null,null,null,null,null,null,10963,"FURIB",9,"2015-03-19","3",2.7]
[10964,"SPECD",3,"2015-03-20",2,87.38,null,null,null,null,null,null,null,null,null,null,null,null,null,null,null,null,null,null,null,null,10964,"SPECD",3,"2015-03-20","2",87.38]
[10965,"OLDWO",6,"2015-03-20",3,144.38,null,null,null,null,null,null,null,null,null,null,null,null,null,null,null,null,null,null,null,null,10965,"OLDWO",6,"2015-03-20","3",144.38]
[10966,"CHOPS",4,"2015-03-20",1,27.19,null,null,null,null,null,null,null,null,null,null,null,null,null,null,null,null,null,null,null,null,10966,"CHOPS",4,"2015-03-20","1",27.19]
[10967,"TOMSP",2,"2015-03-23",2,62.22,null,null,null,null,null,null,null,null,null,null,null,null,null,null,null,null,null,null,null,null,10967,"TOMSP",2,"2015-03-23","2",62.22]
[10968,"ERNSH",1,"2015-03-23",3,74.599999999999994,null,null,null,null,null,null,null,null,null,null,null,null,null,null,null,null,null,null,null,null,10968,"ERNSH",1,"2015-03-23","3",74.599999999999994]
[10969,"COMMI",1,"2015-03-23",2,0.21,null,null,null,null,null,null,null,null,null,null,null,null,null,null,null,null,null,null,null,null,10969,"COMMI",1,"2015-03-23","2",0.21]
[10970,"BOLID",9,"2015-03-24",1,16.16,null,null,null,null,null,null,null,null,null,null,null,null,null,null,null,null,null,null,null,null,10970,"BOLID",9,"2015-03-24","1",16.16]
[10971,"FRANR",2,"2015-03-24",2,121.82,null,null,null,null,null,null,null,null,null,null,null,null,null,null,null,null,null,null,null,null,10971,"FRANR",2,"2015-03-24","2",121.82]
[10972,"LACOR",4,"2015-03-24",2,1,null,null,null,null,null,null,null,null,null,null,null,null,null,null,null,null,null,null,null,null,10972,"LACOR",4,"2015-03-24","2",1]
[10973,"LACOR",6,"2015-03-24",2,15.17,null,null,null,null,null,null,null,null,null,null,null,null,null,null,null,null,null,null,null,null,10973,"LACOR",6,"2015-03-24","2",15.17]
[10974,"SPLIR",3,"2015-03-25",3,12.96,null,null,null,null,null,null,null,null,null,null,null,null,null,null,null,null,null,null,null,null,10974,"SPLIR",3,"2015-03-25","3",12.96]
[10975,"BOTTM",1,"2015-03-25",3,32.270000000000003,null,null,null,null,null,null,null,null,null,null,null,null,null,null,null,null,null,null,null,null,10975,"BOTTM",1,"2015-03-25","3",32.270000000000003]
[10976,"HILAA",1,"2015-03-25",1,37.97,null,null,null,null,null,null,null,null,null,null,null,null,null,null,null,null,null,null,null,null,10976,"HILAA",1,"2015-03-25","1",37.97]
[10977,"FOLKO",8,"2015-03-26",3,208.5,null,null,null,null,null,null,null,null,null,null,null,null,null,null,null,null,null,null,null,null,10977,"FOLKO",8,"2015-03-26","3",208.5]
[10978,"MAISD",9,"2015-03-26",2,32.82,null,null,null,null,null,null,null,null,null,null,null,null,null,null,null,null,null,null,null,null,10978,"MAISD",9,"2015-03-26","2",32.82]
[10979,"ERNSH",8,"2015-03-26",2,353.07,null,null,null,null,null,null,null,null,null,null,null,null,null,null,null,null,null,null,null,null,10979,"ERNSH",8,"2015-03-26","2",353.07]
[10980,"FOLKO",4,"2015-03-27",1,1.26,null,null,null,null,null,null,null,null,null,null,null,null,null,null,null,null,null,null,null,null,10980,"FOLKO",4,"2015-03-27","1",1.26]
[10981,"HANAR",1,"2015-03-27",2,193.37,null,null,null,null,null,null,null,null,null,null,null,null,null,null,null,null,null,null,null,null,10981,"HANAR",1,"2015-03-27","2",193.37]
[10982,"BOTTM",2,"2015-03-27",1,14.01,null,null,null,null,null,null,null,null,null,null,null,null,null,null,null,null,null,null,null,null,10982,"BOTTM",2,"2015-03-27","1",14.01]
[10983,"SAVEA",2,"2015-03-27",2,657.54,null,null,null,null,null,null,null,null,null,null,null,null,null,null,null,null,null,null,null,null,10983,"SAVEA",2,"2015-03-27","2",657.54]
[10984,"SAVEA",1,"2015-03-30",3,211.22,null,null,null,null,null,null,null,null,null,null,null,null,null,null,null,null,null,null,null,null,10984,"SAVEA",1,"2015-03-30","3",211.22]
[10985,"HUNGO",2,"2015-03-30",1,91.51,null,null,null,null,null,null,null,null,null,null,null,null,null,null,null,null,null,null,null,null,10985,"HUNGO",2,"2015-03-30","1",91.51]
[10986,"OCEAN",8,"2015-03-30",2,217.86,null,null,null,null,null,null,null,null,null,null,null,null,null,null,null,null,null,null,null,null,10986,"OCEAN",8,"2015-03-30","2",217.86]
[10987,"EASTC",8,"2015-03-31",1,185.48,null,null,null,null,null,null,null,null,null,null,null,null,null,null,null,null,null,null,null,null,10987,"EASTC",8,"2015-03-31","1",185.48]
[10988,"RATTC",3,"2015-03-31",2,61.14,null,null,null,null,null,null,null,null,null,null,null,null,null,null,null,null,null,null,null,null,10988,"RATTC",3,"2015-03-31","2",61.14]
[10989,"QUEDE",2,"2015-03-31",1,34.76,null,null,null,null,null,null,null,null,null,null,null,null,null,null,null,null,null,null,null,null,10989,"QUEDE",2,"2015-03-31","1",34.76]
[10990,"ERNSH",2,"2015-04-01",3,117.61,null,null,null,null,null,null,null,null,null,null,null,null,null,null,null,null,null,null,null,null,10990,"ERNSH",2,"2015-04-01","3",117.61]
[10991,"QUICK",1,"2015-04-01",1,38.51,null,null,null,null,null,null,null,null,null,null,null,null,null,null,null,null,null,null,null,null,10991,"QUICK",1,"2015-04-01","1",38.51]
[10992,"THEBI",1,"2015-04-01",3,4.2699999999999996,null,null,null,null,null,null,null,null,null,null,null,null,null,null,null,null,null,null,null,null,10992,"THEBI",1,"2015-04-01","3",4.2699999999999996]
[10993,"FOLKO",7,"2015-04-01",3,8.81,null,null,null,null,null,null,null,null,null,null,null,null,null,null,null,null,null,null,null,null,10993,"FOLKO",7,"2015-04-01","3",8.81]
[10994,"VAFFE",2,"2015-04-02",3,65.53,null,null,null,null,null,null,null,null,null,null,null,null,null,null,null,null,null,null,null,null,10994,"VAFFE",2,"2015-04-02","3",65.53]
[10995,"PERIC",1,"2015-04-02",3,46,null,null,null,null,null,null,null,null,null,null,null,null,null,null,null,null,null,null,null,null,10995,"PERIC",1,"2015-04-02","3",46]
[10996,"QUICK",4,"2015-04-02",2,1.1200000000000001,null,null,null,null,null,null,null,null,null,null,null,null,null,null,null,null,null,null,null,null,10996,"QUICK",4,"2015-04-02","2",1.1200000000000001]
[10997,"LILAS",8,"2015-04-03",2,73.91,null,null,null,null,null,null,null,null,null,null,null,null,null,null,null,null,null,null,null,null,10997,"LILAS",8,"2015-04-03","2",73.91]
[10998,"WOLZA",8,"2015-04-03",2,20.309999999999999,null,null,null,null,null,null,null,null,null,null,null,null,null,null,null,null,null,null,null,null,10998,"WOLZA",8,"2015-04-03","2",20.309999999999999]
[10999,"OTTIK",6,"2015-04-03",2,96.35,null,null,null,null,null,null,null,null,null,null,null,null,null,null,null,null,null,null,null,null,10999,"OTTIK",6,"2015-04-03","2",96.35]
[11000,"RATTC",2,"2015-04-06",3,55.12,null,null,null,null,null,null,null,null,null,null,null,null,null,null,null,null,null,null,null,null,11000,"RATTC",2,"2015-04-06","3",55.12]
[11001,"FOLKO",2,"2015-04-06",2,197.3,null,null,null,null,null,null,null,null,null,null,null,null,null,null,null,null,null,null,null,null,11001,"FOLKO",2,"2015-04-06","2",197.3]
[11002,"SAVEA",4,"2015-04-06",1,141.16,null,null,null,null,null,null,null,null,null,null,null,null,null,null,null,null,null,null,null,null,11002,"SAVEA",4,"2015-04-06","1",141.16]
[11003,"THECR",3,"2015-04-06",3,14.91,null,null,null,null,null,null,null,null,null,null,null,null,null,null,null,null,null,null,null,null,11003,"THECR",3,"2015-04-06","3",14.91]
[11004,"MAISD",3,"2015-04-07",1,44.84,null,null,null,null,null,null,null,null,null,null,null,null,null,null,null,null,null,null,null,null,11004,"MAISD",3,"2015-04-07","1",44.84]
[11005,"WILMK",2,"2015-04-07",1,0.75,null,null,null,null,null,null,null,null,null,null,null,null,null,null,null,null,null,null,null,null,11005,"WILMK",2,"2015-04-07","1",0.75]
[11006,"GREAL",3,"2015-04-07",2,25.19,null,null,null,null,null,null,null,null,null,null,null,null,null,null,null,null,null,null,null,null,11006,"GREAL",3,"2015-04-07","2",25.19]
[11007,"PRINI",8,"2015-04-08",2,202.24,null,null,null,null,null,null,null,null,null,null,null,null,null,null,null,null,null,null,null,null,11007,"PRINI",8,"2015-04-08","2",202.24]
[11008,"ERNSH",7,"2015-04-08",3,79.459999999999994,null,null,null,null,null,null,null,null,null,null,null,null,null,null,null,null,null,null,null,null,11009,"GODOS",7,"2015-04-08","1",59.11]
[11009,"GODOS",2,"2015-04-08",1,59.11,null,null,null,null,null,null,null,null,null,null,null,null,null,null,null,null,null,null,null,null,11010,"REGGC",2,"2015-04-08","2",28.71]
[11010,"REGGC",2,"2015-04-09",2,28.71,null,null,null,null,null,null,null,null,null,null,null,null,null,null,null,null,null,null,null,null,11011,"ALFKI",2,"2015-04-09","1",1.21]
[11011,"ALFKI",3,"2015-04-09",1,1.21,null,null,null,null,null,null,null,null,null,null,null,null,null,null,null,null,null,null,null,null,11012,"FRANK",3,"2015-04-09","3",242.95]
[11012,"FRANK",1,"2015-04-09",3,242.95,null,null,null,null,null,null,null,null,null,null,null,null,null,null,null,null,null,null,null,null,11013,"ROMEY",1,"2015-04-09","1",32.99]
[11013,"ROMEY",2,"2015-04-09",1,32.99,null,null,null,null,null,null,null,null,null,null,null,null,null,null,null,null,null,null,null,null,11014,"LINOD",2,"2015-04-09","3",23.6]
[11014,"LINOD",2,"2015-04-10",3,23.6,null,null,null,null,null,null,null,null,null,null,null,null,null,null,null,null,null,null,null,null,11015,"SANTG",2,"2015-04-10","2",4.62]
[11015,"SANTG",2,"2015-04-10",2,4.62,null,null,null,null,null,null,null,null,null,null,null,null,null,null,null,null,null,null,null,null,11016,"AROUT",2,"2015-04-10","2",33.799999999999997]
[11016,"AROUT",9,"2015-04-10",2,33.799999999999997,null,null,null,null,null,null,null,null,null,null,null,null,null,null,null,null,null,null,null,null,11017,"ERNSH",9,"2015-04-10","2",754.26]
[11017,"ERNSH",9,"2015-04-13",2,754.26,null,null,null,null,null,null,null,null,null,null,null,null,null,null,null,null,null,null,null,null,11018,"LONEP",9,"2015-04-13","2",11.65]
[11018,"LONEP",4,"2015-04-13",2,11.65,null,null,null,null,null,null,null,null,null,null,null,null,null,null,null,null,null,null,null,null,11020,"OTTIK",4,"2015-04-13","2",43.3]
[11019,"RANCH",6,"2015-04-13",3,3.17,null,null,null,null,null,null,null,null,null,null,null,null,null,null,null,null,null,null,null,null,11021,"QUICK",6,"2015-04-13","1",297.18]
[11020,"OTTIK",2,"2015-04-14",2,43.3,null,null,null,null,null,null,null,null,null,null,null,null,null,null,null,null,null,null,null,null,11022,"HANAR",2,"2015-04-14","2",6.27]
[11021,"QUICK",3,"2015-04-14",1,297.18,null,null,null,null,null,null,null,null,null,null,null,null,null,null,null,null,null,null,null,null,11023,"BSBEV",3,"2015-04-14","2",123.83]
[11022,"HANAR",9,"2015-04-14",2,6.27,null,null,null,null,null,null,null,null,null,null,null,null,null,null,null,null,null,null,null,null,11024,"EASTC",9,"2015-04-14","1",74.36]
[11023,"BSBEV",1,"2015-04-14",2,123.83,null,null,null,null,null,null,null,null,null,null,null,null,null,null,null,null,null,null,null,null,11025,"WARTH",1,"2015-04-14","3",29.17]
[11024,"EASTC",4,"2015-04-15",1,74.36,null,null,null,null,null,null,null,null,null,null,null,null,null,null,null,null,null,null,null,null,11026,"FRANS",4,"2015-04-15","1",47.09]
[11025,"WARTH",6,"2015-04-15",3,29.17,null,null,null,null,null,null,null,null,null,null,null,null,null,null,null,null,null,null,null,null,11027,"BOTTM",6,"2015-04-15","1",52.52]
[11026,"FRANS",4,"2015-04-15",1,47.09,null,null,null,null,null,null,null,null,null,null,null,null,null,null,null,null,null,null,null,null,11028,"KOENE",4,"2015-04-15","1",29.59]
[11027,"BOTTM",1,"2015-04-16",1,52.52,null,null,null,null,null,null,null,null,null,null,null,null,null,null,null,null,null,null,null,null,11029,"CHOPS",1,"2015-04-16","1",47.84]
[11028,"KOENE",2,"2015-04-16",1,29.59,null,null,null,null,null,null,null,null,null,null,null,null,null,null,null,null,null,null,null,null,11030,"SAVEA",2,"2015-04-16","2",830.75]
[11029,"CHOPS",4,"2015-04-16",1,47.84,null,null,null,null,null,null,null,null,null,null,null,null,null,null,null,null,null,null,null,null,11031,"SAVEA",4,"2015-04-16","2",227.22]
[11030,"SAVEA",7,"2015-04-17",2,830.75,null,null,null,null,null,null,null,null,null,null,null,null,null,null,null,null,null,null,null,null,11032,"WHITC",7,"2015-04-17","3",606.19000000000005]
[11031,"SAVEA",6,"2015-04-17",2,227.22,null,null,null,null,null,null,null,null,null,null,null,null,null,null,null,null,null,null,null,null,11033,"RICSU",6,"2015-04-17","3",84.74]
[11032,"WHITC",2,"2015-04-17",3,606.19000000000005,null,null,null,null,null,null,null,null,null,null,null,null,null,null,null,null,null,null,null,null,11034,"OLDWO",2,"2015-04-17","1",40.32]
[11033,"RICSU",7,"2015-04-17",3,84.74,null,null,null,null,null,null,null,null,null,null,null,null,null,null,null,null,null,null,null,null,11035,"SUPRD",7,"2015-04-17","2",0.17]
[11034,"OLDWO",8,"2015-04-20",1,40.32,null,null,null,null,null,null,null,null,null,null,null,null,null,null,null,null,null,null,null,null,11036,"DRACD",8,"2015-04-20","3",149.47]
[11035,"SUPRD",2,"2015-04-20",2,0.17,null,null,null,null,null,null,null,null,null,null,null,null,null,null,null,null,null,null,null,null,11037,"GODOS",2,"2015-04-20","1",3.2]
[11036,"DRACD",8,"2015-04-20",3,149.47,null,null,null,null,null,null,null,null,null,null,null,null,null,null,null,null,null,null,null,null,11038,"SUPRD",8,"2015-04-20","2",29.59]
[11037,"GODOS",7,"2015-04-21",1,3.2,null,null,null,null,null,null,null,null,null,null,null,null,null,null,null,null,null,null,null,null,11041,"CHOPS",7,"2015-04-21","2",48.22]
[11038,"SUPRD",1,"2015-04-21",2,29.59,null,null,null,null,null,null,null,null,null,null,null,null,null,null,null,null,null,null,null,null,11042,"COMMI",1,"2015-04-21","1",29.99]
[11039,"LINOD",1,"2015-04-21",2,65,null,null,null,null,null,null,null,null,null,null,null,null,null,null,null,null,null,null,null,null,11043,"SPECD",1,"2015-04-21","2",8.8000000000000007]
[11040,"GREAL",4,"2015-04-22",3,18.84,null,null,null,null,null,null,null,null,null,null,null,null,null,null,null,null,null,null,null,null,11044,"WOLZA",4,"2015-04-22","1",8.7200000000000006]
[11041,"CHOPS",3,"2015-04-22",2,48.22,null,null,null,null,null,null,null,null,null,null,null,null,null,null,null,null,null,null,null,null,11046,"WANDK",3,"2015-04-22","2",71.64]
[11042,"COMMI",2,"2015-04-22",1,29.99,null,null,null,null,null,null,null,null,null,null,null,null,null,null,null,null,null,null,null,null,11047,"EASTC",2,"2015-04-22","3",46.62]
[11043,"SPECD",5,"2015-04-22",2,8.8000000000000007,null,null,null,null,null,null,null,null,null,null,null,null,null,null,null,null,null,null,null,null,11048,"BOTTM",5,"2015-04-22","3",24.12]
[11044,"WOLZA",4,"2015-04-23",1,8.7200000000000006,null,null,null,null,null,null,null,null,null,null,null,null,null,null,null,null,null,null,null,null,11049,"GOURL",4,"2015-04-23","1",8.34]
[11045,"BOTTM",6,"2015-04-23",2,70.58,null,null,null,null,null,null,null,null,null,null,null,null,null,null,null,null,null,null,null,null,11050,"FOLKO",6,"2015-04-23","2",59.41]
[11046,"WANDK",8,"2015-04-23",2,71.64,null,null,null,null,null,null,null,null,null,null,null,null,null,null,null,null,null,null,null,null,11052,"HANAR",8,"2015-04-23","1",67.260000000000005]
[11047,"EASTC",7,"2015-04-24",3,46.62,null,null,null,null,null,null,null,null,null,null,null,null,null,null,null,null,null,null,null,null,11053,"PICCO",7,"2015-04-24","2",53.05]
[11048,"BOTTM",7,"2015-04-24",3,24.12,null,null,null,null,null,null,null,null,null,null,null,null,null,null,null,null,null,null,null,null,11055,"HILAA",7,"2015-04-24","2",120.92]
[11049,"GOURL",3,"2015-04-24",1,8.34,null,null,null,null,null,null,null,null,null,null,null,null,null,null,null,null,null,null,null,null,11056,"EASTC",3,"2015-04-24","2",278.95999999999998]
[11050,"FOLKO",8,"2015-04-27",2,59.41,null,null,null,null,null,null,null,null,null,null,null,null,null,null,null,null,null,null,null,null,11057,"NORTS",8,"2015-04-27","3",4.13]
[11051,"LAMAI",7,"2015-04-27",3,2.79,null,null,null,null,null,null,null,null,null,null,null,null,null,null,null,null,null,null,null,null,11060,"FRANS",7,"2015-04-27","2",10.98]
[11052,"HANAR",3,"2015-04-27",1,67.260000000000005,null,null,null,null,null,null,null,null,null,null,null,null,null,null,null,null,null,null,null,null,11063,"HUNGO",3,"2015-04-27","2",81.73]
[11053,"PICCO",2,"2015-04-27",2,53.05,null,null,null,null,null,null,null,null,null,null,null,null,null,null,null,null,null,null,null,null,11064,"SAVEA",2,"2015-04-27","1",30.09]
[11054,"CACTU",8,"2015-04-28",1,0.33,null,null,null,null,null,null,null,null,null,null,null,null,null,null,null,null,null,null,null,null,11066,"WHITC",8,"2015-04-28","2",44.72]
[11055,"HILAA",7,"2015-04-28",2,120.92,null,null,null,null,null,null,null,null,null,null,null,null,null,null,null,null,null,null,null,null,11067,"DRACD",7,"2015-04-28","2",7.98]
[11056,"EASTC",8,"2015-04-28",2,278.95999999999998,null,null,null,null,null,null,null,null,null,null,null,null,null,null,null,null,null,null,null,null,11069,"TORTU",8,"2015-04-28","2",15.67]
[11057,"NORTS",3,"2015-04-29",3,4.13,null,null,null,null,null,null,null,null,null,null,null,null,null,null,null,null,null,null,null,null,11057,"NORTS",3,"2015-04-29",3,146.27000000000001]
[11058,"BLAUS",9,"2015-04-29",3,31.14,null,null,null,null,null,null,null,null,null,null,null,null,null,null,null,null,null,null,null,null,11058,"BLAUS",9,"2015-04-29",3,26.39]
[11059,"RICAR",2,"2015-04-29",2,85.8,null,null,null,null,null,null,null,null,null,null,null,null,null,null,null,null,null,null,null,null,11059,"RICAR",2,"2015-04-29",2,18.63]
[11060,"FRANS",2,"2015-04-30",2,10.98,null,null,null,null,null,null,null,null,null,null,null,null,null,null,null,null,null,null,null,null,11060,"FRANS",2,"2015-04-30",2,18.23]
[11061,"GREAL",4,"2015-04-30",3,14.01,null,null,null,null,null,null,null,null,null,null,null,null,null,null,null,null,null,null,null,null,11061,"GREAL",4,"2015-04-30",3,21.189999999999998]
[11062,"REGGC",4,"2015-04-30",2,29.93,null,null,null,null,null,null,null,null,null,null,null,null,null,null,null,null,null,null,null,null,11062,"REGGC",4,"2015-04-30",2,8.0000000000000071E-2]
[11063,"HUNGO",3,"2015-04-30",2,81.73,null,null,null,null,null,null,null,null,null,null,null,null,null,null,null,null,null,null,null,null,11063,"HUNGO",3,"2015-04-30",2,62.92]
[11064,"SAVEA",1,"2015-05-01",1,30.09,null,null,null,null,null,null,null,null,null,null,null,null,null,null,null,null,null,null,null,null,11064,"SAVEA",1,"2015-05-01",1,25.020000000000003]
[11065,"LILAS",8,"2015-05-01",1,12.91,null,null,null,null,null,null,null,null,null,null,null,null,null,null,null,null,null,null,null,null,11065,"LILAS",8,"2015-05-01",1,22.499999999999996]
[11066,"WHITC",7,"2015-05-01",2,44.72,null,null,null,null,null,null,null,null,null,null,null,null,null,null,null,null,null,null,null,null,11066,"WHITC",7,"2015-05-01",2,15.780000000000001]
[11067,"DRACD",1,"2015-05-04",2,7.98,null,null,null,null,null,null,null,null,null,null,null,null,null,null,null,null,null,null,null,null,11067,"DRACD",1,"2015-05-04",2,51.069999999999993]
[11068,"QUEEN",8,"2015-05-04",2,81.75,null,null,null,null,null,null,null,null,null,null,null,null,null,null,null,null,null,null,null,null,11068,"QUEEN",8,"2015-05-04",2,7.8500000000000085]
[11069,"TORTU",1,"2015-05-04",2,15.67,null,null,null,null,null,null,null,null,null,null,null,null,null,null,null,null,null,null,null,null,11069,"TORTU",1,"2015-05-04",2,14.210000000000008]
[11070,"LEHMS",2,"2015-05-05",1,136,null,null,null,null,null,null,null,null,null,null,null,null,null,null,null,null,null,null,null,null,11070,"LEHMS",2,"2015-05-05",1,67.87]
[11071,"LILAS",1,"2015-05-05",1,0.93,null,null,null,null,null,null,null,null,null,null,null,null,null,null,null,null,null,null,null,null,11071,"LILAS",1,"2015-05-05",1,158.03999999999996]
[11072,"ERNSH",4,"2015-05-05",2,258.64,null,null,null,null,null,null,null,null,null,null,null,null,null,null,null,null,null,null,null,null,11072,"ERNSH",4,"2015-05-05",2,274.83]
[11073,"PERIC",2,"2015-05-05",2,24.95,null,null,null,null,null,null,null,null,null,null,null,null,null,null,null,null,null,null,null,null,11073,"PERIC",2,"2015-05-05",2,6.8500000000000005]
[11074,"SIMOB",7,"2015-05-06",2,18.440000000000001,null,null,null,null,null,null,null,null,null,null,null,null,null,null,null,null,null,null,null,null,11074,"SIMOB",7,"2015-05-06",2,70.75]
[11075,"RICSU",8,"2015-05-06",2,6.19,null,null,null,null,null,null,null,null,null,null,null,null,null,null,null,null,null,null,null,null,11075,"RICSU",8,"2015-05-06",2,51.64]
[11076,"BONAP",4,"2015-05-06",2,38.28,null,null,null,null,null,null,null,null,null,null,null,null,null,null,null,null,null,null,null,null,11076,"BONAP",4,"2015-05-06",2,14.629999999999999]
[11077,"RATTC",1,"2015-05-06",2,8.5299999999999994,null,null,null,null,null,null,null,null,null,null,null,null,null,null,null,null,null,null,null,null,11077,"RATTC",1,"2015-05-06",2,36.739999999999995]